Workbook

Sheet Introduction
B3: KSU-Lease
B5: An Excel spreadsheet to determine equitable crop share and cash lease rental arrangements
L8: Version- 7.8.16
B28: INSTRUCTIONS FOR THE USER:
B29: All blue numbers are inputs and all black numbers are calculated from these inputs. The spreadsheet automatically recalculates every time an additional input is entered. Thus, it is important to wait until all data have been entered and reviewed before interpreting any of the calculated results (i.e., black numbers).
B33: FOR MORE INFORMATION:
B35: The paper titled KSU-Lease.pdf serves as a "users guide" and provides a brief overview of this spreadsheet. Also, several of the input cells (i.e., blue number) have a red diamond in the upper right hand corner of the cell. By moving your mouse cursor over this diamond, a brief description of the input will be displayed on the screen.
B39: KSU-Lease Instructions | E39: *This publication provides information on how to use the tool, however some values in the tool have been updated since the paper was written.
B40: Updated by: | G40: Originally Developed by:
B42: Dr. Mykel Taylor | G42: Kevin C. Dhuyvetter, Ph.D.
B43: Agricultural Economist | G43: Former Agricultural Economist
B44: Kansas State University | G44: Kansas State University
B45: mtaylor@k-state.edu
B46: 785-532-3033 | G46: Terry L. Kastens, Ph.D.
G47: Emeritus Agricultural Economist
G48: Kansas State University
B50: Copyright 2016 AgManager.info, K-State Department of Agricultural Economics

Sheet Crop budgets
B2: TABLE 1. CROP BUDGETS SHOWING TOTAL COSTS AND RETURNS
B4: Crop/System | D4: Wheat | E4: Milo | F4: Soybeans | G4: Corn | K4: Total | L4: Per | M4: Per
B5: Planted acres of each crop | D5: 80 | E5: 20 | F5: 30 | G5: 30 | K5: =SUM(D5:I5) -> 160 | L5: Acre | M5: Acre
B6: Tillable acres per planted acre | D6: 1 | E6: 1 | F6: 1 | G6: 1 | K6: =SUMPRODUCT(D5:I5,D6:I6) -> 160 | L6: Planted | M6: Tillable
B8: INCOME PER ACRE | D8: =IF(D5=0,1,0) -> 0 | E8: 0 | F8: 0 | G8: 0 | H8: 1 | I8: 1
B9: A. Yield per acre | D9: =IF(D8=1,"",D119) -> 56 | E9: 77 | F9: 30 | G9: 90 | K9: --- | L9: --- | M9: ---
B10: B. Price per unit | D10: =IF(D8=1,"",D128) -> 5.25 | E10: 3.7 | F10: 9.6 | G10: 3.9 | K10: =SUMPRODUCT(D$5:I$5,D9:I9,D10:I10) -> 48388 | L10: --- | M10: =K10/K$6 -> 302.425
B11: C. Net government payments | D11: 10 | E11: =D11 -> 10 | F11: =E11 -> 10 | G11: =F11 -> 10 | K11: =SUMPRODUCT(D$5:I$5,D11:I11) -> 1600 | L11: =K11/K$5 -> 10 | M11: =K11/K$6 -> 10
B12: D. Indemnity payments | D12: 0 | E12: 0 | F12: 0 | G12: 0 | K12: =SUMPRODUCT(D$5:I$5,D12:I12) -> 0 | L12: =K12/K$5 -> 0 | M12: =K12/K$6 -> 0
B13: E. Miscellaneous income | D13: 0 | E13: 0 | F13: 0 | G13: 0 | K13: =SUMPRODUCT(D$5:I$5,D13:I13) -> 0 | L13: =K13/K$5 -> 0 | M13: =K13/K$6 -> 0
B14: F. Returns/acre ((A x B) + C + D + E) | D14: =IF(D8=1,"",D9*D10+D11+D12+D13) -> 304 | E14: 294.9 | F14: 298 | G14: 361 | K14: =SUMPRODUCT(D$5:I$5,D14:I14) -> 49988 | L14: =K14/K$5 -> 312.425 | M14: =K14/K$6 -> 312.425
B16: COSTS PER ACRE | D16: =IF(D$8=1,IF(MAX(D17:D34)>0,1,0)) -> FALSE | E16: FALSE | F16: FALSE | G16: FALSE | H16: 0 | I16: 0
C17: 1. Seed | D17: =IF(D8=1,"",D47*D48) -> 16 | E17: 18.9 | F17: 61.6 | G17: 93.6 | K17: =SUMPRODUCT(D$5:I$5,D17:I17) -> 6314 | L17: =K17/K$5 -> 39.4625 | M17: =K17/K$6 -> 39.4625
C18: 2. Herbicide | D18: =IF(D8=1,"",SUMPRODUCT(D59:D68,$K59:$K68)) -> 5.42 | E18: 36.61 | F18: 13.54 | G18: 27.528 | K18: 2397.84 | L18: 14.9865 | M18: 14.9865
C19: 3. Insecticide / Fungicide | D19: =IF(D8=1,"",SUMPRODUCT(D70:D73,$K70:$K73)) -> 30.42 | E19: 0 | F19: 0 | G19: 0 | K19: 2433.6 | L19: 15.21 | M19: 15.21
C20: 4. Fertilizer and Lime | D20: =IF(D8=1,"",SUMPRODUCT(D50:D57,$K50:$K57)) -> 45.75 | E20: 43.424 | F20: 17.58 | G20: 47.2 | K20: 6471.88 | L20: 40.44925 | M20: 40.44925
C21: 5. Crop Consulting | D21: 0 | E21: 0 | F21: 0 | G21: 0 | K21: 0 | L21: 0 | M21: 0
C22: 6. Crop Insurance | D22: 5 | E22: 7 | F22: 6.25 | G22: 9 | K22: 997.5 | L22: 6.234375 | M22: 6.234375
C23: 7. Drying | D23: =IF(D8=1,"",D76*D9) -> 0 | E23: 10.01 | F23: 0 | G23: 0 | K23: 200.2 | L23: 1.25125 | M23: 1.25125
C24: 8. Miscellaneous | D24: 6.5 | E24: =D24 -> 6.5 | F24: =E24 -> 6.5 | G24: 6.5 | K24: 1040 | L24: 6.5 | M24: 6.5
C25: 9. Machinery Expense | D25: =IF(D8=1,"",IF($L196=3,D172,(D83+SUMPRODUCT(D85:D92,$K85:$K92)+D94+IF(D9>D96,(D9-D96)*D95,0)+D97*D9)*$K136)) -> 97.968 | E25: 120.3 | F25: 96.9 | G25: 138.396 | K25: 17302.32 | L25: 108.1395 | M25: 108.1395
C26: 10. Non-machinery Labor | D26: =IF(D8=1,"",IF($L196=3,D178,D99*$K99)) -> 15 | E26: 15 | F26: 15 | G26: 15 | K26: 2400 | L26: 15 | M26: 15
C27: 11. Irrigation | D27: =IF(D8=1,"",SUM(D218:D222)) -> 0 | E27: 0 | F27: 0 | G27: 0 | K27: 0 | L27: 0 | M27: 0
C28: 12. Land Charge / Rent | D28: =IF(D8=1,"",IF($L196=3,D182,D102*$K103*D6)) -> 55 | E28: 55 | F28: 55 | G28: 55 | K28: 8800 | L28: 55 | M28: 55
B29: G. SUB TOTAL | D29: =IF(D8=1,"",SUM(D17:D28)) -> 277.058 | E29: 312.744 | F29: 272.37 | G29: 392.224 | K29: 48357.34 | L29: 302.233375 | M29: 302.233375
C30: 13. Interest on 1/2 Nonland Costs | D30: =IF(D8=1,"",(D29-D23-D25*$K$242-D27+D218+D219+D220-D28)/2*$K104) -> 6.1502584 | E30: 6.74158875 | F30: 6.00952625 | G30: 9.45299355 | K30: 1090.728041 | L30: 6.817050256 | M30: 6.817050256
B31: H. TOTAL COSTS | D31: =IF(D8=1,"",D29+D30) -> 283.2082584 | E31: 319.4855888 | F31: 278.3795263 | G31: 401.6769935 | K31: 49448.06804 | L31: 309.0504253 | M31: 309.0504253
B32: I. RETURNS OVER COSTS (F - H) | D32: =IF(D8=1,"",D14-D31) -> 20.7917416 | E32: -24.58558875 | F32: 19.62047375 | G32: -40.67699355 | K32: 539.931959 | L32: 3.374574744 | M32: 3.374574744
B33: J. TOTAL COSTS/UNIT (H/A) | D33: =IF(D8=1,"",IF(D9=0,"n/a",D31/D9)) -> 5.057290329 | E33: 4.14916349 | F33: 9.279317542 | G33: 4.463077706 | K33: --- | L33: --- | M33: ---
B34: K. RETURN TO TOTAL COST (I+13)/G | D34: =IF(D8=1,"",IF(D9=0,"n/a",(D32+D30)/D29)) -> 0.09724317652 | E34: -0.05705625048 | F34: 0.09409993758 | G34: -0.07960757118 | K34: =K32/K31 -> 0.01091917198 | L34: =L32/L31 -> 0.01091917198 | M34: =M32/M31 -> 0.01091917198
D35: =IF(SUM(D16:I16)>0,"Delete inputs in columns not being used!","") -> 
B36: M. Breakeven price (w/ base crop) | D36: =IF(SUM($D39:$I39)*D9=0,"n/a",(SUMPRODUCT($D32:$I32,$D39:$I39)/SUM($D39:$I39)+D31-SUM(D11:D13))/D9) -> 5.25 | E36: 4.289315979 | F36: 9.639042262 | G36: 4.582985946 | H36: n/a | I36: n/a
B37: N. Breakeven yield (w/ base crop) | D37: =IF(D247<D96,D246,D247) -> 52.7070431 | E37: 85.36790133 | F37: 28.43547044 | G37: 101.8624954 | H37: n/a | I37: n/a
B39: Base crop for breakeven analysis | D39: 1 | E39: 0 | F39: 0 | G39: 0 | H39: 0 | I39: 0
B40: 1 All "blue values" are inputs, black values are calculated from those inputs | L40: =NOW() -> 2016-08-01T13:32:39.680 | M40: =NOW() -> 42583.56435
B44: TABLE 2. Production Inputs Used for Budgets
D45: =IF(D$8=1,IF(MAX(D47:D76)>0,1,0)) -> FALSE | E45: FALSE | F45: FALSE | G45: FALSE | H45: 0 | I45: 0
C46: ITEM | D46: =IF(COUNTA(D4)>0,D4,"") -> Wheat | E46: Milo | F46: Soybeans | G46: Corn | K46: $/unit
B47: Seeding rate (lbs, seeds, etc) | D47: 100 | E47: 70 | F47: 140 | G47: 24
B48: Seed price, $/unit | D48: 0.16 | E48: 0.27 | F48: 0.44 | G48: 3.9
B49: Fertilizer:
C50: 82-0-0 | D50: 0 | E50: 56 | F50: =3.25*0*F$9*0.67 -> 0 | G50: 65 | K50: 0.3 | L50: /lb
C51: N (dry/liquid) | D51: 75 | E51: 14 | F51: =3.25*0*F$9*0.33 -> 0 | G51: 16 | K51: 0.37 | L51: /lb
C52: P | D52: 25 | E52: 33.2 | F52: 24 | G52: 34 | K52: 0.42 | L52: /lb
C53: K | D53: =0.29*1*D$9*0 -> 0 | E53: =0.25*1*E$9*0 -> 0 | F53: =1.18*1*F$9*0 -> 0 | G53: 0 | K53: 0.23 | L53: /lb
C54: xxx | K54: 0 | L54: /lb
C55: xxx | K55: 0 | L55: /lb
C56: xxx | K56: 0 | L56: /lb
C57: Lime | D57: 500 | E57: 500 | F57: 500 | G57: 500 | K57: 0.015 | L57: /lb
B58: Herbicide
C59: Finesse | D59: 0.3 | K59: 14.65 | L59: /oz
C60: + Surfactant | D60: 1 | K60: =1*1.025 -> 1.025 | L60: /ac
C61: Bicep II Magnum | E61: 1.6 | G61: 2 | K61: 9.95 | L61: /qt
C62: Status | G62: 1 | K62: 3.6 | L62: /oz
C63: Glyphosate | G63: 32 | K63: =0.11*1.025 -> 0.11275 | L63: /oz
C64: + Ammonium Sulfate | F64: 1.5 | G64: 1.5 | K64: 0.28 | L64: /lb
C65: Glyphosate + Ammonium Sulfate | E65: 1 | F65: 2 | K65: 4.03 | L65: /ac
C66: Roundup Weather Max | F66: 22 | K66: 0.23 | L66: /oz
C67: Buctril + Atrazine | E67: 2 | K67: 8.33 | L67: /pt
C68: xxx | K68: 0 | L68: /ac
B69: Insecticide / Fungicide
C70: Seedbox treatment | K70: =1*1.025 -> 1.025 | L70: /ac
C71: Capture 2EC | K71: 1.45 | L71: /oz
C72: Headline | D72: 9 | K72: 3.38 | L72: /oz
C73: Warrior 1EC | K73: 3.01 | L73: /oz
B74: Irrigation water, inches/acre | K74: 3 | L74: /in
B75: Irrigation repairs, $/acre-inch | K75: 0.5 | L75: /in
B76: Drying cost, $/unit (bu, cwt, etc) | D76: 0 | E76: 0.13 | F76: 0
D77: =IF(SUM(D45:I45)>0,"Delete inputs in columns not being used!","") ->  | K77: =NOW() -> 42583.56435 | L77: =NOW() -> 2016-08-01T13:32:39.680
B80: TABLE 3. Machinery and Land Resources Used for Budgets
D81: =IF(D$8=1,IF(MAX(D83:D100)>0,1,0)) -> FALSE | E81: FALSE | F81: FALSE | G81: FALSE | H81: 0 | I81: 0
B82: ITEM | D82: =D46 -> Wheat | E82: Milo | F82: Soybeans | G82: Corn | K82: $/unit
B83: Drill/Plant, $/acre | D83: 21.02 | E83: 19.6 | F83: 20.26 | G83: 19.81
B84: Tillage and Chemical Applications:
C85: Chisel | D85: 0 | E85: 0 | F85: 0 | G85: 0 | K85: 12.59 | L85: /ac
C86: Disk | D86: 0 | E86: 0 | F86: 0 | G86: 0 | K86: 12.11 | L86: /ac
C87: Field cultivate | D87: 0 | E87: 0 | F87: 0 | G87: 0 | K87: 10 | L87: /ac
C88: Strip-till | D88: 0 | E88: 0 | F88: 0 | G88: 0 | K88: 8.1 | L88: /ac
C89: Anhydrous application | D89: 0 | E89: 1 | F89: 0 | G89: 1 | K89: 12.58 | L89: /ac
C90: Fertilizer application | D90: 1 | E90: 1 | F90: 1 | G90: 1 | K90: 6.11 | L90: /ac
C91: Herbicide application | D91: 1 | E91: 2 | F91: 3 | G91: 2 | K91: 5.9 | L91: /ac
C92: Insecticide/fungicide application | D92: 1 | E92: 0 | F92: 0 | G92: 0 | K92: 5.98 | L92: /ac
B93: Harvest
C94: Base charge, $/acre | D94: 23.75 | E94: 24.76 | F94: 30.44 | G94: 30.83
C95: Charge for high yields, $/unit | D95: 0.24 | E95: 0.25 | F95: 0.24 | G95: 0.24
C96: High yield | D96: 24 | E96: 37 | F96: 29 | G96: 75
C97: Hauling, $/unit | D97: 0.2 | E97: 0.2 | F97: 0.2 | G97: 0.34
B99: Non-machinery labor, hr/acre | D99: 1 | E99: 1 | F99: 1 | G99: 1 | K99: 15 | L99: /hr
B100: Irrigation labor, hr/acre | D100: 0 | E100: 0 | F100: 0 | G100: 0 | K100: =+K99 -> 15 | L100: /hr
O101: Land price | Q101: 3500
B102: Average land value, $/acre /A | D102: 55 | E102: =D102 -> 55 | F102: =E102 -> 55 | G102: =F102 -> 55 | O102: Rent | Q102: =M28 -> 55
B103: Annual return to land, % /A | K103: 1 | O103: Rent-to-value | Q103: =Q102/Q101 -> 0.01571428571
B104: Interest on capital, % | K104: 0.065
D105: Investment, $ | I105: Salvage
B106: Irrigation Equipment | D106: Total | E106: $/wet ac | G106: Years | I106: value, %
C107: Well, pump and gearhead value | D107: 0 | E107: =IF(K210<0.1,"n/a",D107/K210) -> n/a | G107: 25 | I107: 0
C108: Power unit and meter | D108: 0 | E108: =IF(K210<0.1,"n/a",D108/K210) -> n/a | G108: 7 | I108: 0
C109: Irrigation system | D109: 0 | E109: =IF(K210<0.1,"n/a",D109/K210) -> n/a | G109: 20 | I109: 0.1
B110: /A -- The annual cost associated with land can either be entered as a Land Value x Rent-to-Value OR as a Cash Rent x 100%. For example, if cash rent in the region is $60 per acre, this can be entered as $60 in row 102 and 100% in cell K103 OR as $1,500 in row 102 and 4% in cell K103 [$60 x 100% = $1,500 x 4%].
B116: TABLE 4. Alternative Yield and Price Scenarios (minimum of one must be entered)
B117: Yield scenarios to consider
D118: =D127 -> Wheat | E118: Milo | F118: Soybeans | G118: Corn | K118: Use (Y=1, N=0)
C119: Used in analysis above | D119: =IF($K119=0,"N/A ",SUMPRODUCT(D120:D124,$K120:$K124)/$K119) -> 56 | E119: 77 | F119: 30 | G119: 90 | H119: 0 | I119: 0 | K119: =SUM(K120:K124) -> 1
C120: 10-year average | D120: 56 | E120: 77 | F120: 30 | G120: 90 | K120: 1 | L120: (base)
C121: Low | D121: 47 | E121: 70 | F121: 25 | G121: 70 | K121: 0
C122: High | D122: 60 | E122: 93 | F122: 36 | G122: 107 | K122: 0
C123: xxx | K123: 0
C124: xxx | K124: 0
B126: Price scenarios to consider
D127: =D46 -> Wheat | E127: Milo | F127: Soybeans | G127: Corn | K127: Use (Y=1, N=0)
C128: Used in analysis above | D128: =IF($K128=0,"N/A ",SUMPRODUCT(D129:D133,$K129:$K133)/$K128) -> 5.25 | E128: 3.7 | F128: 9.6 | G128: 3.9 | H128: 0 | I128: 0 | K128: =SUM(K129:K133) -> 1
C129: Average price | D129: 5.25 | E129: 3.7 | F129: 9.6 | G129: 3.9 | K129: 1 | L129: (base)
C130: Low price | D130: 4.2 | E130: 3.55 | F130: 8.25 | G130: 3.8 | K130: 0
C131: High price | D131: 6.2 | E131: 4 | F131: 11.25 | G131: 4.5 | K131: 0
C132: xxx | K132: 0
C133: xxx | K133: 0
B136: Machinery cost adjustment (percent of values entered in Table 2) | K136: 1.2
B169: TABLE 3a. Whole-farm Costs (as opposed to per acre values)
B170: Whole-farm costs | K170: Total | L170: % to crops
B172: Machinery | D172: =IF(D5=0,0,$L172*D194/D5) -> 60.16534517 | E172: 59.80930291 | F172: 58.83059207 | G172: 77.52228553 | H172: 0 | I172: 0 | K172: =SUM(K173:K177) -> 50500 | L172: =SUMPRODUCT(K173:K177,L173:L177) -> 10100
C173: Depreciation/principal payment | K173: 25000 | L173: 0.2
C174: Interest | K174: 7500 | L174: =L173 -> 0.2
C175: Fuel | K175: 12000 | L175: =L174 -> 0.2
C176: Repairs | K176: 6000 | L176: =L175 -> 0.2
C177: Other (insurance, shelter, etc) | K177: 0 | L177: =L176 -> 0.2
B178: Land | D178: =IF(D5=0,0,$L178*D194/D5) -> 44.67723652 | E178: 44.41284869 | F178: 43.68608322 | G178: 57.56605361 | H178: 0 | I178: 0 | K178: =SUM(K179:K181) -> 7500 | L178: =SUMPRODUCT(K179:K181,L179:L181) -> 7500
C179: Principal payment | K179: 0 | L179: 1
C180: Interest | K180: 7000 | L180: =L179 -> 1
C181: Other (maintenance, etc.) | K181: 500 | L181: =L180 -> 1
B182: Labor | D182: =IF(D5=0,0,$L182*D194/D5) -> 47.65571895 | E182: 47.37370527 | F182: 46.59848877 | G182: 61.40379052 | H182: 0 | I182: 0 | K182: =SUM(K183:K185) -> 80000 | L182: =SUMPRODUCT(K183:K185,L183:L185) -> 8000
C183: Hired labor | K183: 30000 | L183: 0.1
C184: Unpaid labor | K184: 40000 | L184: =L183 -> 0.1
C185: Other (benefits, etc.) | K185: 10000 | L185: =L184 -> 0.1
B187: Total | K187: =K172+K178+K182 -> 138000 | L187: =L172+L178+L182 -> 25600
B190: Method of Allocation | D190: =D46 -> Wheat | E190: Milo | F190: Soybeans | G190: Corn
C191: Planted acres | D191: =D5/$K5 -> 0.5 | E191: 0.125 | F191: 0.1875 | G191: 0.1875 | H191: 0 | I191: 0 | K191: =SUM(D191:I191) -> 1 | L191: 1
C192: Gross revenue | D192: =D5*D14/$K14 -> 0.486516764 | E192: 0.1179883172 | F192: 0.1788429223 | G192: 0.2166519965 | H192: 0 | I192: 0 | K192: =SUM(D192:I192) -> 1 | L192: 1
C193: Seed, pesticides, and fertilizer | D193: =SUM(D17:D20)*D5/SUM($K17:$K20) -> 0.4431548045 | E193: 0.1123144723 | F193: 0.1578900764 | G193: 0.2866406468 | H193: 0 | I193: 0 | K193: =SUM(D193:I193) -> 1 | L193: 1
C194: Value used for allocations | D194: =IF($L194=0,"n/a",SUMPRODUCT(D191:D193,$L191:$L193)/$L194) -> 0.4765571895 | E194: 0.1184342632 | F194: 0.1747443329 | G194: 0.2302642144 | H194: 0 | I194: 0 | K194: =SUM(D194:I194) -> 1 | L194: =SUM(L191:L193) -> 3
B196: Values to use in budget based on data in Table 2 (2) or Table 3 (3) | L196: 2
B201: This information is used in calculations!
D202: =IF(D5>0,D4,"") -> Wheat | E202: Milo | F202: Soybeans | G202: Corn
B203: Non yield related cost/acre | D203: =((SUM(D17:D22)+D24+D26+D218+D219+D220)*(1+$K104/2)+(D83+SUMPRODUCT(D85:D92,$K85:$K92)+D94)*(1+$K104/2*(1-$K242))+D221+D222+D28) -> 247.2393255 | E203: 263.0433006 | F203: 255.5056224 | G203: 343.1733321 | H203: 0 | I203: 0
B204: Cost/acre as a function of yield | D204: =(D9*D76+(D9*D97+IF(D9>D96,(D9-D96)*D95,0))*(1+$K104/2*(1-$K242))) -> 19.288044 | E204: 35.9589575 | F204: 6.374862 | G204: 34.9391475 | H204: 0 | I204: 0
B205: Total cost/acre | D205: =D203+D204 -> 266.5273695 | E205: 299.0022581 | F205: 261.8804844 | G205: 378.1124796 | H205: 0 | I205: 0
B207: High yield being charged | D207: =IF(D9>D96,D9-D96,0) -> 32 | E207: 40 | F207: 1 | G207: 15 | H207: 0 | I207: 0
B210: Acres being irrigated | D210: =IF(D74>0,D5,0) -> 0 | E210: 0 | F210: 0 | G210: 0 | H210: 0 | I210: 0 | K210: =SUM(D210:I210) -> 0
B211: Inches of irrigation | D211: =IF(D74>0,D74,0) -> 0 | E211: 0 | F211: 0 | G211: 0 | H211: 0 | I211: 0 | K211: =SUM(D211:I211) -> 0
B212: Acre-inches | D212: =D210*D211 -> 0 | E212: 0 | F212: 0 | G212: 0 | H212: 0 | I212: 0 | K212: =SUM(D212:I212) -> 0
B213: Percent of total water | D213: =IF($K211>0,D212/$K212,"n/a") -> n/a | E213: n/a | F213: n/a | G213: n/a | H213: n/a | I213: n/a | K213: =SUM(D213:I213) -> 0
B214: Percent of total dep & int | D214: =IF($K212>0,(D210/$K210*$K238+D212/$K212*$K239),0) -> 0 | E214: 0 | F214: 0 | G214: 0 | H214: 0 | I214: 0 | K214: =SUM(D214:I214) -> 0 | L214: <== see NOTE 1
B216: Breakdown of irrigation expenses
C217: 11. Irrigation
C218: a. Labor | D218: =D100*$K100 -> 0 | E218: 0 | F218: 0 | G218: 0 | H218: 0 | I218: 0 | K218: =SUMPRODUCT(D218:I218,D$210:I$210) -> 0
C219: b. Fuel and oil | D219: =D74*$K74 -> 0 | E219: 0 | F219: 0 | G219: 0 | H219: 0 | I219: 0 | K219: 0
C220: c. Repair and Maintenance | D220: =D74*$K75 -> 0 | E220: 0 | F220: 0 | G220: 0 | H220: 0 | I220: 0 | K220: 0
C221: d. Depreciation | D221: =IF(D$210=0,0,$L221*D$214/D$210) -> 0 | E221: =IF(E$210=0,0,$L221*E$214/E$210) -> 0 | F221: 0 | G221: 0 | H221: 0 | I221: 0 | K221: 0 | L221: =IF(SUM(D107:D109)=0,0,$D107*(1-$I107)/$G107+$D108*(1-$I108)/$G108+$D109*(1-$I109)/$G109) -> 0
C222: e. Interest | D222: =IF(D$210=0,0,$L222*D$214/D$210) -> 0 | E222: 0 | F222: 0 | G222: 0 | H222: 0 | I222: 0 | K222: 0 | L222: =IF(SUM(D107:D109)=0,0,($D107*(1+$I107)/2+$D108*(1+$I108)/2+$D109*(1+$I109)/2)*$K104) -> 0
C223: Depreciation and interest | D223: =D221+D222 -> 0 | E223: 0 | F223: 0 | G223: 0 | H223: 0 | I223: 0 | K223: 0 | L223: =L221+L222 -> 0
B225: Depreciation on …
C226: … well, pump and gearhead | D226: =IF(D$210=0,0,$L226*D$214/D$210) -> 0 | E226: =IF(E$210=0,0,$L226*E$214/E$210) -> 0 | F226: 0 | G226: 0 | H226: 0 | I226: 0 | K226: =SUMPRODUCT(D226:I226,D$210:I$210) -> 0 | L226: =IF(SUM(D107:D109)=0,0,$D107*(1-$I107)/$G107) -> 0
C227: … motor | D227: =IF(D$210=0,0,$L227*D$214/D$210) -> 0 | E227: 0 | F227: 0 | G227: 0 | H227: 0 | I227: 0 | K227: =SUMPRODUCT(D227:I227,D$210:I$210) -> 0 | L227: =IF(SUM(D107:D109)=0,0,$D108*(1-$I108)/$G108) -> 0
C228: … irrigation system | D228: =IF(D$210=0,0,$L228*D$214/D$210) -> 0 | E228: 0 | F228: 0 | G228: 0 | H228: 0 | I228: 0 | K228: =SUMPRODUCT(D228:I228,D$210:I$210) -> 0 | L228: =IF(SUM(D107:D109)=0,0,$D109*(1-$I109)/$G109) -> 0
C229: Total | D229: =SUM(D226:D228) -> 0 | E229: 0 | F229: 0 | G229: 0 | H229: 0 | I229: 0 | K229: =SUMPRODUCT(D229:I229,D$210:I$210) -> 0
B231: Interest on …
C232: … well, pump and gearhead | D232: =IF(D$210=0,0,$L232*D$214/D$210) -> 0 | E232: =IF(E$210=0,0,$L232*E$214/E$210) -> 0 | F232: 0 | G232: 0 | H232: 0 | I232: 0 | K232: =SUMPRODUCT(D232:I232,D$210:I$210) -> 0 | L232: =IF(SUM(D107:D109)=0,0,($D107*(1+$I107)/2)*$K104) -> 0
C233: … motor | D233: =IF(D$210=0,0,$L233*D$214/D$210) -> 0 | E233: 0 | F233: 0 | G233: 0 | H233: 0 | I233: 0 | K233: =SUMPRODUCT(D233:I233,D$210:I$210) -> 0 | L233: =IF(SUM(D107:D109)=0,0,($D108*(1+$I108)/2)*$K104) -> 0
C234: … irrigation system | D234: =IF(D$210=0,0,$L234*D$214/D$210) -> 0 | E234: 0 | F234: 0 | G234: 0 | H234: 0 | I234: 0 | K234: =SUMPRODUCT(D234:I234,D$210:I$210) -> 0 | L234: =IF(SUM(D107:D109)=0,0,($D109*(1+$I109)/2)*$K104) -> 0
C235: Total | D235: =SUM(D232:D234) -> 0 | E235: 0 | F235: 0 | G235: 0 | H235: 0 | I235: 0 | K235: =SUMPRODUCT(D235:I235,D$210:I$210) -> 0
B237: NOTE 1
C238: Portion of irrigation depreication and interest that is based on acres | K238: 0.67
C239: Portion of irrigation depreication and interest that is based on acre-inches | K239: =1-K238 -> 0.33
B241: NOTE 2
C242: Portion of machinery expense that is depreciation and interest | K242: =0.211+0.124 -> 0.335
K243: =0.231+0.135 -> 0.366
B245: Adjustment to formula to allow for breakeven yields below "high yield" charge
B246: N. Breakeven yield (w/ base crop) | D246: =IF(SUM($D39:$I39)*D9=0,"n/a",(SUMPRODUCT($D32:$I32,$D39:$I39)/SUM($D39:$I39)-SUM(D11:D13)+(SUM(D17:D22,D24,D26,D218:D220)+(D83+SUMPRODUCT(D85:D92,$K85:$K92)+D94))*(1+0.5*$K104)+SUM(D221:D222)+D28)/(D10-(SUM(D97))*(1+0.5*$K104)-D76)) -> 51.29659296 | E246: 81.65600464 | F246: 28.43547044 | G246: 99.98686276 | H246: n/a | I246: n/a
B247: N. Breakeven yield (w/ base crop) | D247: =IF(SUM($D39:$I39)*D9=0,"n/a",(SUMPRODUCT($D32:$I32,$D39:$I39)/SUM($D39:$I39)-SUM(D11:D13)+(SUM(D17:D22,D24,D26,D218:D220)+(D83+SUMPRODUCT(D85:D92,$K85:$K92)+D94-D95*D96))*(1+0.5*$K104)+SUM(D221:D222)+D28)/(D10-(SUM(D95,D97))*(1+0.5*$K104)-D76)) -> 52.7070431 | E247: 85.36790133 | F247: 28.42017468 | G247: 101.8624954 | H247: n/a | I247: n/a
B250: Depreciation and interest on sprinkler | D250: =D228+D234 -> 0 | E250: 0 | F250: 0 | G250: 0 | H250: 0 | I250: 0 | K250: =K228+K234 -> 0 | M250: ="<= $"&FIXED(D109,0)&" w/ "&FIXED(I109*100,0)&"% salvage value ("&FIXED(G109,0)&" years)" -> <= $0 w/ 10% salvage value (20 years)
B251: Depreciation and interest on sprinkler | D251: 31.92858553 | E251: 31.09946053 | F251: 26.12471053 | G251: 22.80821053 | H251: 0 | I251: 0 | K251: 4422 | M251: <= $33,000 w/ 10% salvage value (10 years)

Sheet Shares
B2: TABLE 5. Breakdown of Shares of Expenses
B3: Landowner ==================> | D3: North Central KS landowner | L3: =NOW() -> 2016-08-01T13:32:39.680
B4: Operator ==================> | D4: NC KS farmer | L4: =NOW() -> 42583.56435
B5: Basis for equitable share calculations: For the entire rotation (L5 = 0), Crop-by-crop (L5 = 1) | K5: L5 ==> | L5: 0
B7: OPERATOR'S share of production inputs (enter -100% if equitably shared)
B8: Crop/System | D8: =IF('Crop budgets'!D$5>0,'Crop budgets'!D$4,"---") -> Wheat | E8: =IF('Crop budgets'!E$5>0,'Crop budgets'!E$4,"---") -> Milo | F8: =IF('Crop budgets'!F$5>0,'Crop budgets'!F$4,"---") -> Soybeans | G8: =IF('Crop budgets'!G$5>0,'Crop budgets'!G$4,"---") -> Corn | H8: =IF('Crop budgets'!H$5>0,'Crop budgets'!H$4,"---") -> --- | I8: =IF('Crop budgets'!I$5>0,'Crop budgets'!I$4,"---") -> --- | L8: Total
B9: Planted acres | D9: =IF('Crop budgets'!D$5>0,'Crop budgets'!D$5,"---") -> 80 | E9: =IF('Crop budgets'!E$5>0,'Crop budgets'!E$5,"---") -> 20 | F9: =IF('Crop budgets'!F$5>0,'Crop budgets'!F$5,"---") -> 30 | G9: =IF('Crop budgets'!G$5>0,'Crop budgets'!G$5,"---") -> 30 | H9: =IF('Crop budgets'!H$5>0,'Crop budgets'!H$5,"---") -> --- | I9: =IF('Crop budgets'!I$5>0,'Crop budgets'!I$5,"---") -> --- | L9: ='Crop budgets'!K$5 -> 160
B10: Seed | D10: 1 | E10: =D10 -> 1 | F10: 1 | G10: =E10 -> 1 | H10: =F10 -> 1 | I10: =G10 -> 1
B11: Fertilizer:
C12: ='Crop budgets'!C50 -> 82-0-0 | D12: -1 | E12: =D12 -> -1 | F12: =E12 -> -1 | G12: =F12 -> -1 | H12: =G12 -> -1 | I12: =H12 -> -1
C13: ='Crop budgets'!C51 -> N (dry/liquid) | D13: =D12 -> -1 | E13: =D13 -> -1 | F13: -1 | G13: -1 | H13: -1 | I13: -1
C14: ='Crop budgets'!C52 -> P | D14: =D13 -> -1 | E14: -1 | F14: -1 | G14: -1 | H14: -1 | I14: -1
C15: ='Crop budgets'!C53 -> K | D15: =D14 -> -1 | E15: =D15 -> -1 | F15: -1 | G15: -1 | H15: -1 | I15: -1
C16: ='Crop budgets'!C54 -> xxx | D16: =D15 -> -1 | E16: -1 | F16: -1 | G16: -1 | H16: -1 | I16: -1
C17: ='Crop budgets'!C55 -> xxx | D17: =D16 -> -1 | E17: -1 | F17: -1 | G17: -1 | H17: -1 | I17: -1
C18: ='Crop budgets'!C56 -> xxx | D18: =D14 -> -1 | E18: -1 | F18: -1 | G18: -1 | H18: -1 | I18: -1
C19: ='Crop budgets'!C57 -> Lime | D19: 0 | E19: 0 | F19: 0 | G19: 0 | H19: 0 | I19: 0
B20: Herbicide
C21: ='Crop budgets'!C59 -> Finesse | D21: 1 | E21: =D21 -> 1 | F21: 1 | G21: 1 | H21: 1 | I21: 1
C22: ='Crop budgets'!C60 -> + Surfactant | D22: =D21 -> 1 | E22: 1 | F22: 1 | G22: 1 | H22: 1 | I22: 1
C23: ='Crop budgets'!C61 -> Bicep II Magnum | D23: =D22 -> 1 | E23: 1 | F23: 1 | G23: 1 | H23: 1 | I23: 1
C24: ='Crop budgets'!C62 -> Status | D24: =D23 -> 1 | E24: 1 | F24: 1 | G24: 1 | H24: 1 | I24: 1
C25: ='Crop budgets'!C63 -> Glyphosate | D25: =D24 -> 1 | E25: =D25 -> 1 | F25: 1 | G25: 1 | H25: 1 | I25: 1
C26: ='Crop budgets'!C64 -> + Ammonium Sulfate | D26: 1 | E26: 1 | F26: 1 | G26: 1 | H26: 1 | I26: 1
C27: ='Crop budgets'!C65 -> Glyphosate + Ammonium Sulfate | D27: 1 | E27: 1 | F27: 1 | G27: 1 | H27: 1 | I27: 1
C28: ='Crop budgets'!C66 -> Roundup Weather Max | D28: 1 | E28: 1 | F28: 1 | G28: 1 | H28: 1 | I28: 1
C29: ='Crop budgets'!C67 -> Buctril + Atrazine | D29: 1 | E29: 1 | F29: 1 | G29: 1 | H29: 1 | I29: 1
C30: ='Crop budgets'!C68 -> xxx | D30: 1 | E30: 1 | F30: 1 | G30: 1 | H30: 1 | I30: 1
B31: Insecticide / Fungicide
C32: ='Crop budgets'!C70 -> Seedbox treatment | D32: =D21 -> 1 | E32: =D32 -> 1 | F32: 1 | G32: 1 | H32: 1 | I32: 1
C33: ='Crop budgets'!C71 -> Capture 2EC | D33: =D32 -> 1 | E33: 1 | F33: 1 | G33: 1 | H33: 1 | I33: 1
C34: ='Crop budgets'!C72 -> Headline | D34: =D33 -> 1 | E34: 1 | F34: 1 | G34: 1 | H34: 1 | I34: 1
C35: ='Crop budgets'!C73 -> Warrior 1EC | D35: =D34 -> 1 | E35: 1 | F35: 1 | G35: 1 | H35: 1 | I35: 1
B36: Crop consulting | D36: 1 | E36: 1 | F36: 1 | G36: 1 | H36: 1 | I36: 1
B37: Crop insurance | D37: -1 | E37: -1 | F37: -1 | G37: -1 | H37: -1 | I37: -1
B38: Drying cost | D38: -1 | E38: -1 | F38: -1 | G38: -1 | H38: -1 | I38: -1
B39: Operator's equitable share (OS%) | D39: =IF('Crop budgets'!D$5>0,D182,"") -> 0.7299482232 | E39: =IF('Crop budgets'!E$5>0,E182,"") -> 0.7570433 | F39: =IF('Crop budgets'!F$5>0,F182,"") -> 0.7536637435 | G39: =IF('Crop budgets'!G$5>0,G182,"") -> 0.8166687028 | H39: =IF('Crop budgets'!H$5>0,H182,"") ->  | I39: =IF('Crop budgets'!I$5>0,I182,"") ->  | L39: =L182 -> 0.759029473
B42: Crop/System | D42: =IF('Crop budgets'!D$5>0,'Crop budgets'!D$4,"---") -> Wheat | E42: =IF('Crop budgets'!E$5>0,'Crop budgets'!E$4,"---") -> Milo | F42: =IF('Crop budgets'!F$5>0,'Crop budgets'!F$4,"---") -> Soybeans | G42: =IF('Crop budgets'!G$5>0,'Crop budgets'!G$4,"---") -> Corn | H42: =IF('Crop budgets'!H$5>0,'Crop budgets'!H$4,"---") -> --- | I42: =IF('Crop budgets'!I$5>0,'Crop budgets'!I$4,"---") -> --- | L42: Total
B43: Planted acres | D43: =IF('Crop budgets'!D$5>0,'Crop budgets'!D$5,"---") -> 80 | E43: =IF('Crop budgets'!E$5>0,'Crop budgets'!E$5,"---") -> 20 | F43: =IF('Crop budgets'!F$5>0,'Crop budgets'!F$5,"---") -> 30 | G43: =IF('Crop budgets'!G$5>0,'Crop budgets'!G$5,"---") -> 30 | H43: =IF('Crop budgets'!H$5>0,'Crop budgets'!H$5,"---") -> --- | I43: =IF('Crop budgets'!I$5>0,'Crop budgets'!I$5,"---") -> --- | L43: ='Crop budgets'!K$5 -> 160
B45: OPERATOR'S share of machinery, labor, irrigation, and land (enter -100% if shared equitably)
B46: Drill/Plant | D46: 1 | E46: =D46 -> 1 | F46: =E46 -> 1 | G46: =F46 -> 1 | H46: =G46 -> 1 | I46: =H46 -> 1
B47: Tillage and Chemical Applications:
C48: ='Crop budgets'!C85 -> Chisel | D48: 1 | E48: =D48 -> 1 | F48: =E48 -> 1 | G48: =F48 -> 1 | H48: =G48 -> 1 | I48: =H48 -> 1
C49: ='Crop budgets'!C86 -> Disk | D49: 1 | E49: =D49 -> 1 | F49: 1 | G49: 1 | H49: 1 | I49: 1
C50: ='Crop budgets'!C87 -> Field cultivate | D50: 1 | E50: 1 | F50: 1 | G50: 1 | H50: 1 | I50: 1
C51: ='Crop budgets'!C88 -> Strip-till | D51: 1 | E51: 1 | F51: 1 | G51: 1 | H51: 1 | I51: 1
C52: ='Crop budgets'!C89 -> Anhydrous application | D52: 1 | E52: 1 | F52: 1 | G52: 1 | H52: 1 | I52: 1
C53: ='Crop budgets'!C90 -> Fertilizer application | D53: 1 | E53: 1 | F53: 1 | G53: 1 | H53: 1 | I53: 1
C54: ='Crop budgets'!C91 -> Herbicide application | D54: 1 | E54: 1 | F54: 1 | G54: 1 | H54: 1 | I54: 1
C55: ='Crop budgets'!C92 -> Insecticide/fungicide application | D55: 1 | E55: 1 | F55: 1 | G55: =F55 -> 1 | H55: =G55 -> 1 | I55: =H55 -> 1
B56: Harvest
C57: Harvest | D57: 1 | E57: =D57 -> 1 | F57: 1 | G57: 1 | H57: 1 | I57: 1
C58: Hauling | D58: 1 | E58: 1 | F58: 1 | G58: 1 | H58: 1 | I58: 1
B60: Miscellaneous | D60: 0.75 | E60: =D60 -> 0.75 | F60: 0.75 | G60: 0.75 | H60: 0.75 | I60: 0.75
B61: Non-machinery labor | D61: 1 | E61: 1 | F61: 1 | G61: 1 | H61: 1 | I61: 1
B63: Irrigation expenses
C64: Labor | D64: 1 | E64: =D64 -> 1 | F64: =E64 -> 1 | G64: =F64 -> 1 | H64: =G64 -> 1 | I64: =H64 -> 1
C65: Fuel and oil | D65: 1 | E65: =D65 -> 1 | F65: 1 | G65: 1 | H65: 1 | I65: 1
C66: Repair and maintenance | D66: 1 | E66: 1 | F66: 1 | G66: 1 | H66: 1 | I66: 1
B67: Irrigation investment
C68: Well, pump and gearhead | D68: 0 | E68: 0 | F68: 0 | G68: 0 | H68: 0 | I68: 0
C69: Motor | D69: 1 | E69: 1 | F69: 1 | G69: 1 | H69: 1 | I69: 1
C70: Irrigation system | D70: 1 | E70: 1 | F70: 1 | G70: 1 | H70: 1 | I70: 1
B72: Land | D72: 0 | E72: =D72 -> 0 | F72: 0 | G72: 0 | H72: =G72 -> 0 | I72: 0
B73: Cash payment to landowner, $/acre | D73: 0 | E73: 0 | F73: 0 | G73: 0 | H73: =G73 -> 0 | I73: 0 | L73: =SUMPRODUCT(D43:I43,D73:I73) -> 0
B74: Operator's equitable share (OS%) | D74: =IF('Crop budgets'!D$5>0,D182,"") -> 0.7299482232 | E74: =IF('Crop budgets'!E$5>0,E182,"") -> 0.7570433 | F74: =IF('Crop budgets'!F$5>0,F182,"") -> 0.7536637435 | G74: =IF('Crop budgets'!G$5>0,G182,"") -> 0.8166687028 | H74: =IF('Crop budgets'!H$5>0,H182,"") ->  | I74: =IF('Crop budgets'!I$5>0,I182,"") ->  | L74: =L182 -> 0.759029473
B75: Landowner's equitable share (LS%) | D75: =IF('Crop budgets'!D$5>0,1-D74,"") -> 0.2700517768 | E75: =IF('Crop budgets'!E$5>0,1-E74,"") -> 0.2429567 | F75: =IF('Crop budgets'!F$5>0,1-F74,"") -> 0.2463362565 | G75: =IF('Crop budgets'!G$5>0,1-G74,"") -> 0.1833312972 | H75: =IF('Crop budgets'!H$5>0,1-H74,"") ->  | I75: =IF('Crop budgets'!I$5>0,1-I74,"") ->  | L75: =1-L74 -> 0.240970527
B77: Pre-defined operator's share for income (crop sales and government payments)1
C78: Operator's share (if > 0, OS% will be over-ridden)
C79: 1 By entering a pre-defined share for the operator (landowner share is calculated as 100% minus operator share), the calculated equitable share percentage (cell L71) will be over-ridden and not used in the Lease Budgets tab.
B81: =IF(L78=0,"Operator and Landowner's income shares are based on the equitable concept.","Operator and Landowner's income shares are pre-defined and they may, or may not, be equitable.") -> Operator and Landowner's income shares are based on the equitable concept.
B112: Crop/System | D112: =IF('Crop budgets'!D$5>0,'Crop budgets'!D$4,"---") -> Wheat | E112: =IF('Crop budgets'!E$5>0,'Crop budgets'!E$4,"---") -> Milo | F112: =IF('Crop budgets'!F$5>0,'Crop budgets'!F$4,"---") -> Soybeans | G112: =IF('Crop budgets'!G$5>0,'Crop budgets'!G$4,"---") -> Corn | H112: =IF('Crop budgets'!H$5>0,'Crop budgets'!H$4,"---") -> --- | I112: =IF('Crop budgets'!I$5>0,'Crop budgets'!I$4,"---") -> --- | L112: Total
B113: Planted acres | D113: =IF('Crop budgets'!D$5>0,'Crop budgets'!D$5,"---") -> 80 | E113: =IF('Crop budgets'!E$5>0,'Crop budgets'!E$5,"---") -> 20 | F113: =IF('Crop budgets'!F$5>0,'Crop budgets'!F$5,"---") -> 30 | G113: =IF('Crop budgets'!G$5>0,'Crop budgets'!G$5,"---") -> 30 | H113: =IF('Crop budgets'!H$5>0,'Crop budgets'!H$5,"---") -> --- | I113: =IF('Crop budgets'!I$5>0,'Crop budgets'!I$5,"---") -> --- | L113: ='Crop budgets'!K$5 -> 160
B115: OPERATOR'S expense for production inputs (excluding "equitably shared" inputs)
B116: Seed | D116: =IF(D10=-1,0,D10*'Crop budgets'!D17) -> 16 | E116: =IF(E10=-1,0,E10*'Crop budgets'!E17) -> 18.9 | F116: =IF(F10=-1,0,F10*'Crop budgets'!F17) -> 61.6 | G116: =IF(G10=-1,0,G10*'Crop budgets'!G17) -> 93.6 | H116: =IF(H10=-1,0,H10*'Crop budgets'!H17) -> 0 | I116: =IF(I10=-1,0,I10*'Crop budgets'!I17) -> 0 | L116: =SUMPRODUCT(D$113:I$113,D116:I116) -> 6314
B117: Fertilizer:
C118: ='Crop budgets'!C50 -> 82-0-0 | D118: =IF(D12=-1,0,D12*'Crop budgets'!D50*'Crop budgets'!$K50) -> 0 | E118: =IF(E12=-1,0,E12*'Crop budgets'!E50*'Crop budgets'!$K50) -> 0 | F118: =IF(F12=-1,0,F12*'Crop budgets'!F50*'Crop budgets'!$K50) -> 0 | G118: =IF(G12=-1,0,G12*'Crop budgets'!G50*'Crop budgets'!$K50) -> 0 | H118: =IF(H12=-1,0,H12*'Crop budgets'!H50*'Crop budgets'!$K50) -> 0 | I118: =IF(I12=-1,0,I12*'Crop budgets'!I50*'Crop budgets'!$K50) -> 0 | L118: =SUMPRODUCT(D$113:I$113,D118:I118) -> 0
C119: ='Crop budgets'!C51 -> N (dry/liquid) | D119: =IF(D13=-1,0,D13*'Crop budgets'!D51*'Crop budgets'!$K51) -> 0 | E119: =IF(E13=-1,0,E13*'Crop budgets'!E51*'Crop budgets'!$K51) -> 0 | F119: =IF(F13=-1,0,F13*'Crop budgets'!F51*'Crop budgets'!$K51) -> 0 | G119: =IF(G13=-1,0,G13*'Crop budgets'!G51*'Crop budgets'!$K51) -> 0 | H119: =IF(H13=-1,0,H13*'Crop budgets'!H51*'Crop budgets'!$K51) -> 0 | I119: =IF(I13=-1,0,I13*'Crop budgets'!I51*'Crop budgets'!$K51) -> 0 | L119: 0
C120: ='Crop budgets'!C52 -> P | D120: =IF(D14=-1,0,D14*'Crop budgets'!D52*'Crop budgets'!$K52) -> 0 | E120: =IF(E14=-1,0,E14*'Crop budgets'!E52*'Crop budgets'!$K52) -> 0 | F120: =IF(F14=-1,0,F14*'Crop budgets'!F52*'Crop budgets'!$K52) -> 0 | G120: =IF(G14=-1,0,G14*'Crop budgets'!G52*'Crop budgets'!$K52) -> 0 | H120: =IF(H14=-1,0,H14*'Crop budgets'!H52*'Crop budgets'!$K52) -> 0 | I120: =IF(I14=-1,0,I14*'Crop budgets'!I52*'Crop budgets'!$K52) -> 0 | L120: 0
C121: ='Crop budgets'!C53 -> K | D121: =IF(D15=-1,0,D15*'Crop budgets'!D53*'Crop budgets'!$K53) -> 0 | E121: =IF(E15=-1,0,E15*'Crop budgets'!E53*'Crop budgets'!$K53) -> 0 | F121: =IF(F15=-1,0,F15*'Crop budgets'!F53*'Crop budgets'!$K53) -> 0 | G121: =IF(G15=-1,0,G15*'Crop budgets'!G53*'Crop budgets'!$K53) -> 0 | H121: =IF(H15=-1,0,H15*'Crop budgets'!H53*'Crop budgets'!$K53) -> 0 | I121: =IF(I15=-1,0,I15*'Crop budgets'!I53*'Crop budgets'!$K53) -> 0 | L121: 0
C122: ='Crop budgets'!C54 -> xxx | D122: =IF(D16=-1,0,D16*'Crop budgets'!D54*'Crop budgets'!$K54) -> 0 | E122: =IF(E16=-1,0,E16*'Crop budgets'!E54*'Crop budgets'!$K54) -> 0 | F122: =IF(F16=-1,0,F16*'Crop budgets'!F54*'Crop budgets'!$K54) -> 0 | G122: =IF(G16=-1,0,G16*'Crop budgets'!G54*'Crop budgets'!$K54) -> 0 | H122: =IF(H16=-1,0,H16*'Crop budgets'!H54*'Crop budgets'!$K54) -> 0 | I122: =IF(I16=-1,0,I16*'Crop budgets'!I54*'Crop budgets'!$K54) -> 0 | L122: 0
C123: ='Crop budgets'!C55 -> xxx | D123: =IF(D17=-1,0,D17*'Crop budgets'!D55*'Crop budgets'!$K55) -> 0 | E123: =IF(E17=-1,0,E17*'Crop budgets'!E55*'Crop budgets'!$K55) -> 0 | F123: =IF(F17=-1,0,F17*'Crop budgets'!F55*'Crop budgets'!$K55) -> 0 | G123: =IF(G17=-1,0,G17*'Crop budgets'!G55*'Crop budgets'!$K55) -> 0 | H123: =IF(H17=-1,0,H17*'Crop budgets'!H55*'Crop budgets'!$K55) -> 0 | I123: =IF(I17=-1,0,I17*'Crop budgets'!I55*'Crop budgets'!$K55) -> 0 | L123: 0
C124: ='Crop budgets'!C56 -> xxx | D124: =IF(D18=-1,0,D18*'Crop budgets'!D56*'Crop budgets'!$K56) -> 0 | E124: =IF(E18=-1,0,E18*'Crop budgets'!E56*'Crop budgets'!$K56) -> 0 | F124: =IF(F18=-1,0,F18*'Crop budgets'!F56*'Crop budgets'!$K56) -> 0 | G124: =IF(G18=-1,0,G18*'Crop budgets'!G56*'Crop budgets'!$K56) -> 0 | H124: =IF(H18=-1,0,H18*'Crop budgets'!H56*'Crop budgets'!$K56) -> 0 | I124: =IF(I18=-1,0,I18*'Crop budgets'!I56*'Crop budgets'!$K56) -> 0 | L124: 0
C125: ='Crop budgets'!C57 -> Lime | D125: =IF(D19=-1,0,D19*'Crop budgets'!D57*'Crop budgets'!$K57) -> 0 | E125: =IF(E19=-1,0,E19*'Crop budgets'!E57*'Crop budgets'!$K57) -> 0 | F125: =IF(F19=-1,0,F19*'Crop budgets'!F57*'Crop budgets'!$K57) -> 0 | G125: =IF(G19=-1,0,G19*'Crop budgets'!G57*'Crop budgets'!$K57) -> 0 | H125: =IF(H19=-1,0,H19*'Crop budgets'!H57*'Crop budgets'!$K57) -> 0 | I125: =IF(I19=-1,0,I19*'Crop budgets'!I57*'Crop budgets'!$K57) -> 0 | L125: 0
B126: Herbicide
C127: ='Crop budgets'!C59 -> Finesse | D127: =IF(D21=-1,0,D21*'Crop budgets'!D59*'Crop budgets'!$K59) -> 4.395 | E127: =IF(E21=-1,0,E21*'Crop budgets'!E59*'Crop budgets'!$K59) -> 0 | F127: =IF(F21=-1,0,F21*'Crop budgets'!F59*'Crop budgets'!$K59) -> 0 | G127: =IF(G21=-1,0,G21*'Crop budgets'!G59*'Crop budgets'!$K59) -> 0 | H127: =IF(H21=-1,0,H21*'Crop budgets'!H59*'Crop budgets'!$K59) -> 0 | I127: =IF(I21=-1,0,I21*'Crop budgets'!I59*'Crop budgets'!$K59) -> 0 | L127: =SUMPRODUCT(D$113:I$113,D127:I127) -> 351.6
C128: ='Crop budgets'!C60 -> + Surfactant | D128: =IF(D22=-1,0,D22*'Crop budgets'!D60*'Crop budgets'!$K60) -> 1.025 | E128: =IF(E22=-1,0,E22*'Crop budgets'!E60*'Crop budgets'!$K60) -> 0 | F128: =IF(F22=-1,0,F22*'Crop budgets'!F60*'Crop budgets'!$K60) -> 0 | G128: =IF(G22=-1,0,G22*'Crop budgets'!G60*'Crop budgets'!$K60) -> 0 | H128: =IF(H22=-1,0,H22*'Crop budgets'!H60*'Crop budgets'!$K60) -> 0 | I128: =IF(I22=-1,0,I22*'Crop budgets'!I60*'Crop budgets'!$K60) -> 0 | L128: 82
C129: ='Crop budgets'!C61 -> Bicep II Magnum | D129: =IF(D23=-1,0,D23*'Crop budgets'!D61*'Crop budgets'!$K61) -> 0 | E129: =IF(E23=-1,0,E23*'Crop budgets'!E61*'Crop budgets'!$K61) -> 15.92 | F129: =IF(F23=-1,0,F23*'Crop budgets'!F61*'Crop budgets'!$K61) -> 0 | G129: =IF(G23=-1,0,G23*'Crop budgets'!G61*'Crop budgets'!$K61) -> 19.9 | H129: =IF(H23=-1,0,H23*'Crop budgets'!H61*'Crop budgets'!$K61) -> 0 | I129: =IF(I23=-1,0,I23*'Crop budgets'!I61*'Crop budgets'!$K61) -> 0 | L129: 915.4
C130: ='Crop budgets'!C62 -> Status | D130: =IF(D24=-1,0,D24*'Crop budgets'!D62*'Crop budgets'!$K62) -> 0 | E130: =IF(E24=-1,0,E24*'Crop budgets'!E62*'Crop budgets'!$K62) -> 0 | F130: =IF(F24=-1,0,F24*'Crop budgets'!F62*'Crop budgets'!$K62) -> 0 | G130: =IF(G24=-1,0,G24*'Crop budgets'!G62*'Crop budgets'!$K62) -> 3.6 | H130: =IF(H24=-1,0,H24*'Crop budgets'!H62*'Crop budgets'!$K62) -> 0 | I130: =IF(I24=-1,0,I24*'Crop budgets'!I62*'Crop budgets'!$K62) -> 0 | L130: 108
C131: ='Crop budgets'!C63 -> Glyphosate | D131: =IF(D25=-1,0,D25*'Crop budgets'!D63*'Crop budgets'!$K63) -> 0 | E131: =IF(E25=-1,0,E25*'Crop budgets'!E63*'Crop budgets'!$K63) -> 0 | F131: =IF(F25=-1,0,F25*'Crop budgets'!F63*'Crop budgets'!$K63) -> 0 | G131: =IF(G25=-1,0,G25*'Crop budgets'!G63*'Crop budgets'!$K63) -> 3.608 | H131: =IF(H25=-1,0,H25*'Crop budgets'!H63*'Crop budgets'!$K63) -> 0 | I131: =IF(I25=-1,0,I25*'Crop budgets'!I63*'Crop budgets'!$K63) -> 0 | L131: 108.24
C132: ='Crop budgets'!C64 -> + Ammonium Sulfate | D132: =IF(D26=-1,0,D26*'Crop budgets'!D64*'Crop budgets'!$K64) -> 0 | E132: =IF(E26=-1,0,E26*'Crop budgets'!E64*'Crop budgets'!$K64) -> 0 | F132: =IF(F26=-1,0,F26*'Crop budgets'!F64*'Crop budgets'!$K64) -> 0.42 | G132: =IF(G26=-1,0,G26*'Crop budgets'!G64*'Crop budgets'!$K64) -> 0.42 | H132: =IF(H26=-1,0,H26*'Crop budgets'!H64*'Crop budgets'!$K64) -> 0 | I132: =IF(I26=-1,0,I26*'Crop budgets'!I64*'Crop budgets'!$K64) -> 0 | L132: 25.2
C133: ='Crop budgets'!C65 -> Glyphosate + Ammonium Sulfate | D133: =IF(D27=-1,0,D27*'Crop budgets'!D65*'Crop budgets'!$K65) -> 0 | E133: =IF(E27=-1,0,E27*'Crop budgets'!E65*'Crop budgets'!$K65) -> 4.03 | F133: =IF(F27=-1,0,F27*'Crop budgets'!F65*'Crop budgets'!$K65) -> 8.06 | G133: =IF(G27=-1,0,G27*'Crop budgets'!G65*'Crop budgets'!$K65) -> 0 | H133: =IF(H27=-1,0,H27*'Crop budgets'!H65*'Crop budgets'!$K65) -> 0 | I133: =IF(I27=-1,0,I27*'Crop budgets'!I65*'Crop budgets'!$K65) -> 0 | L133: 322.4
C134: ='Crop budgets'!C66 -> Roundup Weather Max | D134: =IF(D28=-1,0,D28*'Crop budgets'!D66*'Crop budgets'!$K66) -> 0 | E134: =IF(E28=-1,0,E28*'Crop budgets'!E66*'Crop budgets'!$K66) -> 0 | F134: =IF(F28=-1,0,F28*'Crop budgets'!F66*'Crop budgets'!$K66) -> 5.06 | G134: =IF(G28=-1,0,G28*'Crop budgets'!G66*'Crop budgets'!$K66) -> 0 | H134: =IF(H28=-1,0,H28*'Crop budgets'!H66*'Crop budgets'!$K66) -> 0 | I134: =IF(I28=-1,0,I28*'Crop budgets'!I66*'Crop budgets'!$K66) -> 0 | L134: 151.8
C135: ='Crop budgets'!C67 -> Buctril + Atrazine | D135: =IF(D29=-1,0,D29*'Crop budgets'!D67*'Crop budgets'!$K67) -> 0 | E135: =IF(E29=-1,0,E29*'Crop budgets'!E67*'Crop budgets'!$K67) -> 16.66 | F135: =IF(F29=-1,0,F29*'Crop budgets'!F67*'Crop budgets'!$K67) -> 0 | G135: =IF(G29=-1,0,G29*'Crop budgets'!G67*'Crop budgets'!$K67) -> 0 | H135: =IF(H29=-1,0,H29*'Crop budgets'!H67*'Crop budgets'!$K67) -> 0 | I135: =IF(I29=-1,0,I29*'Crop budgets'!I67*'Crop budgets'!$K67) -> 0 | L135: 333.2
C136: ='Crop budgets'!C68 -> xxx | D136: =IF(D30=-1,0,D30*'Crop budgets'!D68*'Crop budgets'!$K68) -> 0 | E136: =IF(E30=-1,0,E30*'Crop budgets'!E68*'Crop budgets'!$K68) -> 0 | F136: =IF(F30=-1,0,F30*'Crop budgets'!F68*'Crop budgets'!$K68) -> 0 | G136: =IF(G30=-1,0,G30*'Crop budgets'!G68*'Crop budgets'!$K68) -> 0 | H136: =IF(H30=-1,0,H30*'Crop budgets'!H68*'Crop budgets'!$K68) -> 0 | I136: =IF(I30=-1,0,I30*'Crop budgets'!I68*'Crop budgets'!$K68) -> 0 | L136: 0
B137: Insecticide / Fungicide
C138: ='Crop budgets'!C70 -> Seedbox treatment | D138: =IF(D32=-1,0,D32*'Crop budgets'!D70*'Crop budgets'!$K70) -> 0 | E138: =IF(E32=-1,0,E32*'Crop budgets'!E70*'Crop budgets'!$K70) -> 0 | F138: =IF(F32=-1,0,F32*'Crop budgets'!F70*'Crop budgets'!$K70) -> 0 | G138: =IF(G32=-1,0,G32*'Crop budgets'!G70*'Crop budgets'!$K70) -> 0 | H138: =IF(H32=-1,0,H32*'Crop budgets'!H70*'Crop budgets'!$K70) -> 0 | I138: =IF(I32=-1,0,I32*'Crop budgets'!I70*'Crop budgets'!$K70) -> 0 | L138: =SUMPRODUCT(D$113:I$113,D138:I138) -> 0
C139: ='Crop budgets'!C71 -> Capture 2EC | D139: =IF(D33=-1,0,D33*'Crop budgets'!D71*'Crop budgets'!$K71) -> 0 | E139: =IF(E33=-1,0,E33*'Crop budgets'!E71*'Crop budgets'!$K71) -> 0 | F139: =IF(F33=-1,0,F33*'Crop budgets'!F71*'Crop budgets'!$K71) -> 0 | G139: =IF(G33=-1,0,G33*'Crop budgets'!G71*'Crop budgets'!$K71) -> 0 | H139: =IF(H33=-1,0,H33*'Crop budgets'!H71*'Crop budgets'!$K71) -> 0 | I139: =IF(I33=-1,0,I33*'Crop budgets'!I71*'Crop budgets'!$K71) -> 0 | L139: 0
C140: ='Crop budgets'!C72 -> Headline | D140: =IF(D34=-1,0,D34*'Crop budgets'!D72*'Crop budgets'!$K72) -> 30.42 | E140: =IF(E34=-1,0,E34*'Crop budgets'!E72*'Crop budgets'!$K72) -> 0 | F140: =IF(F34=-1,0,F34*'Crop budgets'!F72*'Crop budgets'!$K72) -> 0 | G140: =IF(G34=-1,0,G34*'Crop budgets'!G72*'Crop budgets'!$K72) -> 0 | H140: =IF(H34=-1,0,H34*'Crop budgets'!H72*'Crop budgets'!$K72) -> 0 | I140: =IF(I34=-1,0,I34*'Crop budgets'!I72*'Crop budgets'!$K72) -> 0 | L140: 2433.6
C141: ='Crop budgets'!C73 -> Warrior 1EC | D141: =IF(D35=-1,0,D35*'Crop budgets'!D73*'Crop budgets'!$K73) -> 0 | E141: =IF(E35=-1,0,E35*'Crop budgets'!E73*'Crop budgets'!$K73) -> 0 | F141: =IF(F35=-1,0,F35*'Crop budgets'!F73*'Crop budgets'!$K73) -> 0 | G141: =IF(G35=-1,0,G35*'Crop budgets'!G73*'Crop budgets'!$K73) -> 0 | H141: =IF(H35=-1,0,H35*'Crop budgets'!H73*'Crop budgets'!$K73) -> 0 | I141: =IF(I35=-1,0,I35*'Crop budgets'!I73*'Crop budgets'!$K73) -> 0 | L141: 0
B142: Crop consulting | D142: =IF(D36=-1,0,D36*'Crop budgets'!D21) -> 0 | E142: =IF(E36=-1,0,E36*'Crop budgets'!E21) -> 0 | F142: =IF(F36=-1,0,F36*'Crop budgets'!F21) -> 0 | G142: =IF(G36=-1,0,G36*'Crop budgets'!G21) -> 0 | H142: =IF(H36=-1,0,H36*'Crop budgets'!H21) -> 0 | I142: =IF(I36=-1,0,I36*'Crop budgets'!I21) -> 0 | L142: 0
B143: Crop insurance | D143: =IF(D37=-1,0,D37*'Crop budgets'!D22) -> 0 | E143: =IF(E37=-1,0,E37*'Crop budgets'!E22) -> 0 | F143: =IF(F37=-1,0,F37*'Crop budgets'!F22) -> 0 | G143: =IF(G37=-1,0,G37*'Crop budgets'!G22) -> 0 | H143: =IF(H37=-1,0,H37*'Crop budgets'!H22) -> 0 | I143: =IF(I37=-1,0,I37*'Crop budgets'!I22) -> 0 | L143: 0
B144: Drying cost | D144: =IF(D38=-1,0,D38*'Crop budgets'!D23) -> 0 | E144: =IF(E38=-1,0,E38*'Crop budgets'!E23) -> 0 | F144: =IF(F38=-1,0,F38*'Crop budgets'!F23) -> 0 | G144: =IF(G38=-1,0,G38*'Crop budgets'!G23) -> 0 | H144: =IF(H38=-1,0,H38*'Crop budgets'!H23) -> 0 | I144: =IF(I38=-1,0,I38*'Crop budgets'!I23) -> 0 | L144: 0
B150: OPERATOR'S expense for machinery, labor, irrigation, and land costs (excluding "equitably shared" inputs)
B151: Drill/Plant | D151: =IF(D46=-1,0,D46*'Crop budgets'!D83*'Crop budgets'!$K136) -> 25.224 | E151: =IF(E46=-1,0,E46*'Crop budgets'!E83*'Crop budgets'!$K136) -> 23.52 | F151: =IF(F46=-1,0,F46*'Crop budgets'!F83*'Crop budgets'!$K136) -> 24.312 | G151: =IF(G46=-1,0,G46*'Crop budgets'!G83*'Crop budgets'!$K136) -> 23.772 | H151: =IF(H46=-1,0,H46*'Crop budgets'!H83*'Crop budgets'!$K136) -> 0 | I151: =IF(I46=-1,0,I46*'Crop budgets'!I83*'Crop budgets'!$K136) -> 0 | L151: =SUMPRODUCT(D$113:I$113,D151:I151) -> 3930.84
B152: Tillage and Chemical Applications:
C153: ='Crop budgets'!C85 -> Chisel | D153: =IF(D48=-1,0,D48*'Crop budgets'!D85*'Crop budgets'!$K85*'Crop budgets'!$K136) -> 0 | E153: =IF(E48=-1,0,E48*'Crop budgets'!E85*'Crop budgets'!$K85*'Crop budgets'!$K136) -> 0 | F153: =IF(F48=-1,0,F48*'Crop budgets'!F85*'Crop budgets'!$K85*'Crop budgets'!$K136) -> 0 | G153: =IF(G48=-1,0,G48*'Crop budgets'!G85*'Crop budgets'!$K85*'Crop budgets'!$K136) -> 0 | H153: =IF(H48=-1,0,H48*'Crop budgets'!H85*'Crop budgets'!$K85*'Crop budgets'!$K136) -> 0 | I153: =IF(I48=-1,0,I48*'Crop budgets'!I85*'Crop budgets'!$K85*'Crop budgets'!$K136) -> 0 | L153: =SUMPRODUCT(D$113:I$113,D153:I153) -> 0
C154: ='Crop budgets'!C86 -> Disk | D154: =IF(D49=-1,0,D49*'Crop budgets'!D86*'Crop budgets'!$K86*'Crop budgets'!$K136) -> 0 | E154: =IF(E49=-1,0,E49*'Crop budgets'!E86*'Crop budgets'!$K86*'Crop budgets'!$K136) -> 0 | F154: =IF(F49=-1,0,F49*'Crop budgets'!F86*'Crop budgets'!$K86*'Crop budgets'!$K136) -> 0 | G154: =IF(G49=-1,0,G49*'Crop budgets'!G86*'Crop budgets'!$K86*'Crop budgets'!$K136) -> 0 | H154: =IF(H49=-1,0,H49*'Crop budgets'!H86*'Crop budgets'!$K86*'Crop budgets'!$K136) -> 0 | I154: =IF(I49=-1,0,I49*'Crop budgets'!I86*'Crop budgets'!$K86*'Crop budgets'!$K136) -> 0 | L154: 0
C155: ='Crop budgets'!C87 -> Field cultivate | D155: =IF(D50=-1,0,D50*'Crop budgets'!D87*'Crop budgets'!$K87*'Crop budgets'!$K136) -> 0 | E155: =IF(E50=-1,0,E50*'Crop budgets'!E87*'Crop budgets'!$K87*'Crop budgets'!$K136) -> 0 | F155: =IF(F50=-1,0,F50*'Crop budgets'!F87*'Crop budgets'!$K87*'Crop budgets'!$K136) -> 0 | G155: =IF(G50=-1,0,G50*'Crop budgets'!G87*'Crop budgets'!$K87*'Crop budgets'!$K136) -> 0 | H155: =IF(H50=-1,0,H50*'Crop budgets'!H87*'Crop budgets'!$K87*'Crop budgets'!$K136) -> 0 | I155: =IF(I50=-1,0,I50*'Crop budgets'!I87*'Crop budgets'!$K87*'Crop budgets'!$K136) -> 0 | L155: 0
C156: ='Crop budgets'!C88 -> Strip-till | D156: =IF(D51=-1,0,D51*'Crop budgets'!D88*'Crop budgets'!$K88*'Crop budgets'!$K136) -> 0 | E156: =IF(E51=-1,0,E51*'Crop budgets'!E88*'Crop budgets'!$K88*'Crop budgets'!$K136) -> 0 | F156: =IF(F51=-1,0,F51*'Crop budgets'!F88*'Crop budgets'!$K88*'Crop budgets'!$K136) -> 0 | G156: =IF(G51=-1,0,G51*'Crop budgets'!G88*'Crop budgets'!$K88*'Crop budgets'!$K136) -> 0 | H156: =IF(H51=-1,0,H51*'Crop budgets'!H88*'Crop budgets'!$K88*'Crop budgets'!$K136) -> 0 | I156: =IF(I51=-1,0,I51*'Crop budgets'!I88*'Crop budgets'!$K88*'Crop budgets'!$K136) -> 0 | L156: 0
C157: ='Crop budgets'!C89 -> Anhydrous application | D157: =IF(D52=-1,0,D52*'Crop budgets'!D89*'Crop budgets'!$K89*'Crop budgets'!$K136) -> 0 | E157: =IF(E52=-1,0,E52*'Crop budgets'!E89*'Crop budgets'!$K89*'Crop budgets'!$K136) -> 15.096 | F157: =IF(F52=-1,0,F52*'Crop budgets'!F89*'Crop budgets'!$K89*'Crop budgets'!$K136) -> 0 | G157: =IF(G52=-1,0,G52*'Crop budgets'!G89*'Crop budgets'!$K89*'Crop budgets'!$K136) -> 15.096 | H157: =IF(H52=-1,0,H52*'Crop budgets'!H89*'Crop budgets'!$K89*'Crop budgets'!$K136) -> 0 | I157: =IF(I52=-1,0,I52*'Crop budgets'!I89*'Crop budgets'!$K89*'Crop budgets'!$K136) -> 0 | L157: 754.8
C158: ='Crop budgets'!C90 -> Fertilizer application | D158: =IF(D53=-1,0,D53*'Crop budgets'!D90*'Crop budgets'!$K90*'Crop budgets'!$K136) -> 7.332 | E158: =IF(E53=-1,0,E53*'Crop budgets'!E90*'Crop budgets'!$K90*'Crop budgets'!$K136) -> 7.332 | F158: =IF(F53=-1,0,F53*'Crop budgets'!F90*'Crop budgets'!$K90*'Crop budgets'!$K136) -> 7.332 | G158: =IF(G53=-1,0,G53*'Crop budgets'!G90*'Crop budgets'!$K90*'Crop budgets'!$K136) -> 7.332 | H158: =IF(H53=-1,0,H53*'Crop budgets'!H90*'Crop budgets'!$K90*'Crop budgets'!$K136) -> 0 | I158: =IF(I53=-1,0,I53*'Crop budgets'!I90*'Crop budgets'!$K90*'Crop budgets'!$K136) -> 0 | L158: 1173.12
C159: ='Crop budgets'!C91 -> Herbicide application | D159: =IF(D54=-1,0,D54*'Crop budgets'!D91*'Crop budgets'!$K91*'Crop budgets'!$K136) -> 7.08 | E159: =IF(E54=-1,0,E54*'Crop budgets'!E91*'Crop budgets'!$K91*'Crop budgets'!$K136) -> 14.16 | F159: =IF(F54=-1,0,F54*'Crop budgets'!F91*'Crop budgets'!$K91*'Crop budgets'!$K136) -> 21.24 | G159: =IF(G54=-1,0,G54*'Crop budgets'!G91*'Crop budgets'!$K91*'Crop budgets'!$K136) -> 14.16 | H159: =IF(H54=-1,0,H54*'Crop budgets'!H91*'Crop budgets'!$K91*'Crop budgets'!$K136) -> 0 | I159: =IF(I54=-1,0,I54*'Crop budgets'!I91*'Crop budgets'!$K91*'Crop budgets'!$K136) -> 0 | L159: 1911.6
C160: ='Crop budgets'!C92 -> Insecticide/fungicide application | D160: =IF(D55=-1,0,D55*'Crop budgets'!D92*'Crop budgets'!$K92*'Crop budgets'!$K136) -> 7.176 | E160: =IF(E55=-1,0,E55*'Crop budgets'!E92*'Crop budgets'!$K92*'Crop budgets'!$K136) -> 0 | F160: =IF(F55=-1,0,F55*'Crop budgets'!F92*'Crop budgets'!$K92*'Crop budgets'!$K136) -> 0 | G160: =IF(G55=-1,0,G55*'Crop budgets'!G92*'Crop budgets'!$K92*'Crop budgets'!$K136) -> 0 | H160: =IF(H55=-1,0,H55*'Crop budgets'!H92*'Crop budgets'!$K92*'Crop budgets'!$K136) -> 0 | I160: =IF(I55=-1,0,I55*'Crop budgets'!I92*'Crop budgets'!$K92*'Crop budgets'!$K136) -> 0 | L160: 574.08
B161: Harvest
C162: Harvest | D162: =IF(D57=-1,0,D57*('Crop budgets'!D94+'Crop budgets'!D207*'Crop budgets'!D95)*'Crop budgets'!$K136) -> 37.716 | E162: =IF(E57=-1,0,E57*('Crop budgets'!E94+'Crop budgets'!E207*'Crop budgets'!E95)*'Crop budgets'!$K136) -> 41.712 | F162: =IF(F57=-1,0,F57*('Crop budgets'!F94+'Crop budgets'!F207*'Crop budgets'!F95)*'Crop budgets'!$K136) -> 36.816 | G162: =IF(G57=-1,0,G57*('Crop budgets'!G94+'Crop budgets'!G207*'Crop budgets'!G95)*'Crop budgets'!$K136) -> 41.316 | H162: =IF(H57=-1,0,H57*('Crop budgets'!H94+'Crop budgets'!H207*'Crop budgets'!H95)*'Crop budgets'!$K136) -> 0 | I162: =IF(I57=-1,0,I57*('Crop budgets'!I94+'Crop budgets'!I207*'Crop budgets'!I95)*'Crop budgets'!$K136) -> 0 | L162: =SUMPRODUCT(D$113:I$113,D162:I162) -> 6195.48
C163: Hauling | D163: =IF(D58=-1,0,D58*('Crop budgets'!D9*'Crop budgets'!D97)*'Crop budgets'!$K136) -> 13.44 | E163: =IF(E58=-1,0,E58*('Crop budgets'!E9*'Crop budgets'!E97)*'Crop budgets'!$K136) -> 18.48 | F163: =IF(F58=-1,0,F58*('Crop budgets'!F9*'Crop budgets'!F97)*'Crop budgets'!$K136) -> 7.2 | G163: =IF(G58=-1,0,G58*('Crop budgets'!G9*'Crop budgets'!G97)*'Crop budgets'!$K136) -> 36.72 | H163: =IF(H58=-1,0,H58*('Crop budgets'!H9*'Crop budgets'!H97)*'Crop budgets'!$K136) -> 0 | I163: =IF(I58=-1,0,I58*('Crop budgets'!I9*'Crop budgets'!I97)*'Crop budgets'!$K136) -> 0 | L163: =SUMPRODUCT(D$113:I$113,D163:I163) -> 2762.4
B165: Miscellaneous | D165: =IF(D60=-1,0,D60*'Crop budgets'!D24) -> 4.875 | E165: =IF(E60=-1,0,E60*'Crop budgets'!E24) -> 4.875 | F165: =IF(F60=-1,0,F60*'Crop budgets'!F24) -> 4.875 | G165: =IF(G60=-1,0,G60*'Crop budgets'!G24) -> 4.875 | H165: =IF(H60=-1,0,H60*'Crop budgets'!H24) -> 0 | I165: =IF(I60=-1,0,I60*'Crop budgets'!I24) -> 0 | L165: =SUMPRODUCT(D$113:I$113,D165:I165) -> 780
B166: Non-machinery labor | D166: =IF(D61=-1,0,D61*'Crop budgets'!D26) -> 15 | E166: =IF(E61=-1,0,E61*'Crop budgets'!E26) -> 15 | F166: =IF(F61=-1,0,F61*'Crop budgets'!F26) -> 15 | G166: =IF(G61=-1,0,G61*'Crop budgets'!G26) -> 15 | H166: =IF(H61=-1,0,H61*'Crop budgets'!H26) -> 0 | I166: =IF(I61=-1,0,I61*'Crop budgets'!I26) -> 0 | L166: =SUMPRODUCT(D$113:I$113,D166:I166) -> 2400
B168: Irrigation expenses
C169: Labor | D169: =IF(D64=-1,0,D64*'Crop budgets'!D218) -> 0 | E169: =IF(E64=-1,0,E64*'Crop budgets'!E218) -> 0 | F169: =IF(F64=-1,0,F64*'Crop budgets'!F218) -> 0 | G169: =IF(G64=-1,0,G64*'Crop budgets'!G218) -> 0 | H169: =IF(H64=-1,0,H64*'Crop budgets'!H218) -> 0 | I169: =IF(I64=-1,0,I64*'Crop budgets'!I218) -> 0 | L169: =SUMPRODUCT(D$113:I$113,D169:I169) -> 0
C170: Fuel and oil | D170: =IF(D65=-1,0,D65*'Crop budgets'!D219) -> 0 | E170: =IF(E65=-1,0,E65*'Crop budgets'!E219) -> 0 | F170: =IF(F65=-1,0,F65*'Crop budgets'!F219) -> 0 | G170: =IF(G65=-1,0,G65*'Crop budgets'!G219) -> 0 | H170: =IF(H65=-1,0,H65*'Crop budgets'!H219) -> 0 | I170: =IF(I65=-1,0,I65*'Crop budgets'!I219) -> 0 | L170: =SUMPRODUCT(D$113:I$113,D170:I170) -> 0
C171: Repair and Maintenance | D171: =IF(D66=-1,0,D66*'Crop budgets'!D220) -> 0 | E171: =IF(E66=-1,0,E66*'Crop budgets'!E220) -> 0 | F171: =IF(F66=-1,0,F66*'Crop budgets'!F220) -> 0 | G171: =IF(G66=-1,0,G66*'Crop budgets'!G220) -> 0 | H171: =IF(H66=-1,0,H66*'Crop budgets'!H220) -> 0 | I171: =IF(I66=-1,0,I66*'Crop budgets'!I220) -> 0 | L171: =SUMPRODUCT(D$113:I$113,D171:I171) -> 0
C172: Depreciation | D172: =IF(D68=-1,0,D68*'Crop budgets'!D226)+IF(D69=-1,0,D69*'Crop budgets'!D227)+IF(D70=-1,0,D70*'Crop budgets'!D228) -> 0 | E172: =IF(E68=-1,0,E68*'Crop budgets'!E226)+IF(E69=-1,0,E69*'Crop budgets'!E227)+IF(E70=-1,0,E70*'Crop budgets'!E228) -> 0 | F172: =IF(F68=-1,0,F68*'Crop budgets'!F226)+IF(F69=-1,0,F69*'Crop budgets'!F227)+IF(F70=-1,0,F70*'Crop budgets'!F228) -> 0 | G172: =IF(G68=-1,0,G68*'Crop budgets'!G226)+IF(G69=-1,0,G69*'Crop budgets'!G227)+IF(G70=-1,0,G70*'Crop budgets'!G228) -> 0 | H172: =IF(H68=-1,0,H68*'Crop budgets'!H226)+IF(H69=-1,0,H69*'Crop budgets'!H227)+IF(H70=-1,0,H70*'Crop budgets'!H228) -> 0 | I172: =IF(I68=-1,0,I68*'Crop budgets'!I226)+IF(I69=-1,0,I69*'Crop budgets'!I227)+IF(I70=-1,0,I70*'Crop budgets'!I228) -> 0 | L172: =SUMPRODUCT(D$113:I$113,D172:I172) -> 0
C173: Interest | D173: =IF(D68=-1,0,D68*'Crop budgets'!D232)+IF(D69=-1,0,D69*'Crop budgets'!D233)+IF(D70=-1,0,D70*'Crop budgets'!D234) -> 0 | E173: =IF(E68=-1,0,E68*'Crop budgets'!E232)+IF(E69=-1,0,E69*'Crop budgets'!E233)+IF(E70=-1,0,E70*'Crop budgets'!E234) -> 0 | F173: =IF(F68=-1,0,F68*'Crop budgets'!F232)+IF(F69=-1,0,F69*'Crop budgets'!F233)+IF(F70=-1,0,F70*'Crop budgets'!F234) -> 0 | G173: =IF(G68=-1,0,G68*'Crop budgets'!G232)+IF(G69=-1,0,G69*'Crop budgets'!G233)+IF(G70=-1,0,G70*'Crop budgets'!G234) -> 0 | H173: =IF(H68=-1,0,H68*'Crop budgets'!H232)+IF(H69=-1,0,H69*'Crop budgets'!H233)+IF(H70=-1,0,H70*'Crop budgets'!H234) -> 0 | I173: =IF(I68=-1,0,I68*'Crop budgets'!I232)+IF(I69=-1,0,I69*'Crop budgets'!I233)+IF(I70=-1,0,I70*'Crop budgets'!I234) -> 0 | L173: =SUMPRODUCT(D$113:I$113,D173:I173) -> 0
B175: Land | D175: =IF(D72=-1,0,D72*'Crop budgets'!D28) -> 0 | E175: =IF(E72=-1,0,E72*'Crop budgets'!E28) -> 0 | F175: =IF(F72=-1,0,F72*'Crop budgets'!F28) -> 0 | G175: =IF(G72=-1,0,G72*'Crop budgets'!G28) -> 0 | H175: =IF(H72=-1,0,H72*'Crop budgets'!H28) -> 0 | I175: =IF(I72=-1,0,I72*'Crop budgets'!I28) -> 0 | L175: =SUMPRODUCT(D$113:I$113,D175:I175) -> 0
B176: Cash payment to landowner, $/acre | D176: =D73 -> 0 | E176: 0 | F176: 0 | G176: 0 | H176: 0 | I176: 0 | L176: =SUMPRODUCT(D$113:I$113,D176:I176) -> 0
B177: Sub total | D177: =SUM(D116:D144,D151:D176) -> 169.683 | E177: 195.685 | F177: 191.915 | G177: 279.399 | H177: 0 | I177: 0 | L177: =SUM(L116:L144,L151:L176) -> 31627.76
B178: Interest | D178: =(D177-SUM(D151:D163)*'Crop budgets'!$K$242-D176-D175-D172-D173-D144)/2*'Crop budgets'!$K$104 -> 4.4480709 | E178: =(E177-SUM(E151:E163)*'Crop budgets'!$K$242-E176-E175-E172-E173-E144)/2*'Crop budgets'!$K$104 -> 5.04999625 | F178: =(F177-SUM(F151:F163)*'Crop budgets'!$K$242-F176-F175-F172-F173-F144)/2*'Crop budgets'!$K$104 -> 5.18223875 | G178: =(G177-SUM(G151:G163)*'Crop budgets'!$K$242-G176-G175-G172-G173-G144)/2*'Crop budgets'!$K$104 -> 7.57368105 | H178: =(H177-SUM(H151:H163)*'Crop budgets'!$K$242-H176-H175-H172-H173-H144)/2*'Crop budgets'!$K$104 -> 0 | I178: =(I177-SUM(I151:I163)*'Crop budgets'!$K$242-I176-I175-I172-I173-I144)/2*'Crop budgets'!$K$104 -> 0 | L178: =SUMPRODUCT(D$113:I$113,D178:I178) -> 839.523191
B179: Total costs | D179: =D177+D178 -> 174.1310709 | E179: 200.7349962 | F179: 197.0972388 | G179: 286.9726811 | H179: 0 | I179: 0 | L179: =L177+L178 -> 32467.28319
B181: Total cost (operator + landowner) | D181: =D179+D252 -> 238.5526334 | E181: 265.1565587 | F181: 261.5188013 | G181: 351.3942435 | H181: 0 | I181: 0 | L181: =L179+L252 -> 42774.73319
B182: Operator's contribution | D182: =IF(D181=0,0,D179/D181) -> 0.7299482232 | E182: 0.7570433 | F182: 0.7536637435 | G182: 0.8166687028 | H182: 0 | I182: 0 | L182: =L179/L181 -> 0.759029473
B185: Crop/System | D185: =IF('Crop budgets'!D$5>0,'Crop budgets'!D$4,"---") -> Wheat | E185: =IF('Crop budgets'!E$5>0,'Crop budgets'!E$4,"---") -> Milo | F185: =IF('Crop budgets'!F$5>0,'Crop budgets'!F$4,"---") -> Soybeans | G185: =IF('Crop budgets'!G$5>0,'Crop budgets'!G$4,"---") -> Corn | H185: =IF('Crop budgets'!H$5>0,'Crop budgets'!H$4,"---") -> --- | I185: =IF('Crop budgets'!I$5>0,'Crop budgets'!I$4,"---") -> --- | L185: Total
B186: Planted acres | D186: =IF('Crop budgets'!D$5>0,'Crop budgets'!D$5,"---") -> 80 | E186: =IF('Crop budgets'!E$5>0,'Crop budgets'!E$5,"---") -> 20 | F186: =IF('Crop budgets'!F$5>0,'Crop budgets'!F$5,"---") -> 30 | G186: =IF('Crop budgets'!G$5>0,'Crop budgets'!G$5,"---") -> 30 | H186: =IF('Crop budgets'!H$5>0,'Crop budgets'!H$5,"---") -> --- | I186: =IF('Crop budgets'!I$5>0,'Crop budgets'!I$5,"---") -> --- | L186: ='Crop budgets'!K$5 -> 160
B188: LANDOWNER'S expense for production inputs (excluding "equitably shared" inputs)
B189: Seed | D189: =IF(D10=-1,0,(1-D10)*'Crop budgets'!D17) -> 0 | E189: =IF(E10=-1,0,(1-E10)*'Crop budgets'!E17) -> 0 | F189: =IF(F10=-1,0,(1-F10)*'Crop budgets'!F17) -> 0 | G189: =IF(G10=-1,0,(1-G10)*'Crop budgets'!G17) -> 0 | H189: =IF(H10=-1,0,(1-H10)*'Crop budgets'!H17) -> 0 | I189: =IF(I10=-1,0,(1-I10)*'Crop budgets'!I17) -> 0 | L189: =SUMPRODUCT(D$113:I$113,D189:I189) -> 0
B190: Fertilizer:
C191: ='Crop budgets'!C50 -> 82-0-0 | D191: =IF(D12=-1,0,(1-D12)*'Crop budgets'!D50*'Crop budgets'!$K50) -> 0 | E191: =IF(E12=-1,0,(1-E12)*'Crop budgets'!E50*'Crop budgets'!$K50) -> 0 | F191: =IF(F12=-1,0,(1-F12)*'Crop budgets'!F50*'Crop budgets'!$K50) -> 0 | G191: =IF(G12=-1,0,(1-G12)*'Crop budgets'!G50*'Crop budgets'!$K50) -> 0 | H191: =IF(H12=-1,0,(1-H12)*'Crop budgets'!H50*'Crop budgets'!$K50) -> 0 | I191: =IF(I12=-1,0,(1-I12)*'Crop budgets'!I50*'Crop budgets'!$K50) -> 0 | L191: =SUMPRODUCT(D$113:I$113,D191:I191) -> 0
C192: ='Crop budgets'!C51 -> N (dry/liquid) | D192: =IF(D13=-1,0,(1-D13)*'Crop budgets'!D51*'Crop budgets'!$K51) -> 0 | E192: =IF(E13=-1,0,(1-E13)*'Crop budgets'!E51*'Crop budgets'!$K51) -> 0 | F192: =IF(F13=-1,0,(1-F13)*'Crop budgets'!F51*'Crop budgets'!$K51) -> 0 | G192: =IF(G13=-1,0,(1-G13)*'Crop budgets'!G51*'Crop budgets'!$K51) -> 0 | H192: =IF(H13=-1,0,(1-H13)*'Crop budgets'!H51*'Crop budgets'!$K51) -> 0 | I192: =IF(I13=-1,0,(1-I13)*'Crop budgets'!I51*'Crop budgets'!$K51) -> 0 | L192: 0
C193: ='Crop budgets'!C52 -> P | D193: =IF(D14=-1,0,(1-D14)*'Crop budgets'!D52*'Crop budgets'!$K52) -> 0 | E193: =IF(E14=-1,0,(1-E14)*'Crop budgets'!E52*'Crop budgets'!$K52) -> 0 | F193: =IF(F14=-1,0,(1-F14)*'Crop budgets'!F52*'Crop budgets'!$K52) -> 0 | G193: =IF(G14=-1,0,(1-G14)*'Crop budgets'!G52*'Crop budgets'!$K52) -> 0 | H193: =IF(H14=-1,0,(1-H14)*'Crop budgets'!H52*'Crop budgets'!$K52) -> 0 | I193: =IF(I14=-1,0,(1-I14)*'Crop budgets'!I52*'Crop budgets'!$K52) -> 0 | L193: 0
C194: ='Crop budgets'!C53 -> K | D194: =IF(D15=-1,0,(1-D15)*'Crop budgets'!D53*'Crop budgets'!$K53) -> 0 | E194: =IF(E15=-1,0,(1-E15)*'Crop budgets'!E53*'Crop budgets'!$K53) -> 0 | F194: =IF(F15=-1,0,(1-F15)*'Crop budgets'!F53*'Crop budgets'!$K53) -> 0 | G194: =IF(G15=-1,0,(1-G15)*'Crop budgets'!G53*'Crop budgets'!$K53) -> 0 | H194: =IF(H15=-1,0,(1-H15)*'Crop budgets'!H53*'Crop budgets'!$K53) -> 0 | I194: =IF(I15=-1,0,(1-I15)*'Crop budgets'!I53*'Crop budgets'!$K53) -> 0 | L194: 0
C195: ='Crop budgets'!C54 -> xxx | D195: =IF(D16=-1,0,(1-D16)*'Crop budgets'!D54*'Crop budgets'!$K54) -> 0 | E195: =IF(E16=-1,0,(1-E16)*'Crop budgets'!E54*'Crop budgets'!$K54) -> 0 | F195: =IF(F16=-1,0,(1-F16)*'Crop budgets'!F54*'Crop budgets'!$K54) -> 0 | G195: =IF(G16=-1,0,(1-G16)*'Crop budgets'!G54*'Crop budgets'!$K54) -> 0 | H195: =IF(H16=-1,0,(1-H16)*'Crop budgets'!H54*'Crop budgets'!$K54) -> 0 | I195: =IF(I16=-1,0,(1-I16)*'Crop budgets'!I54*'Crop budgets'!$K54) -> 0 | L195: 0
C196: ='Crop budgets'!C55 -> xxx | D196: =IF(D17=-1,0,(1-D17)*'Crop budgets'!D55*'Crop budgets'!$K55) -> 0 | E196: =IF(E17=-1,0,(1-E17)*'Crop budgets'!E55*'Crop budgets'!$K55) -> 0 | F196: =IF(F17=-1,0,(1-F17)*'Crop budgets'!F55*'Crop budgets'!$K55) -> 0 | G196: =IF(G17=-1,0,(1-G17)*'Crop budgets'!G55*'Crop budgets'!$K55) -> 0 | H196: =IF(H17=-1,0,(1-H17)*'Crop budgets'!H55*'Crop budgets'!$K55) -> 0 | I196: =IF(I17=-1,0,(1-I17)*'Crop budgets'!I55*'Crop budgets'!$K55) -> 0 | L196: 0
C197: ='Crop budgets'!C56 -> xxx | D197: =IF(D18=-1,0,(1-D18)*'Crop budgets'!D56*'Crop budgets'!$K56) -> 0 | E197: =IF(E18=-1,0,(1-E18)*'Crop budgets'!E56*'Crop budgets'!$K56) -> 0 | F197: =IF(F18=-1,0,(1-F18)*'Crop budgets'!F56*'Crop budgets'!$K56) -> 0 | G197: =IF(G18=-1,0,(1-G18)*'Crop budgets'!G56*'Crop budgets'!$K56) -> 0 | H197: =IF(H18=-1,0,(1-H18)*'Crop budgets'!H56*'Crop budgets'!$K56) -> 0 | I197: =IF(I18=-1,0,(1-I18)*'Crop budgets'!I56*'Crop budgets'!$K56) -> 0 | L197: 0
C198: ='Crop budgets'!C57 -> Lime | D198: =IF(D19=-1,0,(1-D19)*'Crop budgets'!D57*'Crop budgets'!$K57) -> 7.5 | E198: =IF(E19=-1,0,(1-E19)*'Crop budgets'!E57*'Crop budgets'!$K57) -> 7.5 | F198: =IF(F19=-1,0,(1-F19)*'Crop budgets'!F57*'Crop budgets'!$K57) -> 7.5 | G198: =IF(G19=-1,0,(1-G19)*'Crop budgets'!G57*'Crop budgets'!$K57) -> 7.5 | H198: =IF(H19=-1,0,(1-H19)*'Crop budgets'!H57*'Crop budgets'!$K57) -> 0 | I198: =IF(I19=-1,0,(1-I19)*'Crop budgets'!I57*'Crop budgets'!$K57) -> 0 | L198: 1200
B199: Herbicide
C200: ='Crop budgets'!C59 -> Finesse | D200: =IF(D21=-1,0,(1-D21)*'Crop budgets'!D59*'Crop budgets'!$K59) -> 0 | E200: =IF(E21=-1,0,(1-E21)*'Crop budgets'!E59*'Crop budgets'!$K59) -> 0 | F200: =IF(F21=-1,0,(1-F21)*'Crop budgets'!F59*'Crop budgets'!$K59) -> 0 | G200: =IF(G21=-1,0,(1-G21)*'Crop budgets'!G59*'Crop budgets'!$K59) -> 0 | H200: =IF(H21=-1,0,(1-H21)*'Crop budgets'!H59*'Crop budgets'!$K59) -> 0 | I200: =IF(I21=-1,0,(1-I21)*'Crop budgets'!I59*'Crop budgets'!$K59) -> 0 | L200: =SUMPRODUCT(D$113:I$113,D200:I200) -> 0
C201: ='Crop budgets'!C60 -> + Surfactant | D201: =IF(D22=-1,0,(1-D22)*'Crop budgets'!D60*'Crop budgets'!$K60) -> 0 | E201: =IF(E22=-1,0,(1-E22)*'Crop budgets'!E60*'Crop budgets'!$K60) -> 0 | F201: =IF(F22=-1,0,(1-F22)*'Crop budgets'!F60*'Crop budgets'!$K60) -> 0 | G201: =IF(G22=-1,0,(1-G22)*'Crop budgets'!G60*'Crop budgets'!$K60) -> 0 | H201: =IF(H22=-1,0,(1-H22)*'Crop budgets'!H60*'Crop budgets'!$K60) -> 0 | I201: =IF(I22=-1,0,(1-I22)*'Crop budgets'!I60*'Crop budgets'!$K60) -> 0 | L201: 0
C202: ='Crop budgets'!C61 -> Bicep II Magnum | D202: =IF(D23=-1,0,(1-D23)*'Crop budgets'!D61*'Crop budgets'!$K61) -> 0 | E202: =IF(E23=-1,0,(1-E23)*'Crop budgets'!E61*'Crop budgets'!$K61) -> 0 | F202: =IF(F23=-1,0,(1-F23)*'Crop budgets'!F61*'Crop budgets'!$K61) -> 0 | G202: =IF(G23=-1,0,(1-G23)*'Crop budgets'!G61*'Crop budgets'!$K61) -> 0 | H202: =IF(H23=-1,0,(1-H23)*'Crop budgets'!H61*'Crop budgets'!$K61) -> 0 | I202: =IF(I23=-1,0,(1-I23)*'Crop budgets'!I61*'Crop budgets'!$K61) -> 0 | L202: 0
C203: ='Crop budgets'!C62 -> Status | D203: =IF(D24=-1,0,(1-D24)*'Crop budgets'!D62*'Crop budgets'!$K62) -> 0 | E203: =IF(E24=-1,0,(1-E24)*'Crop budgets'!E62*'Crop budgets'!$K62) -> 0 | F203: =IF(F24=-1,0,(1-F24)*'Crop budgets'!F62*'Crop budgets'!$K62) -> 0 | G203: =IF(G24=-1,0,(1-G24)*'Crop budgets'!G62*'Crop budgets'!$K62) -> 0 | H203: =IF(H24=-1,0,(1-H24)*'Crop budgets'!H62*'Crop budgets'!$K62) -> 0 | I203: =IF(I24=-1,0,(1-I24)*'Crop budgets'!I62*'Crop budgets'!$K62) -> 0 | L203: 0
C204: ='Crop budgets'!C63 -> Glyphosate | D204: =IF(D25=-1,0,(1-D25)*'Crop budgets'!D63*'Crop budgets'!$K63) -> 0 | E204: =IF(E25=-1,0,(1-E25)*'Crop budgets'!E63*'Crop budgets'!$K63) -> 0 | F204: =IF(F25=-1,0,(1-F25)*'Crop budgets'!F63*'Crop budgets'!$K63) -> 0 | G204: =IF(G25=-1,0,(1-G25)*'Crop budgets'!G63*'Crop budgets'!$K63) -> 0 | H204: =IF(H25=-1,0,(1-H25)*'Crop budgets'!H63*'Crop budgets'!$K63) -> 0 | I204: =IF(I25=-1,0,(1-I25)*'Crop budgets'!I63*'Crop budgets'!$K63) -> 0 | L204: 0
C205: ='Crop budgets'!C64 -> + Ammonium Sulfate | D205: =IF(D26=-1,0,(1-D26)*'Crop budgets'!D64*'Crop budgets'!$K64) -> 0 | E205: =IF(E26=-1,0,(1-E26)*'Crop budgets'!E64*'Crop budgets'!$K64) -> 0 | F205: =IF(F26=-1,0,(1-F26)*'Crop budgets'!F64*'Crop budgets'!$K64) -> 0 | G205: =IF(G26=-1,0,(1-G26)*'Crop budgets'!G64*'Crop budgets'!$K64) -> 0 | H205: =IF(H26=-1,0,(1-H26)*'Crop budgets'!H64*'Crop budgets'!$K64) -> 0 | I205: =IF(I26=-1,0,(1-I26)*'Crop budgets'!I64*'Crop budgets'!$K64) -> 0 | L205: 0
C206: ='Crop budgets'!C65 -> Glyphosate + Ammonium Sulfate | D206: =IF(D27=-1,0,(1-D27)*'Crop budgets'!D65*'Crop budgets'!$K65) -> 0 | E206: =IF(E27=-1,0,(1-E27)*'Crop budgets'!E65*'Crop budgets'!$K65) -> 0 | F206: =IF(F27=-1,0,(1-F27)*'Crop budgets'!F65*'Crop budgets'!$K65) -> 0 | G206: =IF(G27=-1,0,(1-G27)*'Crop budgets'!G65*'Crop budgets'!$K65) -> 0 | H206: =IF(H27=-1,0,(1-H27)*'Crop budgets'!H65*'Crop budgets'!$K65) -> 0 | I206: =IF(I27=-1,0,(1-I27)*'Crop budgets'!I65*'Crop budgets'!$K65) -> 0 | L206: 0
C207: ='Crop budgets'!C66 -> Roundup Weather Max | D207: =IF(D28=-1,0,(1-D28)*'Crop budgets'!D66*'Crop budgets'!$K66) -> 0 | E207: =IF(E28=-1,0,(1-E28)*'Crop budgets'!E66*'Crop budgets'!$K66) -> 0 | F207: =IF(F28=-1,0,(1-F28)*'Crop budgets'!F66*'Crop budgets'!$K66) -> 0 | G207: =IF(G28=-1,0,(1-G28)*'Crop budgets'!G66*'Crop budgets'!$K66) -> 0 | H207: =IF(H28=-1,0,(1-H28)*'Crop budgets'!H66*'Crop budgets'!$K66) -> 0 | I207: =IF(I28=-1,0,(1-I28)*'Crop budgets'!I66*'Crop budgets'!$K66) -> 0 | L207: 0
C208: ='Crop budgets'!C67 -> Buctril + Atrazine | D208: =IF(D29=-1,0,(1-D29)*'Crop budgets'!D67*'Crop budgets'!$K67) -> 0 | E208: =IF(E29=-1,0,(1-E29)*'Crop budgets'!E67*'Crop budgets'!$K67) -> 0 | F208: =IF(F29=-1,0,(1-F29)*'Crop budgets'!F67*'Crop budgets'!$K67) -> 0 | G208: =IF(G29=-1,0,(1-G29)*'Crop budgets'!G67*'Crop budgets'!$K67) -> 0 | H208: =IF(H29=-1,0,(1-H29)*'Crop budgets'!H67*'Crop budgets'!$K67) -> 0 | I208: =IF(I29=-1,0,(1-I29)*'Crop budgets'!I67*'Crop budgets'!$K67) -> 0 | L208: 0
C209: ='Crop budgets'!C68 -> xxx | D209: =IF(D30=-1,0,(1-D30)*'Crop budgets'!D68*'Crop budgets'!$K68) -> 0 | E209: =IF(E30=-1,0,(1-E30)*'Crop budgets'!E68*'Crop budgets'!$K68) -> 0 | F209: =IF(F30=-1,0,(1-F30)*'Crop budgets'!F68*'Crop budgets'!$K68) -> 0 | G209: =IF(G30=-1,0,(1-G30)*'Crop budgets'!G68*'Crop budgets'!$K68) -> 0 | H209: =IF(H30=-1,0,(1-H30)*'Crop budgets'!H68*'Crop budgets'!$K68) -> 0 | I209: =IF(I30=-1,0,(1-I30)*'Crop budgets'!I68*'Crop budgets'!$K68) -> 0 | L209: 0
B210: Insecticide / Fungicide
C211: ='Crop budgets'!C70 -> Seedbox treatment | D211: =IF(D32=-1,0,(1-D32)*'Crop budgets'!D70*'Crop budgets'!$K70) -> 0 | E211: =IF(E32=-1,0,(1-E32)*'Crop budgets'!E70*'Crop budgets'!$K70) -> 0 | F211: =IF(F32=-1,0,(1-F32)*'Crop budgets'!F70*'Crop budgets'!$K70) -> 0 | G211: =IF(G32=-1,0,(1-G32)*'Crop budgets'!G70*'Crop budgets'!$K70) -> 0 | H211: =IF(H32=-1,0,(1-H32)*'Crop budgets'!H70*'Crop budgets'!$K70) -> 0 | I211: =IF(I32=-1,0,(1-I32)*'Crop budgets'!I70*'Crop budgets'!$K70) -> 0 | L211: =SUMPRODUCT(D$113:I$113,D211:I211) -> 0
C212: ='Crop budgets'!C71 -> Capture 2EC | D212: =IF(D33=-1,0,(1-D33)*'Crop budgets'!D71*'Crop budgets'!$K71) -> 0 | E212: =IF(E33=-1,0,(1-E33)*'Crop budgets'!E71*'Crop budgets'!$K71) -> 0 | F212: =IF(F33=-1,0,(1-F33)*'Crop budgets'!F71*'Crop budgets'!$K71) -> 0 | G212: =IF(G33=-1,0,(1-G33)*'Crop budgets'!G71*'Crop budgets'!$K71) -> 0 | H212: =IF(H33=-1,0,(1-H33)*'Crop budgets'!H71*'Crop budgets'!$K71) -> 0 | I212: =IF(I33=-1,0,(1-I33)*'Crop budgets'!I71*'Crop budgets'!$K71) -> 0 | L212: 0
C213: ='Crop budgets'!C72 -> Headline | D213: =IF(D34=-1,0,(1-D34)*'Crop budgets'!D72*'Crop budgets'!$K72) -> 0 | E213: =IF(E34=-1,0,(1-E34)*'Crop budgets'!E72*'Crop budgets'!$K72) -> 0 | F213: =IF(F34=-1,0,(1-F34)*'Crop budgets'!F72*'Crop budgets'!$K72) -> 0 | G213: =IF(G34=-1,0,(1-G34)*'Crop budgets'!G72*'Crop budgets'!$K72) -> 0 | H213: =IF(H34=-1,0,(1-H34)*'Crop budgets'!H72*'Crop budgets'!$K72) -> 0 | I213: =IF(I34=-1,0,(1-I34)*'Crop budgets'!I72*'Crop budgets'!$K72) -> 0 | L213: 0
C214: ='Crop budgets'!C73 -> Warrior 1EC | D214: =IF(D35=-1,0,(1-D35)*'Crop budgets'!D73*'Crop budgets'!$K73) -> 0 | E214: =IF(E35=-1,0,(1-E35)*'Crop budgets'!E73*'Crop budgets'!$K73) -> 0 | F214: =IF(F35=-1,0,(1-F35)*'Crop budgets'!F73*'Crop budgets'!$K73) -> 0 | G214: =IF(G35=-1,0,(1-G35)*'Crop budgets'!G73*'Crop budgets'!$K73) -> 0 | H214: =IF(H35=-1,0,(1-H35)*'Crop budgets'!H73*'Crop budgets'!$K73) -> 0 | I214: =IF(I35=-1,0,(1-I35)*'Crop budgets'!I73*'Crop budgets'!$K73) -> 0 | L214: 0
B215: Crop consulting | D215: =IF(D36=-1,0,(1-D36)*'Crop budgets'!D21) -> 0 | E215: =IF(E36=-1,0,(1-E36)*'Crop budgets'!E21) -> 0 | F215: =IF(F36=-1,0,(1-F36)*'Crop budgets'!F21) -> 0 | G215: =IF(G36=-1,0,(1-G36)*'Crop budgets'!G21) -> 0 | H215: =IF(H36=-1,0,(1-H36)*'Crop budgets'!H21) -> 0 | I215: =IF(I36=-1,0,(1-I36)*'Crop budgets'!I21) -> 0 | L215: 0
B216: Crop insurance | D216: =IF(D37=-1,0,(1-D37)*'Crop budgets'!D22) -> 0 | E216: =IF(E37=-1,0,(1-E37)*'Crop budgets'!E22) -> 0 | F216: =IF(F37=-1,0,(1-F37)*'Crop budgets'!F22) -> 0 | G216: =IF(G37=-1,0,(1-G37)*'Crop budgets'!G22) -> 0 | H216: =IF(H37=-1,0,(1-H37)*'Crop budgets'!H22) -> 0 | I216: =IF(I37=-1,0,(1-I37)*'Crop budgets'!I22) -> 0 | L216: 0
B217: Drying cost | D217: =IF(D38=-1,0,(1-D38)*'Crop budgets'!D23) -> 0 | E217: =IF(E38=-1,0,(1-E38)*'Crop budgets'!E23) -> 0 | F217: =IF(F38=-1,0,(1-F38)*'Crop budgets'!F23) -> 0 | G217: =IF(G38=-1,0,(1-G38)*'Crop budgets'!G23) -> 0 | H217: =IF(H38=-1,0,(1-H38)*'Crop budgets'!H23) -> 0 | I217: =IF(I38=-1,0,(1-I38)*'Crop budgets'!I23) -> 0 | L217: 0
B223: LANDOWNER'S expense for machinery, labor, irrigation, and land costs (excluding "equitably shared" inputs)
B224: Drill/Plant | D224: =IF(D46=-1,0,(1-D46)*'Crop budgets'!D83*'Crop budgets'!$K136) -> 0 | E224: =IF(E46=-1,0,(1-E46)*'Crop budgets'!E83*'Crop budgets'!$K136) -> 0 | F224: =IF(F46=-1,0,(1-F46)*'Crop budgets'!F83*'Crop budgets'!$K136) -> 0 | G224: =IF(G46=-1,0,(1-G46)*'Crop budgets'!G83*'Crop budgets'!$K136) -> 0 | H224: =IF(H46=-1,0,(1-H46)*'Crop budgets'!H83*'Crop budgets'!$K136) -> 0 | I224: =IF(I46=-1,0,(1-I46)*'Crop budgets'!I83*'Crop budgets'!$K136) -> 0 | L224: =SUMPRODUCT(D$113:I$113,D224:I224) -> 0
B225: Tillage and Chemical Applications:
C226: ='Crop budgets'!C85 -> Chisel | D226: =IF(D48=-1,0,(1-D48)*'Crop budgets'!D85*'Crop budgets'!$K85*'Crop budgets'!$K136) -> 0 | E226: =IF(E48=-1,0,(1-E48)*'Crop budgets'!E85*'Crop budgets'!$K85*'Crop budgets'!$K136) -> 0 | F226: =IF(F48=-1,0,(1-F48)*'Crop budgets'!F85*'Crop budgets'!$K85*'Crop budgets'!$K136) -> 0 | G226: =IF(G48=-1,0,(1-G48)*'Crop budgets'!G85*'Crop budgets'!$K85*'Crop budgets'!$K136) -> 0 | H226: =IF(H48=-1,0,(1-H48)*'Crop budgets'!H85*'Crop budgets'!$K85*'Crop budgets'!$K136) -> 0 | I226: =IF(I48=-1,0,(1-I48)*'Crop budgets'!I85*'Crop budgets'!$K85*'Crop budgets'!$K136) -> 0 | L226: =SUMPRODUCT(D$113:I$113,D226:I226) -> 0
C227: ='Crop budgets'!C86 -> Disk | D227: =IF(D49=-1,0,(1-D49)*'Crop budgets'!D86*'Crop budgets'!$K86*'Crop budgets'!$K136) -> 0 | E227: =IF(E49=-1,0,(1-E49)*'Crop budgets'!E86*'Crop budgets'!$K86*'Crop budgets'!$K136) -> 0 | F227: =IF(F49=-1,0,(1-F49)*'Crop budgets'!F86*'Crop budgets'!$K86*'Crop budgets'!$K136) -> 0 | G227: =IF(G49=-1,0,(1-G49)*'Crop budgets'!G86*'Crop budgets'!$K86*'Crop budgets'!$K136) -> 0 | H227: =IF(H49=-1,0,(1-H49)*'Crop budgets'!H86*'Crop budgets'!$K86*'Crop budgets'!$K136) -> 0 | I227: =IF(I49=-1,0,(1-I49)*'Crop budgets'!I86*'Crop budgets'!$K86*'Crop budgets'!$K136) -> 0 | L227: 0
C228: ='Crop budgets'!C87 -> Field cultivate | D228: =IF(D50=-1,0,(1-D50)*'Crop budgets'!D87*'Crop budgets'!$K87*'Crop budgets'!$K136) -> 0 | E228: =IF(E50=-1,0,(1-E50)*'Crop budgets'!E87*'Crop budgets'!$K87*'Crop budgets'!$K136) -> 0 | F228: =IF(F50=-1,0,(1-F50)*'Crop budgets'!F87*'Crop budgets'!$K87*'Crop budgets'!$K136) -> 0 | G228: =IF(G50=-1,0,(1-G50)*'Crop budgets'!G87*'Crop budgets'!$K87*'Crop budgets'!$K136) -> 0 | H228: =IF(H50=-1,0,(1-H50)*'Crop budgets'!H87*'Crop budgets'!$K87*'Crop budgets'!$K136) -> 0 | I228: =IF(I50=-1,0,(1-I50)*'Crop budgets'!I87*'Crop budgets'!$K87*'Crop budgets'!$K136) -> 0 | L228: 0
C229: ='Crop budgets'!C88 -> Strip-till | D229: =IF(D51=-1,0,(1-D51)*'Crop budgets'!D88*'Crop budgets'!$K88*'Crop budgets'!$K136) -> 0 | E229: =IF(E51=-1,0,(1-E51)*'Crop budgets'!E88*'Crop budgets'!$K88*'Crop budgets'!$K136) -> 0 | F229: =IF(F51=-1,0,(1-F51)*'Crop budgets'!F88*'Crop budgets'!$K88*'Crop budgets'!$K136) -> 0 | G229: =IF(G51=-1,0,(1-G51)*'Crop budgets'!G88*'Crop budgets'!$K88*'Crop budgets'!$K136) -> 0 | H229: =IF(H51=-1,0,(1-H51)*'Crop budgets'!H88*'Crop budgets'!$K88*'Crop budgets'!$K136) -> 0 | I229: =IF(I51=-1,0,(1-I51)*'Crop budgets'!I88*'Crop budgets'!$K88*'Crop budgets'!$K136) -> 0 | L229: 0
C230: ='Crop budgets'!C89 -> Anhydrous application | D230: =IF(D52=-1,0,(1-D52)*'Crop budgets'!D89*'Crop budgets'!$K89*'Crop budgets'!$K136) -> 0 | E230: =IF(E52=-1,0,(1-E52)*'Crop budgets'!E89*'Crop budgets'!$K89*'Crop budgets'!$K136) -> 0 | F230: =IF(F52=-1,0,(1-F52)*'Crop budgets'!F89*'Crop budgets'!$K89*'Crop budgets'!$K136) -> 0 | G230: =IF(G52=-1,0,(1-G52)*'Crop budgets'!G89*'Crop budgets'!$K89*'Crop budgets'!$K136) -> 0 | H230: =IF(H52=-1,0,(1-H52)*'Crop budgets'!H89*'Crop budgets'!$K89*'Crop budgets'!$K136) -> 0 | I230: =IF(I52=-1,0,(1-I52)*'Crop budgets'!I89*'Crop budgets'!$K89*'Crop budgets'!$K136) -> 0 | L230: 0
C231: ='Crop budgets'!C90 -> Fertilizer application | D231: =IF(D53=-1,0,(1-D53)*'Crop budgets'!D90*'Crop budgets'!$K90*'Crop budgets'!$K136) -> 0 | E231: =IF(E53=-1,0,(1-E53)*'Crop budgets'!E90*'Crop budgets'!$K90*'Crop budgets'!$K136) -> 0 | F231: =IF(F53=-1,0,(1-F53)*'Crop budgets'!F90*'Crop budgets'!$K90*'Crop budgets'!$K136) -> 0 | G231: =IF(G53=-1,0,(1-G53)*'Crop budgets'!G90*'Crop budgets'!$K90*'Crop budgets'!$K136) -> 0 | H231: =IF(H53=-1,0,(1-H53)*'Crop budgets'!H90*'Crop budgets'!$K90*'Crop budgets'!$K136) -> 0 | I231: =IF(I53=-1,0,(1-I53)*'Crop budgets'!I90*'Crop budgets'!$K90*'Crop budgets'!$K136) -> 0 | L231: 0
C232: ='Crop budgets'!C91 -> Herbicide application | D232: =IF(D54=-1,0,(1-D54)*'Crop budgets'!D91*'Crop budgets'!$K91*'Crop budgets'!$K136) -> 0 | E232: =IF(E54=-1,0,(1-E54)*'Crop budgets'!E91*'Crop budgets'!$K91*'Crop budgets'!$K136) -> 0 | F232: =IF(F54=-1,0,(1-F54)*'Crop budgets'!F91*'Crop budgets'!$K91*'Crop budgets'!$K136) -> 0 | G232: =IF(G54=-1,0,(1-G54)*'Crop budgets'!G91*'Crop budgets'!$K91*'Crop budgets'!$K136) -> 0 | H232: =IF(H54=-1,0,(1-H54)*'Crop budgets'!H91*'Crop budgets'!$K91*'Crop budgets'!$K136) -> 0 | I232: =IF(I54=-1,0,(1-I54)*'Crop budgets'!I91*'Crop budgets'!$K91*'Crop budgets'!$K136) -> 0 | L232: 0
C233: ='Crop budgets'!C92 -> Insecticide/fungicide application | D233: =IF(D55=-1,0,(1-D55)*'Crop budgets'!D92*'Crop budgets'!$K92*'Crop budgets'!$K136) -> 0 | E233: =IF(E55=-1,0,(1-E55)*'Crop budgets'!E92*'Crop budgets'!$K92*'Crop budgets'!$K136) -> 0 | F233: =IF(F55=-1,0,(1-F55)*'Crop budgets'!F92*'Crop budgets'!$K92*'Crop budgets'!$K136) -> 0 | G233: =IF(G55=-1,0,(1-G55)*'Crop budgets'!G92*'Crop budgets'!$K92*'Crop budgets'!$K136) -> 0 | H233: =IF(H55=-1,0,(1-H55)*'Crop budgets'!H92*'Crop budgets'!$K92*'Crop budgets'!$K136) -> 0 | I233: =IF(I55=-1,0,(1-I55)*'Crop budgets'!I92*'Crop budgets'!$K92*'Crop budgets'!$K136) -> 0 | L233: 0
B234: Harvest
C235: Harvest | D235: =IF(D57=-1,0,(1-D57)*('Crop budgets'!D94+'Crop budgets'!D207*'Crop budgets'!D95)*'Crop budgets'!$K136) -> 0 | E235: =IF(E57=-1,0,(1-E57)*('Crop budgets'!E94+'Crop budgets'!E207*'Crop budgets'!E95)*'Crop budgets'!$K136) -> 0 | F235: =IF(F57=-1,0,(1-F57)*('Crop budgets'!F94+'Crop budgets'!F207*'Crop budgets'!F95)*'Crop budgets'!$K136) -> 0 | G235: =IF(G57=-1,0,(1-G57)*('Crop budgets'!G94+'Crop budgets'!G207*'Crop budgets'!G95)*'Crop budgets'!$K136) -> 0 | H235: =IF(H57=-1,0,(1-H57)*('Crop budgets'!H94+'Crop budgets'!H207*'Crop budgets'!H95)*'Crop budgets'!$K136) -> 0 | I235: =IF(I57=-1,0,(1-I57)*('Crop budgets'!I94+'Crop budgets'!I207*'Crop budgets'!I95)*'Crop budgets'!$K136) -> 0 | L235: =SUMPRODUCT(D$113:I$113,D235:I235) -> 0
C236: Hauling | D236: =IF(D58=-1,0,(1-D58)*('Crop budgets'!D9*'Crop budgets'!D97)*'Crop budgets'!$K136) -> 0 | E236: =IF(E58=-1,0,(1-E58)*('Crop budgets'!E9*'Crop budgets'!E97)*'Crop budgets'!$K136) -> 0 | F236: =IF(F58=-1,0,(1-F58)*('Crop budgets'!F9*'Crop budgets'!F97)*'Crop budgets'!$K136) -> 0 | G236: =IF(G58=-1,0,(1-G58)*('Crop budgets'!G9*'Crop budgets'!G97)*'Crop budgets'!$K136) -> 0 | H236: =IF(H58=-1,0,(1-H58)*('Crop budgets'!H9*'Crop budgets'!H97)*'Crop budgets'!$K136) -> 0 | I236: =IF(I58=-1,0,(1-I58)*('Crop budgets'!I9*'Crop budgets'!I97)*'Crop budgets'!$K136) -> 0 | L236: =SUMPRODUCT(D$113:I$113,D236:I236) -> 0
B238: Miscellaneous | D238: =IF(D60=-1,0,(1-D60)*'Crop budgets'!D24) -> 1.625 | E238: =IF(E60=-1,0,(1-E60)*'Crop budgets'!E24) -> 1.625 | F238: =IF(F60=-1,0,(1-F60)*'Crop budgets'!F24) -> 1.625 | G238: =IF(G60=-1,0,(1-G60)*'Crop budgets'!G24) -> 1.625 | H238: =IF(H60=-1,0,(1-H60)*'Crop budgets'!H24) -> 0 | I238: =IF(I60=-1,0,(1-I60)*'Crop budgets'!I24) -> 0 | L238: =SUMPRODUCT(D$113:I$113,D238:I238) -> 260
B239: Non-machinery labor | D239: =IF(D61=-1,0,(1-D61)*'Crop budgets'!D26) -> 0 | E239: =IF(E61=-1,0,(1-E61)*'Crop budgets'!E26) -> 0 | F239: =IF(F61=-1,0,(1-F61)*'Crop budgets'!F26) -> 0 | G239: =IF(G61=-1,0,(1-G61)*'Crop budgets'!G26) -> 0 | H239: =IF(H61=-1,0,(1-H61)*'Crop budgets'!H26) -> 0 | I239: =IF(I61=-1,0,(1-I61)*'Crop budgets'!I26) -> 0 | L239: =SUMPRODUCT(D$113:I$113,D239:I239) -> 0
B241: Irrigation expenses
C242: Labor | D242: =IF(D64=-1,0,(1-D64)*'Crop budgets'!D218) -> 0 | E242: =IF(E64=-1,0,(1-E64)*'Crop budgets'!E218) -> 0 | F242: =IF(F64=-1,0,(1-F64)*'Crop budgets'!F218) -> 0 | G242: =IF(G64=-1,0,(1-G64)*'Crop budgets'!G218) -> 0 | H242: =IF(H64=-1,0,(1-H64)*'Crop budgets'!H218) -> 0 | I242: =IF(I64=-1,0,(1-I64)*'Crop budgets'!I218) -> 0 | L242: =SUMPRODUCT(D$113:I$113,D242:I242) -> 0
C243: Fuel and oil | D243: =IF(D65=-1,0,(1-D65)*'Crop budgets'!D219) -> 0 | E243: =IF(E65=-1,0,(1-E65)*'Crop budgets'!E219) -> 0 | F243: =IF(F65=-1,0,(1-F65)*'Crop budgets'!F219) -> 0 | G243: =IF(G65=-1,0,(1-G65)*'Crop budgets'!G219) -> 0 | H243: =IF(H65=-1,0,(1-H65)*'Crop budgets'!H219) -> 0 | I243: =IF(I65=-1,0,(1-I65)*'Crop budgets'!I219) -> 0 | L243: =SUMPRODUCT(D$113:I$113,D243:I243) -> 0
C244: Repair and Maintenance | D244: =IF(D66=-1,0,(1-D66)*'Crop budgets'!D220) -> 0 | E244: =IF(E66=-1,0,(1-E66)*'Crop budgets'!E220) -> 0 | F244: =IF(F66=-1,0,(1-F66)*'Crop budgets'!F220) -> 0 | G244: =IF(G66=-1,0,(1-G66)*'Crop budgets'!G220) -> 0 | H244: =IF(H66=-1,0,(1-H66)*'Crop budgets'!H220) -> 0 | I244: =IF(I66=-1,0,(1-I66)*'Crop budgets'!I220) -> 0 | L244: =SUMPRODUCT(D$113:I$113,D244:I244) -> 0
C245: Depreciation | D245: =IF(D68=-1,0,(1-D68)*'Crop budgets'!D226)+IF(D69=-1,0,(1-D69)*'Crop budgets'!D227)+IF(D70=-1,0,(1-D70)*'Crop budgets'!D228) -> 0 | E245: =IF(E68=-1,0,(1-E68)*'Crop budgets'!E226)+IF(E69=-1,0,(1-E69)*'Crop budgets'!E227)+IF(E70=-1,0,(1-E70)*'Crop budgets'!E228) -> 0 | F245: =IF(F68=-1,0,(1-F68)*'Crop budgets'!F226)+IF(F69=-1,0,(1-F69)*'Crop budgets'!F227)+IF(F70=-1,0,(1-F70)*'Crop budgets'!F228) -> 0 | G245: =IF(G68=-1,0,(1-G68)*'Crop budgets'!G226)+IF(G69=-1,0,(1-G69)*'Crop budgets'!G227)+IF(G70=-1,0,(1-G70)*'Crop budgets'!G228) -> 0 | H245: =IF(H68=-1,0,(1-H68)*'Crop budgets'!H226)+IF(H69=-1,0,(1-H69)*'Crop budgets'!H227)+IF(H70=-1,0,(1-H70)*'Crop budgets'!H228) -> 0 | I245: =IF(I68=-1,0,(1-I68)*'Crop budgets'!I226)+IF(I69=-1,0,(1-I69)*'Crop budgets'!I227)+IF(I70=-1,0,(1-I70)*'Crop budgets'!I228) -> 0 | L245: =SUMPRODUCT(D$113:I$113,D245:I245) -> 0
C246: Interest | D246: =IF(D68=-1,0,(1-D68)*'Crop budgets'!D232)+IF(D69=-1,0,(1-D69)*'Crop budgets'!D233)+IF(D70=-1,0,(1-D70)*'Crop budgets'!D234) -> 0 | E246: =IF(E68=-1,0,(1-E68)*'Crop budgets'!E232)+IF(E69=-1,0,(1-E69)*'Crop budgets'!E233)+IF(E70=-1,0,(1-E70)*'Crop budgets'!E234) -> 0 | F246: =IF(F68=-1,0,(1-F68)*'Crop budgets'!F232)+IF(F69=-1,0,(1-F69)*'Crop budgets'!F233)+IF(F70=-1,0,(1-F70)*'Crop budgets'!F234) -> 0 | G246: =IF(G68=-1,0,(1-G68)*'Crop budgets'!G232)+IF(G69=-1,0,(1-G69)*'Crop budgets'!G233)+IF(G70=-1,0,(1-G70)*'Crop budgets'!G234) -> 0 | H246: =IF(H68=-1,0,(1-H68)*'Crop budgets'!H232)+IF(H69=-1,0,(1-H69)*'Crop budgets'!H233)+IF(H70=-1,0,(1-H70)*'Crop budgets'!H234) -> 0 | I246: =IF(I68=-1,0,(1-I68)*'Crop budgets'!I232)+IF(I69=-1,0,(1-I69)*'Crop budgets'!I233)+IF(I70=-1,0,(1-I70)*'Crop budgets'!I234) -> 0 | L246: =SUMPRODUCT(D$113:I$113,D246:I246) -> 0
B248: Land | D248: =IF(D72=-1,0,(1-D72)*'Crop budgets'!D28) -> 55 | E248: =IF(E72=-1,0,(1-E72)*'Crop budgets'!E28) -> 55 | F248: =IF(F72=-1,0,(1-F72)*'Crop budgets'!F28) -> 55 | G248: =IF(G72=-1,0,(1-G72)*'Crop budgets'!G28) -> 55 | H248: =IF(H72=-1,0,(1-H72)*'Crop budgets'!H28) -> 0 | I248: =IF(I72=-1,0,(1-I72)*'Crop budgets'!I28) -> 0 | L248: =SUMPRODUCT(D$113:I$113,D248:I248) -> 8800
B249: Cash payment to landowner, $/acre | D249: =-D73 -> 0 | E249: 0 | F249: 0 | G249: 0 | H249: 0 | I249: 0 | L249: =SUMPRODUCT(D$113:I$113,D249:I249) -> 0
B250: Sub total | D250: =SUM(D189:D217,D224:D249) -> 64.125 | E250: 64.125 | F250: 64.125 | G250: 64.125 | H250: 0 | I250: 0 | L250: =SUM(L189:L217,L224:L249) -> 10260
B251: Interest | D251: =(D250-SUM(D224:D236)*'Crop budgets'!$K$242-D249-D248-D245-D246-D217)/2*'Crop budgets'!$K$104 -> 0.2965625 | E251: =(E250-SUM(E224:E236)*'Crop budgets'!$K$242-E249-E248-E245-E246-E217)/2*'Crop budgets'!$K$104 -> 0.2965625 | F251: =(F250-SUM(F224:F236)*'Crop budgets'!$K$242-F249-F248-F245-F246-F217)/2*'Crop budgets'!$K$104 -> 0.2965625 | G251: =(G250-SUM(G224:G236)*'Crop budgets'!$K$242-G249-G248-G245-G246-G217)/2*'Crop budgets'!$K$104 -> 0.2965625 | H251: =(H250-SUM(H224:H236)*'Crop budgets'!$K$242-H249-H248-H245-H246-H217)/2*'Crop budgets'!$K$104 -> 0 | I251: =(I250-SUM(I224:I236)*'Crop budgets'!$K$242-I249-I248-I245-I246-I217)/2*'Crop budgets'!$K$104 -> 0 | L251: =SUMPRODUCT(D$113:I$113,D251:I251) -> 47.45
B252: Total costs | D252: =D250+D251 -> 64.4215625 | E252: 64.4215625 | F252: 64.4215625 | G252: 64.4215625 | H252: 0 | I252: 0 | L252: =L250+L251 -> 10307.45
B254: Total cost (operator + landowner) | D254: =D179+D252 -> 238.5526334 | E254: 265.1565587 | F254: 261.5188013 | G254: 351.3942435 | H254: 0 | I254: 0 | L254: =L179+L252 -> 42774.73319
B255: Landowner's contribution | D255: =IF(D254=0,0,D252/D254) -> 0.2700517768 | E255: 0.2429567 | F255: 0.2463362565 | G255: 0.1833312972 | H255: 0 | I255: 0 | L255: =L252/L254 -> 0.240970527
B258: Crop/System | D258: =IF('Crop budgets'!D$5>0,'Crop budgets'!D$4,"---") -> Wheat | E258: =IF('Crop budgets'!E$5>0,'Crop budgets'!E$4,"---") -> Milo | F258: =IF('Crop budgets'!F$5>0,'Crop budgets'!F$4,"---") -> Soybeans | G258: =IF('Crop budgets'!G$5>0,'Crop budgets'!G$4,"---") -> Corn | H258: =IF('Crop budgets'!H$5>0,'Crop budgets'!H$4,"---") -> --- | I258: =IF('Crop budgets'!I$5>0,'Crop budgets'!I$4,"---") -> --- | L258: Total
B259: Planted acres | D259: =IF('Crop budgets'!D$5>0,'Crop budgets'!D$5,"---") -> 80 | E259: =IF('Crop budgets'!E$5>0,'Crop budgets'!E$5,"---") -> 20 | F259: =IF('Crop budgets'!F$5>0,'Crop budgets'!F$5,"---") -> 30 | G259: =IF('Crop budgets'!G$5>0,'Crop budgets'!G$5,"---") -> 30 | H259: =IF('Crop budgets'!H$5>0,'Crop budgets'!H$5,"---") -> --- | I259: =IF('Crop budgets'!I$5>0,'Crop budgets'!I$5,"---") -> --- | L259: ='Crop budgets'!K$5 -> 160
B261: OPERATOR'S expense for "equitably shared" production inputs
B262: Seed | D262: =IF(D10=-1,'Crop budgets'!D17*IF($L$78>0,$L$78,IF($L$5=0,$L$182,D$182)),0) -> 0 | E262: =IF(E10=-1,'Crop budgets'!E17*IF($L$78>0,$L$78,IF($L$5=0,$L$182,E$182)),0) -> 0 | F262: =IF(F10=-1,'Crop budgets'!F17*IF($L$78>0,$L$78,IF($L$5=0,$L$182,F$182)),0) -> 0 | G262: =IF(G10=-1,'Crop budgets'!G17*IF($L$78>0,$L$78,IF($L$5=0,$L$182,G$182)),0) -> 0 | H262: =IF(H10=-1,'Crop budgets'!H17*IF($L$78>0,$L$78,IF($L$5=0,$L$182,H$182)),0) -> 0 | I262: =IF(I10=-1,'Crop budgets'!I17*IF($L$78>0,$L$78,IF($L$5=0,$L$182,I$182)),0) -> 0 | L262: =SUMPRODUCT(D$113:I$113,D262:I262) -> 0
B263: Fertilizer:
C264: ='Crop budgets'!C50 -> 82-0-0 | D264: =IF(D12=-1,'Crop budgets'!D50*'Crop budgets'!$K50*IF($L$78>0,$L$78,IF($L$5=0,$L$182,D$182)),0) -> 0 | E264: =IF(E12=-1,'Crop budgets'!E50*'Crop budgets'!$K50*IF($L$78>0,$L$78,IF($L$5=0,$L$182,E$182)),0) -> 12.75169515 | F264: =IF(F12=-1,'Crop budgets'!F50*'Crop budgets'!$K50*IF($L$78>0,$L$78,IF($L$5=0,$L$182,F$182)),0) -> 0 | G264: =IF(G12=-1,'Crop budgets'!G50*'Crop budgets'!$K50*IF($L$78>0,$L$78,IF($L$5=0,$L$182,G$182)),0) -> 14.80107472 | H264: =IF(H12=-1,'Crop budgets'!H50*'Crop budgets'!$K50*IF($L$78>0,$L$78,IF($L$5=0,$L$182,H$182)),0) -> 0 | I264: =IF(I12=-1,'Crop budgets'!I50*'Crop budgets'!$K50*IF($L$78>0,$L$78,IF($L$5=0,$L$182,I$182)),0) -> 0 | L264: =SUMPRODUCT(D$113:I$113,D264:I264) -> 699.0661446
C265: ='Crop budgets'!C51 -> N (dry/liquid) | D265: =IF(D13=-1,'Crop budgets'!D51*'Crop budgets'!$K51*IF($L$78>0,$L$78,IF($L$5=0,$L$182,D$182)),0) -> 21.06306788 | E265: =IF(E13=-1,'Crop budgets'!E51*'Crop budgets'!$K51*IF($L$78>0,$L$78,IF($L$5=0,$L$182,E$182)),0) -> 3.93177267 | F265: =IF(F13=-1,'Crop budgets'!F51*'Crop budgets'!$K51*IF($L$78>0,$L$78,IF($L$5=0,$L$182,F$182)),0) -> 0 | G265: =IF(G13=-1,'Crop budgets'!G51*'Crop budgets'!$K51*IF($L$78>0,$L$78,IF($L$5=0,$L$182,G$182)),0) -> 4.49345448 | H265: =IF(H13=-1,'Crop budgets'!H51*'Crop budgets'!$K51*IF($L$78>0,$L$78,IF($L$5=0,$L$182,H$182)),0) -> 0 | I265: =IF(I13=-1,'Crop budgets'!I51*'Crop budgets'!$K51*IF($L$78>0,$L$78,IF($L$5=0,$L$182,I$182)),0) -> 0 | L265: 1898.484518
... 115 more rows

Sheet Lease budgets
B2: TABLE 6. CROP BUDGETS SHOWING OPERATOR'S COSTS AND RETURNS
B4: =Shares!D4 -> NC KS farmer | L4: =NOW() -> 2016-08-01T13:32:39.680 | M4: =NOW() -> 42583.56435
B6: Equitable share (OS%) =========> | D6: =IF(D9>0,IF(Shares!$L78>0,Shares!$L78,IF(Shares!$L5=0,Shares!$L182,Shares!D182)),"") -> 0.759029473 | E6: =IF(E9>0,IF(Shares!$L78>0,Shares!$L78,IF(Shares!$L5=0,Shares!$L182,Shares!E182)),"") -> 0.759029473 | F6: =IF(F9>0,IF(Shares!$L78>0,Shares!$L78,IF(Shares!$L5=0,Shares!$L182,Shares!F182)),"") -> 0.759029473 | G6: =IF(G9>0,IF(Shares!$L78>0,Shares!$L78,IF(Shares!$L5=0,Shares!$L182,Shares!G182)),"") -> 0.759029473 | H6: =IF(H9>0,IF(Shares!$L78>0,Shares!$L78,IF(Shares!$L5=0,Shares!$L182,Shares!H182)),"") ->  | I6: =IF(I9>0,IF(Shares!$L78>0,Shares!$L78,IF(Shares!$L5=0,Shares!$L182,Shares!I182)),"") ->  | K6: =IF(Shares!L78>0,Shares!L78,Shares!L182) -> 0.759029473
B7: Crop/System | D7: =IF('Crop budgets'!D$5>0,'Crop budgets'!D$4,"") -> Wheat | E7: =IF('Crop budgets'!E$5>0,'Crop budgets'!E$4,"") -> Milo | F7: =IF('Crop budgets'!F$5>0,'Crop budgets'!F$4,"") -> Soybeans | G7: =IF('Crop budgets'!G$5>0,'Crop budgets'!G$4,"") -> Corn | H7: =IF('Crop budgets'!H$5>0,'Crop budgets'!H$4,"") ->  | I7: =IF('Crop budgets'!I$5>0,'Crop budgets'!I$4,"") ->  | K7: Total | L7: Per | M7: Per
B8: Total tillable acre | D8: ================================================> | K8: ='Crop budgets'!K6 -> 160 | L8: Planted | M8: Tillable
B9: Planted acres of each crop | D9: =IF('Crop budgets'!D$5>0,'Crop budgets'!D$5,"") -> 80 | E9: =IF('Crop budgets'!E$5>0,'Crop budgets'!E$5,"") -> 20 | F9: =IF('Crop budgets'!F$5>0,'Crop budgets'!F$5,"") -> 30 | G9: =IF('Crop budgets'!G$5>0,'Crop budgets'!G$5,"") -> 30 | H9: =IF('Crop budgets'!H$5>0,'Crop budgets'!H$5,"") ->  | I9: =IF('Crop budgets'!I$5>0,'Crop budgets'!I$5,"") ->  | K9: =SUM(D9:I9) -> 160 | L9: Acre | M9: Acre
B10: Harvested yield per acre | D10: =IF('Crop budgets'!D$5>0,'Crop budgets'!D$9,"") -> 56 | E10: =IF('Crop budgets'!E$5>0,'Crop budgets'!E$9,"") -> 77 | F10: =IF('Crop budgets'!F$5>0,'Crop budgets'!F$9,"") -> 30 | G10: =IF('Crop budgets'!G$5>0,'Crop budgets'!G$9,"") -> 90 | H10: =IF('Crop budgets'!H$5>0,'Crop budgets'!H$9,"") ->  | I10: =IF('Crop budgets'!I$5>0,'Crop budgets'!I$9,"") ->  | K10: --- | L10: --- | M10: ---
B12: INCOME PER ACRE | D12: =IF(D9=0,1,0) -> 0 | E12: 0 | F12: 0 | G12: 0 | H12: 1 | I12: 1
B13: A. Yield per acre | D13: =IF('Crop budgets'!D$5>0,'Crop budgets'!D9*D$6,"") -> 42.50565049 | E13: =IF('Crop budgets'!E$5>0,'Crop budgets'!E9*E$6,"") -> 58.44526942 | F13: =IF('Crop budgets'!F$5>0,'Crop budgets'!F9*F$6,"") -> 22.77088419 | G13: =IF('Crop budgets'!G$5>0,'Crop budgets'!G9*G$6,"") -> 68.31265257 | H13: =IF('Crop budgets'!H$5>0,'Crop budgets'!H9*H$6,"") ->  | I13: =IF('Crop budgets'!I$5>0,'Crop budgets'!I9*I$6,"") ->  | K13: --- | L13: --- | M13: ---
B14: B. Price per unit | D14: =IF('Crop budgets'!D$5>0,'Crop budgets'!D10,"") -> 5.25 | E14: =IF('Crop budgets'!E$5>0,'Crop budgets'!E10,"") -> 3.7 | F14: =IF('Crop budgets'!F$5>0,'Crop budgets'!F10,"") -> 9.6 | G14: =IF('Crop budgets'!G$5>0,'Crop budgets'!G10,"") -> 3.9 | H14: =IF('Crop budgets'!H$5>0,'Crop budgets'!H10,"") ->  | I14: =IF('Crop budgets'!I$5>0,'Crop budgets'!I10,"") ->  | K14: --- | L14: --- | M14: ---
B15: C. Net government payments | D15: =IF('Crop budgets'!D$5>0,'Crop budgets'!D11*D$6,"") -> 7.59029473 | E15: =IF('Crop budgets'!E$5>0,'Crop budgets'!E11*E$6,"") -> 7.59029473 | F15: =IF('Crop budgets'!F$5>0,'Crop budgets'!F11*F$6,"") -> 7.59029473 | G15: =IF('Crop budgets'!G$5>0,'Crop budgets'!G11*G$6,"") -> 7.59029473 | H15: =IF('Crop budgets'!H$5>0,'Crop budgets'!H11*H$6,"") ->  | I15: =IF('Crop budgets'!I$5>0,'Crop budgets'!I11*I$6,"") ->  | K15: =SUMPRODUCT(D$9:I$9,D15:I15) -> 1214.447157 | L15: =K15/K$9 -> 7.59029473 | M15: =K15/K$8 -> 7.59029473
B16: D. Indemnity payments | D16: =IF('Crop budgets'!D$5>0,'Crop budgets'!D12*D$6,"") -> 0 | E16: =IF('Crop budgets'!E$5>0,'Crop budgets'!E12*E$6,"") -> 0 | F16: =IF('Crop budgets'!F$5>0,'Crop budgets'!F12*F$6,"") -> 0 | G16: =IF('Crop budgets'!G$5>0,'Crop budgets'!G12*G$6,"") -> 0 | H16: =IF('Crop budgets'!H$5>0,'Crop budgets'!H12*H$6,"") ->  | I16: =IF('Crop budgets'!I$5>0,'Crop budgets'!I12*I$6,"") ->  | K16: =SUMPRODUCT(D$9:I$9,D16:I16) -> 0 | L16: =K16/K$9 -> 0 | M16: =K16/K$8 -> 0
B17: E. Miscellaneous income | D17: =IF('Crop budgets'!D$5>0,'Crop budgets'!D13*D$6,"") -> 0 | E17: =IF('Crop budgets'!E$5>0,'Crop budgets'!E13*E$6,"") -> 0 | F17: =IF('Crop budgets'!F$5>0,'Crop budgets'!F13*F$6,"") -> 0 | G17: =IF('Crop budgets'!G$5>0,'Crop budgets'!G13*G$6,"") -> 0 | H17: =IF('Crop budgets'!H$5>0,'Crop budgets'!H13*H$6,"") ->  | I17: =IF('Crop budgets'!I$5>0,'Crop budgets'!I13*I$6,"") ->  | K17: =SUMPRODUCT(D$9:I$9,D17:I17) -> 0 | L17: =K17/K$9 -> 0 | M17: =K17/K$8 -> 0
B18: F. Returns/acre ((AxB) + C + D + E) | D18: =IF(D12=1,"",D13*D14+D15+D16+D17) -> 230.7449598 | E18: 223.8377916 | F18: 226.1907829 | G18: 274.0096397 | K18: =SUMPRODUCT(D$9:I$9,D18:I18) -> 37942.3653 | L18: =K18/K$9 -> 237.1397831 | M18: =K18/K$8 -> 237.1397831
B20: COSTS PER ACRE
C21: 1. Seed | D21: =IF(D9>0,Shares!D116+Shares!D262,"") -> 16 | E21: =IF(E9>0,Shares!E116+Shares!E262,"") -> 18.9 | F21: =IF(F9>0,Shares!F116+Shares!F262,"") -> 61.6 | G21: =IF(G9>0,Shares!G116+Shares!G262,"") -> 93.6 | H21: =IF(H9>0,Shares!H116+Shares!H262,"") ->  | I21: =IF(I9>0,Shares!I116+Shares!I262,"") ->  | K21: =SUMPRODUCT(D$9:I$9,D21:I21) -> 6314 | L21: =K21/K$9 -> 39.4625 | M21: =K21/K$8 -> 39.4625
C22: 2. Herbicide | D22: =IF(D9>0,SUM(Shares!D127:D136,Shares!D273:D282),"") -> 5.42 | E22: =IF(E9>0,SUM(Shares!E127:E136,Shares!E273:E282),"") -> 36.61 | F22: =IF(F9>0,SUM(Shares!F127:F136,Shares!F273:F282),"") -> 13.54 | G22: =IF(G9>0,SUM(Shares!G127:G136,Shares!G273:G282),"") -> 27.528 | H22: =IF(H9>0,SUM(Shares!H127:H136,Shares!H273:H282),"") ->  | I22: =IF(I9>0,SUM(Shares!I127:I136,Shares!I273:I282),"") ->  | K22: 2397.84 | L22: 14.9865 | M22: 14.9865
C23: 3. Insecticide / Fungicide | D23: =IF(D9>0,SUM(Shares!D138:D141,Shares!D284:D287),"") -> 30.42 | E23: =IF(E9>0,SUM(Shares!E138:E141,Shares!E284:E287),"") -> 0 | F23: =IF(F9>0,SUM(Shares!F138:F141,Shares!F284:F287),"") -> 0 | G23: =IF(G9>0,SUM(Shares!G138:G141,Shares!G284:G287),"") -> 0 | H23: =IF(H9>0,SUM(Shares!H138:H141,Shares!H284:H287),"") ->  | I23: =IF(I9>0,SUM(Shares!I138:I141,Shares!I284:I287),"") ->  | K23: 2433.6 | L23: 15.21 | M23: 15.21
C24: 4. Fertilizer and Lime | D24: =IF(D9>0,SUM(Shares!D118:D125,Shares!D264:D271),"") -> 29.03287734 | E24: =IF(E9>0,SUM(Shares!E118:E125,Shares!E264:E271),"") -> 27.26737479 | F24: =IF(F9>0,SUM(Shares!F118:F125,Shares!F264:F271),"") -> 7.651017088 | G24: =IF(G9>0,SUM(Shares!G118:G125,Shares!G264:G271),"") -> 30.13347008 | H24: =IF(H9>0,SUM(Shares!H118:H125,Shares!H264:H271),"") ->  | I24: =IF(I9>0,SUM(Shares!I118:I125,Shares!I264:I271),"") ->  | K24: 4001.512298 | L24: 25.00945186 | M24: 25.00945186
C25: 5. Crop Consulting | D25: =IF(D9>0,Shares!D142+Shares!D288,"") -> 0 | E25: =IF(E9>0,Shares!E142+Shares!E288,"") -> 0 | F25: =IF(F9>0,Shares!F142+Shares!F288,"") -> 0 | G25: =IF(G9>0,Shares!G142+Shares!G288,"") -> 0 | H25: =IF(H9>0,Shares!H142+Shares!H288,"") ->  | I25: =IF(I9>0,Shares!I142+Shares!I288,"") ->  | K25: 0 | L25: 0 | M25: 0
C26: 6. Crop Insurance | D26: =IF(D9>0,Shares!D143+Shares!D289,"") -> 3.795147365 | E26: =IF(E9>0,Shares!E143+Shares!E289,"") -> 5.313206311 | F26: =IF(F9>0,Shares!F143+Shares!F289,"") -> 4.743934206 | G26: =IF(G9>0,Shares!G143+Shares!G289,"") -> 6.831265257 | H26: =IF(H9>0,Shares!H143+Shares!H289,"") ->  | I26: =IF(I9>0,Shares!I143+Shares!I289,"") ->  | K26: 757.1318993 | L26: 4.732074371 | M26: 4.732074371
C27: 7. Drying | D27: =IF(D9>0,Shares!D144+Shares!D290,"") -> 0 | E27: =IF(E9>0,Shares!E144+Shares!E290,"") -> 7.597885025 | F27: =IF(F9>0,Shares!F144+Shares!F290,"") -> 0 | G27: =IF(G9>0,Shares!G144+Shares!G290,"") -> 0 | H27: =IF(H9>0,Shares!H144+Shares!H290,"") ->  | I27: =IF(I9>0,Shares!I144+Shares!I290,"") ->  | K27: 151.9577005 | L27: =K27/K$9 -> 0.9497356281 | M27: 0.9497356281
C28: 8. Miscellaneous | D28: =IF(D9>0,Shares!D165+Shares!D311,"") -> 4.875 | E28: =IF(E9>0,Shares!E165+Shares!E311,"") -> 4.875 | F28: =IF(F9>0,Shares!F165+Shares!F311,"") -> 4.875 | G28: =IF(G9>0,Shares!G165+Shares!G311,"") -> 4.875 | H28: =IF(H9>0,Shares!H165+Shares!H311,"") ->  | I28: =IF(I9>0,Shares!I165+Shares!I311,"") ->  | K28: 780 | L28: 4.875 | M28: 4.875
C29: 9. Machinery Expense | D29: =IF(D9>0,SUM(Shares!D151:D163,Shares!D297:D309),"") -> 97.968 | E29: =IF(E9>0,SUM(Shares!E151:E163,Shares!E297:E309),"") -> 120.3 | F29: =IF(F9>0,SUM(Shares!F151:F163,Shares!F297:F309),"") -> 96.9 | G29: =IF(G9>0,SUM(Shares!G151:G163,Shares!G297:G309),"") -> 138.396 | H29: =IF(H9>0,SUM(Shares!H151:H163,Shares!H297:H309),"") ->  | I29: =IF(I9>0,SUM(Shares!I151:I163,Shares!I297:I309),"") ->  | K29: 17302.32 | L29: 108.1395 | M29: 108.1395
C30: 10. Non-machinery Labor | D30: =IF(D9>0,Shares!D166+Shares!D312,"") -> 15 | E30: =IF(E9>0,Shares!E166+Shares!E312,"") -> 15 | F30: =IF(F9>0,Shares!F166+Shares!F312,"") -> 15 | G30: =IF(G9>0,Shares!G166+Shares!G312,"") -> 15 | H30: =IF(H9>0,Shares!H166+Shares!H312,"") ->  | I30: =IF(I9>0,Shares!I166+Shares!I312,"") ->  | K30: 2400 | L30: 15 | M30: 15
C31: 11. Irrigation | D31: =IF(D9>0,SUM(Shares!D169:D173,Shares!D315:D319),"") -> 0 | E31: =IF(E9>0,SUM(Shares!E169:E173,Shares!E315:E319),"") -> 0 | F31: =IF(F9>0,SUM(Shares!F169:F173,Shares!F315:F319),"") -> 0 | G31: =IF(G9>0,SUM(Shares!G169:G173,Shares!G315:G319),"") -> 0 | H31: =IF(H9>0,SUM(Shares!H169:H173,Shares!H315:H319),"") ->  | I31: =IF(I9>0,SUM(Shares!I169:I173,Shares!I315:I319),"") ->  | K31: 0 | L31: 0 | M31: 0
C32: 12. Land Charge / Rent | D32: =IF(D9>0,SUM(Shares!D175:D176)+Shares!D321,"") -> 0 | E32: =IF(E9>0,SUM(Shares!E175:E176)+Shares!E321,"") -> 0 | F32: =IF(F9>0,SUM(Shares!F175:F176)+Shares!F321,"") -> 0 | G32: =IF(G9>0,SUM(Shares!G175:G176)+Shares!G321,"") -> 0 | H32: =IF(H9>0,SUM(Shares!H175:H176)+Shares!H321,"") ->  | I32: =IF(I9>0,SUM(Shares!I175:I176)+Shares!I321,"") ->  | K32: 0 | L32: 0 | M32: 0
B33: G. SUB TOTAL | D33: =IF(D9>0,SUM(D21:D32),"") -> 202.5110247 | E33: 235.8634661 | F33: 204.3099513 | G33: 316.3637353 | K33: 36538.3619 | L33: 228.3647619 | M33: 228.3647619
C34: 13. Interest on 1/2 Nonland Costs | D34: =IF(D9>0,Shares!D178+Shares!D324,"") -> 5.514981703 | E34: =IF(E9>0,Shares!E178+Shares!E324,"") -> 6.108865136 | F34: =IF(F9>0,Shares!F178+Shares!F324,"") -> 5.585074667 | G34: =IF(G9>0,Shares!G178+Shares!G324,"") -> 8.775034948 | H34: =IF(H9>0,Shares!H178+Shares!H324,"") ->  | I34: =IF(I9>0,Shares!I178+Shares!I324,"") ->  | K34: 994.1791274 | L34: 6.213619546 | M34: 6.213619546
B35: H. TOTAL COSTS | D35: =IF(D9>0,D33+D34,"") -> 208.0260064 | E35: 241.9723313 | F35: 209.895026 | G35: 325.1387703 | K35: 37532.54103 | L35: 234.5783814 | M35: 234.5783814
B36: I. RETURNS OVER COSTS (F - H) | D36: =IF(D9>0,D18-D35,"") -> 22.71895338 | E36: -18.13453968 | F36: 16.29575699 | G36: -51.12913054 | K36: 409.8242703 | L36: 2.561401689 | M36: 2.561401689
B37: J. TOTAL COSTS/UNIT (H/A) | D37: =IF(D12=1,"",IF(D13=0,"n/a",D35/D13)) -> 4.894078882 | E37: =IF(E12=1,"",IF(E13=0,"n/a",E35/E13)) -> 4.140152551 | F37: =IF(F12=1,"",IF(F13=0,"n/a",F35/F13)) -> 9.217693271 | G37: =IF(G12=1,"",IF(G13=0,"n/a",G35/G13)) -> 4.759568807 | K37: --- | L37: --- | M37: ---
B38: K. RETURN TO TOTAL COST (I/H) | D38: =IF(D12=1,"",IF(D13=0,"n/a",D36/D35)) -> 0.1092120825 | E38: -0.07494468306 | F38: 0.07763765203 | G38: -0.1572532568 | K38: =K36/K35 -> 0.01091917198 | L38: =L36/L35 -> 0.01091917198 | M38: =M36/M35 -> 0.01091917198
B42: TABLE 7. CROP BUDGETS SHOWING LANDOWNER'S COSTS AND RETURNS
B44: =Shares!D3 -> North Central KS landowner | L44: =NOW() -> 2016-08-01T13:32:39.680 | M44: =NOW() -> 42583.56435
B46: Equitable share (100 - OS%) =====> | D46: =IF(D9>0,(1-D6),"") -> 0.240970527 | E46: 0.240970527 | F46: 0.240970527 | G46: 0.240970527 | K46: =IF(K9>0,(1-K6),"") -> 0.240970527
B47: Crop/System | D47: =IF('Crop budgets'!D$5>0,'Crop budgets'!D$4,"") -> Wheat | E47: =IF('Crop budgets'!E$5>0,'Crop budgets'!E$4,"") -> Milo | F47: =IF('Crop budgets'!F$5>0,'Crop budgets'!F$4,"") -> Soybeans | G47: =IF('Crop budgets'!G$5>0,'Crop budgets'!G$4,"") -> Corn | H47: =IF('Crop budgets'!H$5>0,'Crop budgets'!H$4,"") ->  | I47: =IF('Crop budgets'!I$5>0,'Crop budgets'!I$4,"") ->  | K47: Total | L47: Per | M47: Per
B48: Total tillable acre | D48: ================================================> | K48: ='Crop budgets'!K6 -> 160 | L48: Planted | M48: Tillable
B49: Planted acres of each crop | D49: =IF('Crop budgets'!D$5>0,'Crop budgets'!D$5,"") -> 80 | E49: =IF('Crop budgets'!E$5>0,'Crop budgets'!E$5,"") -> 20 | F49: =IF('Crop budgets'!F$5>0,'Crop budgets'!F$5,"") -> 30 | G49: =IF('Crop budgets'!G$5>0,'Crop budgets'!G$5,"") -> 30 | H49: =IF('Crop budgets'!H$5>0,'Crop budgets'!H$5,"") ->  | I49: =IF('Crop budgets'!I$5>0,'Crop budgets'!I$5,"") ->  | K49: =SUM(D49:I49) -> 160 | L49: Acre | M49: Acre
B50: Harvested yield per acre | D50: =IF('Crop budgets'!D$5>0,'Crop budgets'!D$9,"") -> 56 | E50: =IF('Crop budgets'!E$5>0,'Crop budgets'!E$9,"") -> 77 | F50: =IF('Crop budgets'!F$5>0,'Crop budgets'!F$9,"") -> 30 | G50: =IF('Crop budgets'!G$5>0,'Crop budgets'!G$9,"") -> 90 | H50: =IF('Crop budgets'!H$5>0,'Crop budgets'!H$9,"") ->  | I50: =IF('Crop budgets'!I$5>0,'Crop budgets'!I$9,"") ->  | K50: --- | L50: --- | M50: ---
B52: INCOME PER ACRE | D52: =IF(D49=0,1,0) -> 0 | E52: 0 | F52: 0 | G52: 0 | H52: 1 | I52: 1
B53: A. Yield per acre | D53: =IF('Crop budgets'!D$5>0,'Crop budgets'!D9*D$46,"") -> 13.49434951 | E53: =IF('Crop budgets'!E$5>0,'Crop budgets'!E9*E$46,"") -> 18.55473058 | F53: =IF('Crop budgets'!F$5>0,'Crop budgets'!F9*F$46,"") -> 7.22911581 | G53: =IF('Crop budgets'!G$5>0,'Crop budgets'!G9*G$46,"") -> 21.68734743 | H53: =IF('Crop budgets'!H$5>0,'Crop budgets'!H9*H$46,"") ->  | I53: =IF('Crop budgets'!I$5>0,'Crop budgets'!I9*I$46,"") ->  | K53: --- | L53: --- | M53: ---
B54: B. Price per unit | D54: =IF('Crop budgets'!D$5>0,'Crop budgets'!D10,"") -> 5.25 | E54: =IF('Crop budgets'!E$5>0,'Crop budgets'!E10,"") -> 3.7 | F54: =IF('Crop budgets'!F$5>0,'Crop budgets'!F10,"") -> 9.6 | G54: =IF('Crop budgets'!G$5>0,'Crop budgets'!G10,"") -> 3.9 | H54: =IF('Crop budgets'!H$5>0,'Crop budgets'!H10,"") ->  | I54: =IF('Crop budgets'!I$5>0,'Crop budgets'!I10,"") ->  | K54: --- | L54: --- | M54: ---
B55: C. Net government payments | D55: =IF('Crop budgets'!D$5>0,'Crop budgets'!D11*D$46,"") -> 2.40970527 | E55: =IF('Crop budgets'!E$5>0,'Crop budgets'!E11*E$46,"") -> 2.40970527 | F55: =IF('Crop budgets'!F$5>0,'Crop budgets'!F11*F$46,"") -> 2.40970527 | G55: =IF('Crop budgets'!G$5>0,'Crop budgets'!G11*G$46,"") -> 2.40970527 | H55: =IF('Crop budgets'!H$5>0,'Crop budgets'!H11*H$46,"") ->  | I55: =IF('Crop budgets'!I$5>0,'Crop budgets'!I11*I$46,"") ->  | K55: =SUMPRODUCT(D$9:I$9,D55:I55) -> 385.5528432 | L55: =K55/K$9 -> 2.40970527 | M55: =K55/K$8 -> 2.40970527
B56: D. Indemnity payments | D56: =IF('Crop budgets'!D$5>0,'Crop budgets'!D12*D$46,"") -> 0 | E56: =IF('Crop budgets'!E$5>0,'Crop budgets'!E12*E$46,"") -> 0 | F56: =IF('Crop budgets'!F$5>0,'Crop budgets'!F12*F$46,"") -> 0 | G56: =IF('Crop budgets'!G$5>0,'Crop budgets'!G12*G$46,"") -> 0 | H56: =IF('Crop budgets'!H$5>0,'Crop budgets'!H12*H$46,"") ->  | I56: =IF('Crop budgets'!I$5>0,'Crop budgets'!I12*I$46,"") ->  | K56: =SUMPRODUCT(D$9:I$9,D56:I56) -> 0 | L56: =K56/K$9 -> 0 | M56: =K56/K$8 -> 0
B57: E. Miscellaneous income | D57: =IF('Crop budgets'!D$5>0,'Crop budgets'!D13*D$46,"") -> 0 | E57: =IF('Crop budgets'!E$5>0,'Crop budgets'!E13*E$46,"") -> 0 | F57: =IF('Crop budgets'!F$5>0,'Crop budgets'!F13*F$46,"") -> 0 | G57: =IF('Crop budgets'!G$5>0,'Crop budgets'!G13*G$46,"") -> 0 | H57: =IF('Crop budgets'!H$5>0,'Crop budgets'!H13*H$46,"") ->  | I57: =IF('Crop budgets'!I$5>0,'Crop budgets'!I13*I$46,"") ->  | K57: =SUMPRODUCT(D$9:I$9,D57:I57) -> 0 | L57: =K57/K$9 -> 0 | M57: =K57/K$8 -> 0
B58: F. Returns/acre ((AxB) + C + D + E) | D58: =IF(D52=1,"",D53*D54+D55+D56+D57) -> 73.25504021 | E58: 71.06220842 | F58: 71.80921705 | G58: 86.99036025 | K58: =SUMPRODUCT(D$9:I$9,D58:I58) -> 12045.6347 | L58: =K58/K$9 -> 75.2852169 | M58: =K58/K$8 -> 75.2852169
B60: COSTS PER ACRE
C61: 1. Seed | D61: =IF(D49>0,Shares!D189+Shares!D335,"") -> 0 | E61: =IF(E49>0,Shares!E189+Shares!E335,"") -> 0 | F61: =IF(F49>0,Shares!F189+Shares!F335,"") -> 0 | G61: =IF(G49>0,Shares!G189+Shares!G335,"") -> 0 | H61: =IF(H49>0,Shares!H189+Shares!H335,"") ->  | I61: =IF(I49>0,Shares!I189+Shares!I335,"") ->  | K61: =SUMPRODUCT(D$9:I$9,D61:I61) -> 0 | L61: =K61/K$9 -> 0 | M61: =K61/K$8 -> 0
C62: 2. Herbicide | D62: =IF(D49>0,SUM(Shares!D200:D209,Shares!D346:D355),"") -> 0 | E62: =IF(E49>0,SUM(Shares!E200:E209,Shares!E346:E355),"") -> 0 | F62: =IF(F49>0,SUM(Shares!F200:F209,Shares!F346:F355),"") -> 0 | G62: =IF(G49>0,SUM(Shares!G200:G209,Shares!G346:G355),"") -> 0 | H62: =IF(H49>0,SUM(Shares!H200:H209,Shares!H346:H355),"") ->  | I62: =IF(I49>0,SUM(Shares!I200:I209,Shares!I346:I355),"") ->  | K62: 0 | L62: 0 | M62: 0
C63: 3. Insecticide / Fungicide | D63: =IF(D49>0,SUM(Shares!D211:D214,Shares!D357:D360),"") -> 0 | E63: =IF(E49>0,SUM(Shares!E211:E214,Shares!E357:E360),"") -> 0 | F63: =IF(F49>0,SUM(Shares!F211:F214,Shares!F357:F360),"") -> 0 | G63: =IF(G49>0,SUM(Shares!G211:G214,Shares!G357:G360),"") -> 0 | H63: =IF(H49>0,SUM(Shares!H211:H214,Shares!H357:H360),"") ->  | I63: =IF(I49>0,SUM(Shares!I211:I214,Shares!I357:I360),"") ->  | K63: 0 | L63: 0 | M63: 0
C64: 4. Fertilizer and Lime | D64: =IF(D49>0,SUM(Shares!D191:D198,Shares!D337:D344),"") -> 16.71712266 | E64: =IF(E49>0,SUM(Shares!E191:E198,Shares!E337:E344),"") -> 16.15662521 | F64: =IF(F49>0,SUM(Shares!F191:F198,Shares!F337:F344),"") -> 9.928982912 | G64: =IF(G49>0,SUM(Shares!G191:G198,Shares!G337:G344),"") -> 17.06652992 | H64: =IF(H49>0,SUM(Shares!H191:H198,Shares!H337:H344),"") ->  | I64: =IF(I49>0,SUM(Shares!I191:I198,Shares!I337:I344),"") ->  | K64: 2470.367702 | L64: 15.43979814 | M64: 15.43979814
C65: 5. Crop Consulting | D65: =IF(D49>0,Shares!D215+Shares!D361,"") -> 0 | E65: =IF(E49>0,Shares!E215+Shares!E361,"") -> 0 | F65: =IF(F49>0,Shares!F215+Shares!F361,"") -> 0 | G65: =IF(G49>0,Shares!G215+Shares!G361,"") -> 0 | H65: =IF(H49>0,Shares!H215+Shares!H361,"") ->  | I65: =IF(I49>0,Shares!I215+Shares!I361,"") ->  | K65: 0 | L65: 0 | M65: 0
C66: 6. Crop Insurance | D66: =IF(D49>0,Shares!D216+Shares!D362,"") -> 1.204852635 | E66: =IF(E49>0,Shares!E216+Shares!E362,"") -> 1.686793689 | F66: =IF(F49>0,Shares!F216+Shares!F362,"") -> 1.506065794 | G66: =IF(G49>0,Shares!G216+Shares!G362,"") -> 2.168734743 | H66: =IF(H49>0,Shares!H216+Shares!H362,"") ->  | I66: =IF(I49>0,Shares!I216+Shares!I362,"") ->  | K66: 240.3681007 | L66: 1.502300629 | M66: 1.502300629
C67: 7. Drying | D67: =IF(D49>0,Shares!D217+Shares!D363,"") -> 0 | E67: =IF(E49>0,Shares!E217+Shares!E363,"") -> 2.412114975 | F67: =IF(F49>0,Shares!F217+Shares!F363,"") -> 0 | G67: =IF(G49>0,Shares!G217+Shares!G363,"") -> 0 | H67: =IF(H49>0,Shares!H217+Shares!H363,"") ->  | I67: =IF(I49>0,Shares!I217+Shares!I363,"") ->  | K67: 48.24229951 | L67: 0.3015143719 | M67: 0.3015143719
C68: 8. Miscellaneous | D68: =IF(D49>0,Shares!D238+Shares!D384,"") -> 1.625 | E68: =IF(E49>0,Shares!E238+Shares!E384,"") -> 1.625 | F68: =IF(F49>0,Shares!F238+Shares!F384,"") -> 1.625 | G68: =IF(G49>0,Shares!G238+Shares!G384,"") -> 1.625 | H68: =IF(H49>0,Shares!H238+Shares!H384,"") ->  | I68: =IF(I49>0,Shares!I238+Shares!I384,"") ->  | K68: 260 | L68: 1.625 | M68: 1.625
C69: 9. Machinery Expense | D69: =IF(D49>0,SUM(Shares!D224:D236,Shares!D370:D382),"") -> 0 | E69: =IF(E49>0,SUM(Shares!E224:E236,Shares!E370:E382),"") -> 0 | F69: =IF(F49>0,SUM(Shares!F224:F236,Shares!F370:F382),"") -> 0 | G69: =IF(G49>0,SUM(Shares!G224:G236,Shares!G370:G382),"") -> 0 | H69: =IF(H49>0,SUM(Shares!H224:H236,Shares!H370:H382),"") ->  | I69: =IF(I49>0,SUM(Shares!I224:I236,Shares!I370:I382),"") ->  | K69: 0 | L69: 0 | M69: 0
C70: 10. Non-machinery Labor | D70: =IF(D49>0,Shares!D239+Shares!D385,"") -> 0 | E70: =IF(E49>0,Shares!E239+Shares!E385,"") -> 0 | F70: =IF(F49>0,Shares!F239+Shares!F385,"") -> 0 | G70: =IF(G49>0,Shares!G239+Shares!G385,"") -> 0 | H70: =IF(H49>0,Shares!H239+Shares!H385,"") ->  | I70: =IF(I49>0,Shares!I239+Shares!I385,"") ->  | K70: 0 | L70: 0 | M70: 0
C71: 11. Irrigation | D71: =IF(D49>0,SUM(Shares!D242:D246,Shares!D388:D392),"") -> 0 | E71: =IF(E49>0,SUM(Shares!E242:E246,Shares!E388:E392),"") -> 0 | F71: =IF(F49>0,SUM(Shares!F242:F246,Shares!F388:F392),"") -> 0 | G71: =IF(G49>0,SUM(Shares!G242:G246,Shares!G388:G392),"") -> 0 | H71: =IF(H49>0,SUM(Shares!H242:H246,Shares!H388:H392),"") ->  | I71: =IF(I49>0,SUM(Shares!I242:I246,Shares!I388:I392),"") ->  | K71: 0 | L71: 0 | M71: 0
C72: 12. Land Charge / Rent | D72: =IF(D49>0,SUM(Shares!D248:D249)+Shares!D394,"") -> 55 | E72: =IF(E49>0,SUM(Shares!E248:E249)+Shares!E394,"") -> 55 | F72: =IF(F49>0,SUM(Shares!F248:F249)+Shares!F394,"") -> 55 | G72: =IF(G49>0,SUM(Shares!G248:G249)+Shares!G394,"") -> 55 | H72: =IF(H49>0,SUM(Shares!H248:H249)+Shares!H394,"") ->  | I72: =IF(I49>0,SUM(Shares!I248:I249)+Shares!I394,"") ->  | K72: 8800 | L72: 55 | M72: 55
B73: G. SUB TOTAL | D73: =IF(D49>0,SUM(D61:D72),"") -> 74.54697529 | E73: 76.88053388 | F73: 68.06004871 | G73: 75.86026467 | K73: 11818.9781 | L73: 73.86861314 | M73: 73.86861314
C74: 13. Interest on 1/2 Nonland Costs | D74: =IF(D49>0,Shares!D251+Shares!D397,"") -> 0.635276697 | E74: =IF(E49>0,Shares!E251+Shares!E397,"") -> 0.6327236143 | F74: =IF(F49>0,Shares!F251+Shares!F397,"") -> 0.424451583 | G74: =IF(G49>0,Shares!G251+Shares!G397,"") -> 0.6779586016 | H74: =IF(H49>0,Shares!H251+Shares!H397,"") ->  | I74: =IF(I49>0,Shares!I251+Shares!I397,"") ->  | K74: 96.54891359 | L74: 0.6034307099 | M74: 0.6034307099
B75: H. TOTAL COSTS | D75: =IF(D49>0,D73+D74,"") -> 75.18225199 | E75: 77.51325749 | F75: 68.48450029 | G75: 76.53822327 | K75: 11915.52702 | L75: 74.47204385 | M75: 74.47204385
B76: I. RETURNS OVER COSTS (F - H) | D76: =IF(D49>0,D58-D75,"") -> -1.927211778 | E76: -6.451049074 | F76: 3.324716762 | G76: 10.45213699 | K76: 130.1076887 | L76: 0.8131730545 | M76: 0.8131730545
B77: J. TOTAL COSTS/UNIT (H/A) | D77: =IF(D52=1,"",IF(D53=0,"n/a",D75/D53)) -> 5.571387633 | E77: =IF(E52=1,"",IF(E53=0,"n/a",E75/E53)) -> 4.177546915 | F77: =IF(F52=1,"",IF(F53=0,"n/a",F75/F53)) -> 9.473426915 | G77: =IF(G52=1,"",IF(G53=0,"n/a",G75/G53)) -> 3.529164805 | K77: --- | L77: --- | M77: ---
B78: K. RETURN TO TOTAL COST (I/H) | D78: =IF(D52=1,"",IF(D53=0,"n/a",D76/D75)) -> -0.02563386606 | E78: -0.08322510604 | F78: 0.048546996 | G78: 0.1365610089 | K78: =K76/K75 -> 0.01091917198 | L78: =L76/L75 -> 0.01091917198 | M78: =M76/M75 -> 0.01091917198
B82: TABLE 8. ALTERNATIVE METHODS OF ESTIMATING CASH RENT | L82: =NOW() -> 2016-08-01T13:32:39.680 | M82: =NOW() -> 42583.56435
B84: Crop/System | D84: =IF('Crop budgets'!D$5>0,'Crop budgets'!D$4,"") -> Wheat | E84: =IF('Crop budgets'!E$5>0,'Crop budgets'!E$4,"") -> Milo | F84: =IF('Crop budgets'!F$5>0,'Crop budgets'!F$4,"") -> Soybeans | G84: =IF('Crop budgets'!G$5>0,'Crop budgets'!G$4,"") -> Corn | H84: =IF('Crop budgets'!H$5>0,'Crop budgets'!H$4,"") ->  | I84: =IF('Crop budgets'!I$5>0,'Crop budgets'!I$4,"") ->  | K84: Total | L84: Per | M84: Per
B85: Total tillable acre | D85: ================================================> | K85: ='Crop budgets'!K6 -> 160 | L85: Planted | M85: Tillable
B86: Planted acres of each crop | D86: =IF('Crop budgets'!D$5>0,'Crop budgets'!D$5,"") -> 80 | E86: =IF('Crop budgets'!E$5>0,'Crop budgets'!E$5,"") -> 20 | F86: =IF('Crop budgets'!F$5>0,'Crop budgets'!F$5,"") -> 30 | G86: =IF('Crop budgets'!G$5>0,'Crop budgets'!G$5,"") -> 30 | H86: =IF('Crop budgets'!H$5>0,'Crop budgets'!H$5,"") ->  | I86: =IF('Crop budgets'!I$5>0,'Crop budgets'!I$5,"") ->  | K86: =SUM(D86:I86) -> 160 | L86: Acre | M86: Acre
B88: A. Landowner's COST
C89: Land | D89: =IF(D86>0,'Crop budgets'!D102*'Crop budgets'!D6*'Crop budgets'!$K103,"") -> 55 | E89: =IF(E86>0,'Crop budgets'!E102*'Crop budgets'!E6*'Crop budgets'!$K103,"") -> 55 | F89: =IF(F86>0,'Crop budgets'!F102*'Crop budgets'!F6*'Crop budgets'!$K103,"") -> 55 | G89: =IF(G86>0,'Crop budgets'!G102*'Crop budgets'!G6*'Crop budgets'!$K103,"") -> 55 | H89: =IF(H86>0,'Crop budgets'!H102*'Crop budgets'!H6*'Crop budgets'!$K103,"") ->  | I89: =IF(I86>0,'Crop budgets'!I102*'Crop budgets'!I6*'Crop budgets'!$K103,"") ->  | K89: =K72 -> 8800 | L89: =L72 -> 55 | M89: =M72 -> 55
C90: Irrigation equipment | D90: =IF(D86>0,SUM(Shares!D245:D246,Shares!D391:D392),"") -> 0 | E90: =IF(E86>0,SUM(Shares!E245:E246,Shares!E391:E392),"") -> 0 | F90: =IF(F86>0,SUM(Shares!F245:F246,Shares!F391:F392),"") -> 0 | G90: =IF(G86>0,SUM(Shares!G245:G246,Shares!G391:G392),"") -> 0 | H90: =IF(H86>0,SUM(Shares!H245:H246,Shares!H391:H392),"") ->  | I90: =IF(I86>0,SUM(Shares!I245:I246,Shares!I391:I392),"") ->  | K90: =SUM(Shares!L245:L246,Shares!L391:L392) -> 0 | L90: =K90/K9 -> 0 | M90: =K90/K8 -> 0
C91: Total | D91: =IF(D86>0,D89+D90,"") -> 55 | E91: 55 | F91: 55 | G91: 55 | K91: =K89+K90 -> 8800 | L91: =L89+L90 -> 55 | M91: =M89+M90 -> 55
B94: B. Landowner's EQUITABLE SHARE RENT ----- risk adj factor | G94: 0
C95: Total income | D95: ='Crop budgets'!D14 -> 304 | E95: ='Crop budgets'!E14 -> 294.9 | F95: ='Crop budgets'!F14 -> 298 | G95: ='Crop budgets'!G14 -> 361 | H95: ='Crop budgets'!H14 ->  | I95: ='Crop budgets'!I14 ->  | K95: ='Crop budgets'!K14 -> 49988 | L95: =K95/K$86 -> 312.425 | M95: =K95/K$85 -> 312.425
C96: Landowner's share | D96: =D46 -> 0.240970527 | E96: 0.240970527 | F96: 0.240970527 | G96: 0.240970527 | K96: =K46 -> 0.240970527 | L96: =K96 -> 0.240970527 | M96: =K96 -> 0.240970527
C97: Landowner's income | D97: =IF(D86>0,D95*D96,"") -> 73.25504021 | E97: 71.06220842 | F97: 71.80921705 | G97: 86.99036025 | K97: =K95*K96 -> 12045.6347 | L97: =K97/K$86 -> 75.2852169 | M97: =K97/K$85 -> 75.2852169
C98: Landowner operating expense | D98: =IF(D86>0,D75-D91-Shares!D73,"") -> 20.18225199 | E98: =IF(E86>0,E75-E91-Shares!E73,"") -> 22.51325749 | F98: =IF(F86>0,F75-F91-Shares!F73,"") -> 13.48450029 | G98: =IF(G86>0,G75-G91-Shares!G73,"") -> 21.53822327 | H98: =IF(H86>0,H75-H91-Shares!H73,"") ->  | I98: =IF(I86>0,I75-I91-Shares!I73,"") ->  | K98: =K75-K91-SUMPRODUCT(Shares!D43:I43,Shares!D73:I73) -> 3115.527016 | L98: =K98/K$86 -> 19.47204385 | M98: =K98/K$85 -> 19.47204385
C99: Income less operating expense | D99: =IF(D86>0,D97-D98,"") -> 53.07278822 | E99: 48.54895093 | F99: 58.32471676 | G99: 65.45213699 | K99: =K97-K98 -> 8930.107689 | L99: =K99/K$86 -> 55.81317305 | M99: =K99/K$85 -> 55.81317305
C100: Less risk adjustment | D100: =IF(D86>0,D99*$G94,"") -> 0 | E100: 0 | F100: 0 | G100: 0 | K100: =+K99*$G94 -> 0 | L100: =+L99*$G94 -> 0 | M100: =+M99*$G94 -> 0
C101: Cash rent equivalent | D101: =IF(D86>0,D99-D100,"") -> 53.07278822 | E101: 48.54895093 | F101: 58.32471676 | G101: 65.45213699 | K101: =K99-K100 -> 8930.107689 | L101: =L99-L100 -> 55.81317305 | M101: =M99-M100 -> 55.81317305
B104: C. Amount tenant CAN AFFORD TO PAY
C105: Total income | D105: ='Crop budgets'!D14 -> 304 | E105: ='Crop budgets'!E14 -> 294.9 | F105: ='Crop budgets'!F14 -> 298 | G105: ='Crop budgets'!G14 -> 361 | H105: ='Crop budgets'!H14 ->  | I105: ='Crop budgets'!I14 ->  | K105: ='Crop budgets'!K14 -> 49988 | L105: ='Crop budgets'!L14 -> 312.425 | M105: ='Crop budgets'!M14 -> 312.425
C106: Total operating expense | D106: =IF(D86>0,'Crop budgets'!D31-D91,"") -> 228.2082584 | E106: =IF(E86>0,'Crop budgets'!E31-E91,"") -> 264.4855888 | F106: =IF(F86>0,'Crop budgets'!F31-F91,"") -> 223.3795263 | G106: =IF(G86>0,'Crop budgets'!G31-G91,"") -> 346.6769935 | H106: =IF(H86>0,'Crop budgets'!H31-H91,"") ->  | I106: =IF(I86>0,'Crop budgets'!I31-I91,"") ->  | K106: ='Crop budgets'!K31-K91 -> 40648.06804 | L106: ='Crop budgets'!L31-L91 -> 254.0504253 | M106: ='Crop budgets'!M31-M91 -> 254.0504253
C107: Return to land and irr equip | D107: =IF(D86>0,D105-D106,"") -> 75.7917416 | E107: 30.41441125 | F107: 74.62047375 | G107: 14.32300645 | K107: =K105-K106 -> 9339.931959 | L107: =L105-L106 -> 58.37457474 | M107: =M105-M106 -> 58.37457474
B110: Comparison of alternative cash rent methods
C111: Low | D111: =IF(D86>0,MIN(D91,D101,D107),"") -> 53.07278822 | E111: 30.41441125 | F111: 55 | G111: 14.32300645 | K111: =MIN(K91,K101,K107) -> 8800 | L111: =MIN(L91,L101,L107) -> 55 | M111: =MIN(M91,M101,M107) -> 55
C112: Average | D112: =IF(D86>0,AVERAGE(D91,D101,D107),"") -> 61.28817661 | E112: 44.65445406 | F112: 62.64839684 | G112: 44.92504781 | K112: =AVERAGE(K91,K101,K107) -> 9023.346549 | L112: =AVERAGE(L91,L101,L107) -> 56.39591593 | M112: =AVERAGE(M91,M101,M107) -> 56.39591593
C113: High | D113: =IF(D86>0,MAX(D91,D101,D107),"") -> 75.7917416 | E113: 55 | F113: 74.62047375 | G113: 65.45213699 | K113: =MAX(K91,K101,K107) -> 9339.931959 | L113: =MAX(L91,L101,L107) -> 58.37457474 | M113: =MAX(M91,M101,M107) -> 58.37457474
B116: Returns above all costs (profit) | D116: =IF(D86>0,'Crop budgets'!D32,"") -> 20.7917416 | E116: =IF(E86>0,'Crop budgets'!E32,"") -> -24.58558875 | F116: =IF(F86>0,'Crop budgets'!F32,"") -> 19.62047375 | G116: =IF(G86>0,'Crop budgets'!G32,"") -> -40.67699355 | H116: =IF(H86>0,'Crop budgets'!H32,"") ->  | I116: =IF(I86>0,'Crop budgets'!I32,"") ->  | K116: ='Crop budgets'!K32 -> 539.931959 | L116: ='Crop budgets'!L32 -> 3.374574744 | M116: ='Crop budgets'!M32 -> 3.374574744
B120: D. | C120: Hiring custom operator and paying a management fee | K120: 0.2
C121: Management fee applies to gross income (less govt payment) = 1, or gross return to land = 2 | K121: 2
B123: Landowner
C124: Total income | D124: ='Crop budgets'!D14 -> 304 | E124: ='Crop budgets'!E14 -> 294.9 | F124: ='Crop budgets'!F14 -> 298 | G124: ='Crop budgets'!G14 -> 361 | H124: ='Crop budgets'!H14 ->  | I124: ='Crop budgets'!I14 ->  | K124: ='Crop budgets'!K14 -> 49988 | L124: =K124/K$86 -> 312.425 | M124: =K124/K$85 -> 312.425
C125: Total operating expense | D125: =IF(D86>0,'Crop budgets'!D31-D91-'Crop budgets'!D26+IF($K121=1,$K120*('Crop budgets'!D14-'Crop budgets'!D11),IF($K121=2,('Crop budgets'!D32+'Crop budgets'!D28)*'Lease budgets'!$K120,NA())),"") -> 228.3666067 | E125: =IF(E86>0,'Crop budgets'!E31-E91-'Crop budgets'!E26+IF($K121=1,$K120*('Crop budgets'!E14-'Crop budgets'!E11),IF($K121=2,('Crop budgets'!E32+'Crop budgets'!E28)*'Lease budgets'!$K120,NA())),"") -> 255.568471 | F125: =IF(F86>0,'Crop budgets'!F31-F91-'Crop budgets'!F26+IF($K121=1,$K120*('Crop budgets'!F14-'Crop budgets'!F11),IF($K121=2,('Crop budgets'!F32+'Crop budgets'!F28)*'Lease budgets'!$K120,NA())),"") -> 223.303621 | G125: =IF(G86>0,'Crop budgets'!G31-G91-'Crop budgets'!G26+IF($K121=1,$K120*('Crop budgets'!G14-'Crop budgets'!G11),IF($K121=2,('Crop budgets'!G32+'Crop budgets'!G28)*'Lease budgets'!$K120,NA())),"") -> 334.5415948 | H125: =IF(H86>0,'Crop budgets'!H31-H91-'Crop budgets'!H26+IF($K121=1,$K120*('Crop budgets'!H14-'Crop budgets'!H11),IF($K121=2,('Crop budgets'!H32+'Crop budgets'!H28)*'Lease budgets'!$K120,NA())),"") ->  | I125: =IF(I86>0,'Crop budgets'!I31-I91-'Crop budgets'!I26+IF($K121=1,$K120*('Crop budgets'!I14-'Crop budgets'!I11),IF($K121=2,('Crop budgets'!I32+'Crop budgets'!I28)*'Lease budgets'!$K120,NA())),"") ->  | K125: =IF(K86>0,'Crop budgets'!K31-K91-'Crop budgets'!K26+IF($K121=1,$K120*('Crop budgets'!K14-'Crop budgets'!K11),IF($K121=2,('Crop budgets'!K32+'Crop budgets'!K28)*'Lease budgets'!$K120,NA())),"") -> 40116.05443 | L125: =K125/K$86 -> 250.7253402 | M125: =K125/K$85 -> 250.7253402
C126: Return to land and irr equip | D126: =IF(D86>0,D124-D125,"") -> 75.63339328 | E126: 39.331529 | F126: 74.696379 | G126: 26.45840516 | K126: =K124-K125 -> 9871.945567 | L126: =L124-L125 -> 61.6996598 | M126: =M124-M125 -> 61.6996598
C127: Profit above land and irr equip | D127: =D126-D91 -> 20.63339328 | E127: -15.668471 | F127: 19.696379 | G127: -28.54159484 | H127: 0 | I127: 0 | K127: =K126-K91 -> 1071.945567 | L127: =K127/K$86 -> 6.699659795 | M127: =K127/K$85 -> 6.699659795
L128: Share of profit => | M128: =K127/K116 -> 1.98533454
B129: Custom operator
C130: Machinery custom rate income | D130: ='Crop budgets'!D25 -> 97.968 | E130: ='Crop budgets'!E25 -> 120.3 | F130: ='Crop budgets'!F25 -> 96.9 | G130: ='Crop budgets'!G25 -> 138.396 | H130: ='Crop budgets'!H25 ->  | I130: ='Crop budgets'!I25 ->  | K130: ='Crop budgets'!K25 -> 17302.32 | L130: =K130/K$86 -> 108.1395 | M130: =K130/K$85 -> 108.1395
C131: Management fee | D131: =IF($K121=1,('Crop budgets'!D14-'Crop budgets'!D11)*$K120,IF($K121=2,('Crop budgets'!D32+'Crop budgets'!D28)*'Lease budgets'!$K120,NA())) -> 15.15834832 | E131: =IF($K121=1,('Crop budgets'!E14-'Crop budgets'!E11)*$K120,IF($K121=2,('Crop budgets'!E32+'Crop budgets'!E28)*'Lease budgets'!$K120,NA())) -> 6.08288225 | F131: =IF($K121=1,('Crop budgets'!F14-'Crop budgets'!F11)*$K120,IF($K121=2,('Crop budgets'!F32+'Crop budgets'!F28)*'Lease budgets'!$K120,NA())) -> 14.92409475 | G131: =IF($K121=1,('Crop budgets'!G14-'Crop budgets'!G11)*$K120,IF($K121=2,('Crop budgets'!G32+'Crop budgets'!G28)*'Lease budgets'!$K120,NA())) -> 2.86460129 | H131: =IF($K121=1,('Crop budgets'!H14-'Crop budgets'!H11)*$K120,IF($K121=2,('Crop budgets'!H32+'Crop budgets'!H28)*'Lease budgets'!$K120,NA())) -> 0 | I131: =IF($K121=1,('Crop budgets'!I14-'Crop budgets'!I11)*$K120,IF($K121=2,('Crop budgets'!I32+'Crop budgets'!I28)*'Lease budgets'!$K120,NA())) -> 0 | K131: =IF($K121=1,('Crop budgets'!K14-'Crop budgets'!K11)*$K120,IF($K121=2,('Crop budgets'!K32+'Crop budgets'!K28)*'Lease budgets'!$K120,NA())) -> 1867.986392 | L131: 11.67491495 | M131: 11.67491495
C132: Total income | D132: =D130+D131 -> 113.1263483 | E132: 126.3828823 | F132: 111.8240947 | G132: 141.2606013 | H132: 0 | I132: 0 | K132: =K130+K131 -> 19170.30639 | L132: 119.8144149 | M132: 119.8144149
C133: Total machinery expenses | D133: =D130 -> 97.968 | E133: 120.3 | F133: 96.9 | G133: 138.396 | K133: =K130 -> 17302.32 | L133: 108.1395 | M133: 108.1395
C134: Non-machinery labor | D134: ='Crop budgets'!D26 -> 15 | E134: ='Crop budgets'!E26 -> 15 | F134: ='Crop budgets'!F26 -> 15 | G134: ='Crop budgets'!G26 -> 15 | H134: ='Crop budgets'!H26 ->  | I134: ='Crop budgets'!I26 ->  | K134: ='Crop budgets'!K26 -> 2400 | L134: 15 | M134: 15
C135: Total expense | D135: =D133+D134 -> 112.968 | E135: 135.3 | F135: 111.9 | G135: 153.396 | H135: 0 | I135: 0 | K135: =K133+K134 -> 19702.32 | L135: 123.1395 | M135: 123.1395
C136: Profit above machinery and labor | D136: =D132-D135 -> 0.15834832 | E136: -8.91711775 | F136: -0.07590525 | G136: -12.13539871 | H136: 0 | I136: 0 | K136: =K132-K135 -> -532.0136082 | L136: -3.325085051 | M136: -3.325085051
L137: Share of profit => | M137: =K136/K116 -> -0.9853345395

Sheet Flex1
B2: Flexible Cash Rent Terms and Calculations
B4: Example of Cash Rent Flexing on Gross Income (accounting for crop insurance) | K4: Notes
B6: A. Market cash rent, $/acre | I6: ='Lease budgets'!M91 -> 55 | K6: See cell comment
B7: B. Adjustment to market rent, $/acre | I7: 0 | K7: See cell comment
B8: C. Base cash rent, $/acre (A+B) | I8: =I6+I7 -> 55
B9: D. Flex direction (Both (up and down) vs Up) | I9: Up | K9: See cell comment
B11: E. Crop | C11: ='Crop budgets'!D4 -> Wheat | D11: ='Crop budgets'!E4 -> Milo | E11: ='Crop budgets'!F4 -> Soybeans | F11: ='Crop budgets'!G4 -> Corn | G11: ='Crop budgets'!H4 -> 0 | H11: ='Crop budgets'!I4 -> 0 | I11: Total | K11: Crop names are pulled from the Crop budgets tab (row 4)
B12: F. Include crop (Y=1, N=0) | C12: 1 | D12: 1 | E12: 1 | F12: 0 | G12: 0 | H12: 0 | K12: See cell comment
B13: G. Acres | C13: ='Crop budgets'!D5 -> 80 | D13: ='Crop budgets'!E5 -> 20 | E13: ='Crop budgets'!F5 -> 30 | F13: ='Crop budgets'!G5 -> 30 | G13: ='Crop budgets'!H5 -> 0 | H13: ='Crop budgets'!I5 -> 0 | I13: =SUMPRODUCT(C12:H12,C13:H13) -> 130 | K13: Acres are pulled from the Crop budgets tab (row 5)
B14: H. Expected yield | C14: ='Crop budgets'!D120 -> 56 | D14: ='Crop budgets'!E120 -> 77 | E14: ='Crop budgets'!F120 -> 30 | F14: ='Crop budgets'!G120 -> 90 | G14: ='Crop budgets'!H120 -> 0 | H14: ='Crop budgets'!I120 -> 0 | K14: Expected yields are pulled from the Crop budgets tab (row 120)
B15: I. Expected price | C15: ='Crop budgets'!D129 -> 5.25 | D15: ='Crop budgets'!E129 -> 3.7 | E15: ='Crop budgets'!F129 -> 9.6 | F15: ='Crop budgets'!G129 -> 3.9 | G15: ='Crop budgets'!H129 -> 0 | H15: ='Crop budgets'!I129 -> 0 | K15: Expected prices are pulled from the Crop budgets tab (row 129)
B16: J. Crop insurance premium | C16: ='Crop budgets'!D22 -> 5 | D16: ='Crop budgets'!E22 -> 7 | E16: ='Crop budgets'!F22 -> 6.25 | F16: ='Crop budgets'!G22 -> 9 | G16: ='Crop budgets'!H22 -> 0 | H16: ='Crop budgets'!I22 -> 0 | I16: =SUMPRODUCT(C$12:H$12,C$13:H$13,C16:H16) -> 727.5 | K16: Crop insurance premiums are pulled from the Crop budgets tab (row 22)
B17: K. Expected revenue + prem | C17: =C14*C15+C16 -> 299 | D17: 291.9 | E17: 294.25 | F17: 360 | G17: 0 | H17: 0 | I17: =SUMPRODUCT(C$12:H$12,C$13:H$13,C17:H17) -> 38585.5 | K17: Calculated as base yield x base price + crop insurance premium
B18: L. Income trigger, % | C18: 1.1 | D18: 1.1 | E18: 1.1 | F18: 1.1 | G18: 1.1 | H18: 1.1 | K18: See cell comment
B19: M. Base revenue, $/ac | C19: =ROUND(C17*C18,$I36) -> 330 | D19: 320 | E19: 320 | F19: 400 | G19: 0 | H19: 0 | I19: =SUMPRODUCT(C$12:H$12,C$13:H$13,C19:H19) -> 42400 | K19: Calculated value as line K times line L (rounded)
B20: N. Bonus above gross, % | C20: 0.4 | D20: =C20 -> 0.4 | E20: =D20 -> 0.4 | F20: =E20 -> 0.4 | G20: =F20 -> 0.4 | H20: =G20 -> 0.4 | K20: See cell comment
B22: O. Actual yield (rows 120-124) | C22: ='Crop budgets'!D119 -> 56 | D22: ='Crop budgets'!E119 -> 77 | E22: ='Crop budgets'!F119 -> 30 | F22: ='Crop budgets'!G119 -> 90 | G22: ='Crop budgets'!H119 -> 0 | H22: ='Crop budgets'!I119 -> 0 | K22: Actual yields are pulled from the Crop budgets tab (row 9)
B23: P. Actual price (rows 129-133) | C23: ='Crop budgets'!D128 -> 5.25 | D23: ='Crop budgets'!E128 -> 3.7 | E23: ='Crop budgets'!F128 -> 9.6 | F23: ='Crop budgets'!G128 -> 3.9 | G23: ='Crop budgets'!H128 -> 0 | H23: ='Crop budgets'!I128 -> 0 | K23: Actual prices are pulled from the Crop budgets tab (row 10)
B24: Q. Crop ins indemnity | C24: 0 | D24: 0 | E24: 0 | F24: 0 | G24: 0 | H24: 0 | I24: =SUMPRODUCT(C$12:H$12,C$13:H$13,C24:H24) -> 0 | K24: See cell comment
B25: R. Actual revenue | C25: =C22*C23+C24 -> 294 | D25: 284.9 | E25: 288 | F25: 351 | G25: 0 | H25: 0 | I25: =SUMPRODUCT(C$12:H$12,C$13:H$13,C25:H25) -> 37858 | K25: Calculated as actual yield x actual price + crop insurance indemnity
B26: Calculated on a crop-by-crop basis
B27: S. Bonus due, $/acre | C27: =IF(AND($I9="Up",C19>C25),0,(C25-C19)*C20)*C12 -> 0 | D27: 0 | E27: 0 | F27: 0 | G27: 0 | H27: 0 | I27: =SUMPRODUCT(C$12:H$12,C$13:H$13,C27:H27)/I13 -> 0 | K27: See cell comment
B28: T. Cash rent due, $/acre | C28: =($I8+C27)*C12 -> 55 | D28: 55 | E28: 55 | F28: 0 | G28: 0 | H28: 0 | I28: =$I8+I27 -> 55 | K28: See cell comment
B29: Calculated based on farm total
B30: U. Bonus due, $/acre | I30: =IF(I9="Up",IF(I25>I19,(I25-I19)*C20/I13,0),(I25-I19)*C20/I13) -> 0 | K30: See cell comment
B31: V. Cash rent due, $/acre | I31: =IF(I9="Up",I8+IF(I25>I19,(I25-I19)*C20/I13,0),I8+(I25-I19)*C20/I13) -> 55 | K31: See cell comment
B32: * Blue values are inputs and all other values are calculated
B35: Base revenue as % of expected | C35: =IF(C17=0,"n/a/",C19/C17) -> 1.10367893 | D35: 1.096265844 | E35: 1.08751062 | F35: 1.111111111 | G35: n/a/ | H35: n/a/
B36: Enter the decimal places Base revenue ($/ac) should be rounded to | I36: -1
B57: Cash rent | D57: =I6 -> 55
B58: Method 1 -- gross revenue (crop by crop) | D58: =I28 -> 55
B59: Method 1: gross revenue (farm total) | D59: =I31 -> 55
B60: Method 2: flex on yield only | D60: =Flex2!I26 -> 55
B61: Method 2: flex on price only | D61: =Flex2!I27 -> 55
B62: Method 2: flex on yield & price | D62: =Flex2!I28 -> 55
B63: Crop share | D63: ='Lease budgets'!M101 -> 55.81317305

Sheet Flex2
B2: Flexible Cash Rent Terms and Calculations
B4: Example of Cash Rent Flexing on Yield, Price, or Revenue | K4: Notes
B6: A. Market cash rent, $/acre | I6: ='Crop budgets'!M28 -> 55 | K6: See cell comment
B7: B. Adjustment to market rent, $/acre | I7: 0 | K7: See cell comment
B8: C. Base cash rent, $/acre (A+B) | I8: =I6+I7 -> 55
B9: D. Flex direction (Both (up and down) vs Up) | I9: Up | K9: See cell comment
B10: E. Percent of change to factor into flexible rent | I10: 1 | K10: See cell comment
B11: F. Adjustments based on Base acres or Actual acres | I11: Base | K11: See cell comment
B13: G. Crop | C13: ='Crop budgets'!D4 -> Wheat | D13: ='Crop budgets'!E4 -> Milo | E13: ='Crop budgets'!F4 -> Soybeans | F13: ='Crop budgets'!G4 -> Corn | G13: ='Crop budgets'!H4 -> 0 | H13: ='Crop budgets'!I4 -> 0 | I13: Total | K13: Crop names are pulled from the Crop budgets tab (row 4)
B14: H. Include crop (Y=1, N=0) | C14: 1 | D14: 1 | E14: 1 | F14: 0 | G14: 0 | H14: 0 | K14: See cell comment
B15: I. Base acres | C15: ='Crop budgets'!D5 -> 80 | D15: ='Crop budgets'!E5 -> 20 | E15: ='Crop budgets'!F5 -> 30 | F15: ='Crop budgets'!G5 -> 30 | G15: ='Crop budgets'!H5 -> 0 | H15: ='Crop budgets'!I5 -> 0 | I15: =SUMPRODUCT(C14:H14,C15:H15) -> 130 | K15: See cell comment
B16: J. Base yield | C16: =ROUND('Crop budgets'!D120*C33,1) -> 58.8 | D16: =ROUND('Crop budgets'!E120*D33,1) -> 80.9 | E16: =ROUND('Crop budgets'!F120*E33,1) -> 31.5 | F16: =ROUND('Crop budgets'!G120*F33,1) -> 94.5 | G16: =ROUND('Crop budgets'!H120*G33,1) -> 0 | H16: =ROUND('Crop budgets'!I120*H33,1) -> 0 | K16: Base yields are from the Crop budgets tab (row 120) and adjusted by value in row 33 below
B17: K. Base price | C17: =ROUND('Crop budgets'!D129*C34,2) -> 5.51 | D17: =ROUND('Crop budgets'!E129*D34,2) -> 3.89 | E17: =ROUND('Crop budgets'!F129*E34,2) -> 10.08 | F17: =ROUND('Crop budgets'!G129*F34,2) -> 4.1 | G17: =ROUND('Crop budgets'!H129*G34,2) -> 0 | H17: =ROUND('Crop budgets'!I129*H34,2) -> 0 | K17: Base prices are from the Crop budgets tab (row 129) and adjusted by value in row 34 below
B18: L. Base revenue | C18: =C16*C17 -> 323.988 | D18: 314.701 | E18: 317.52 | F18: 387.45 | G18: 0 | H18: 0 | I18: =SUMPRODUCT(C14:H14,C15:H15,C18:H18) -> 41738.66 | K18: Calculated as base yield x base price
C19: =IF($I11="Base",C15,C20) -> 80 | D19: 20 | E19: 30 | F19: 30 | G19: 0 | H19: 0 | I19: =SUMPRODUCT(C14:H14,C19:H19) -> 130
B20: M. Actual acres | C20: 64 | D20: 64 | E20: 0 | F20: 0 | G20: 0 | H20: 0 | I20: =SUMPRODUCT(C14:H14,C20:H20) -> 128 | K20: See cell comment
B21: N. Actual yield (rows 120-124) | C21: ='Crop budgets'!D119 -> 56 | D21: ='Crop budgets'!E119 -> 77 | E21: ='Crop budgets'!F119 -> 30 | F21: ='Crop budgets'!G119 -> 90 | G21: ='Crop budgets'!H119 -> 0 | H21: ='Crop budgets'!I119 -> 0 | I21: =SUMPRODUCT(C14:H14,C$19:H$19,C21:H21,C17:H17) -> 39747.4 | K21: Actual yields are pulled from the Crop budgets tab (row 9)
B22: O. Actual price (rows 129-133) | C22: ='Crop budgets'!D128 -> 5.25 | D22: ='Crop budgets'!E128 -> 3.7 | E22: ='Crop budgets'!F128 -> 9.6 | F22: ='Crop budgets'!G128 -> 3.9 | G22: ='Crop budgets'!H128 -> 0 | H22: ='Crop budgets'!I128 -> 0 | I22: =SUMPRODUCT(C14:H14,C$19:H$19,C16:H16,C22:H22) -> 39754.6 | K22: Actual prices are pulled from the Crop budgets tab (row 10)
B23: P. Actual revenue | C23: =C21*C22 -> 294 | D23: 284.9 | E23: 288 | F23: 351 | G23: 0 | H23: 0 | I23: =SUMPRODUCT(C14:H14,C$19:H$19,C23:H23) -> 37858 | K23: Calculated as actual yield x actual price
H25: % chg from base | I25: Rent, $/ac
B26: Q. Cash rent flexing on yield only | H26: =I21/(I$18*I19/I15)-1 -> -0.04770780854 | I26: =I$8+IF(I$9="Up",MAX(H26*I$10*I$8,0),H26*I$10*I$8) -> 55 | K26: See cell comment
B27: R. Cash rent flexing on price only | H27: =I22/(I$18*I19/I15)-1 -> -0.0475353066 | I27: =I$8+IF(I$9="Up",MAX(H27*I$10*I$8,0),H27*I$10*I$8) -> 55 | K27: See cell comment
B28: S. Cash rent flexing on revenue (yield x price) | H28: =I23/(I$18*I19/I15)-1 -> -0.09297519374 | I28: =I$8+IF(I$9="Up",MAX(H28*I$10*I$8,0),H28*I$10*I$8) -> 55 | K28: See cell comment
B29: * Blue values are inputs and all other values are calculated
B32: Adjustments where Bonus are Triggered
B33: Base yield as % of budget | C33: 1.05 | D33: =C33 -> 1.05 | E33: 1.05 | F33: 1.05 | G33: 1.05 | H33: 1.05
B34: Base price as % of budget | C34: 1.05 | D34: 1.05 | E34: 1.05 | F34: 1.05 | G34: 1.05 | H34: 1.05
B55: Cash rent | D55: =I6 -> 55
B56: Method 1 -- gross revenue (crop by crop) | D56: =Flex1!I28 -> 55
B57: Method 1: gross revenue (farm total) | D57: =Flex1!I31 -> 55
B58: Method 2: flex on yield only | D58: =I26 -> 55
B59: Method 2: flex on price only | D59: =I27 -> 55
B60: Method 2: flex on yield & price | D60: =I28 -> 55
B61: Crop share | D61: ='Lease budgets'!M101 -> 55.81317305

Sheet Irr energy costs
B2: IRRIGATION ENERGY COST COMPARISON
B4: Compares energy costs of irrigation pumping with different fuels at various prices and levels of
B5: performance. % NPPPC is percent of Nebraska Pumping Plant Performance Criteria.
B7: -INPUT------ | M7: Nebraska Pumping Plant Performance Criteria*
C8: Acres | E8: 1 | F8: Electric: | H8: 0.08 | I8: $/kWh | J8: 90 | K8: % NPPPC
C9: Inches Applied | E9: 1 | F9: Nat. Gas: | H9: 6 | I9: $/mcf | J9: 90 | K9: % NPPPC | M9: 0.885 | N9: whp-hr/kWh Electricity
C10: Feet Lift | E10: 75 | F10: Diesel: | H10: 2.75 | I10: $/gal | J10: 90 | K10: % NPPPC | M10: 61.7 | N10: whp-hr/mcf Natural Gas
C11: PSI Pressure | E11: 20 | F11: Propane: | H11: 0.9 | I11: $/gal | J11: 90 | K11: % NPPPC | M11: 12.5 | N11: whp-hr/gal Diesel
B12: -OUTPUT----- | M12: 6.89 | N12: whp-hr/gal Propane
C13: Energy | E13: Energy | F13: Energy | H13: ----- Cost as percent of: ----- | M13: * These factors represent what a well-designed and maintained irrigation pumping plant should be capable of doing (i.e., work done per unit of fuel) based on the Nebraska Pumping Plant Performance Criteria (NPPPC).
C14: Source | E14: Cost ($) | F14: Use | H14: Elec. | I14: Nat. Gas | J14: Diesel | K14: Propane
B16: =LEFT(C16,4)&"-"&FIXED(H8,3,TRUE)&" "&I8 -> Elec-0.080 $/kWh | C16: Electricity | E16: =M$22*H8*E$8*(E$10+M$23*E$11)*E$9/(M9*J8) -> 1.392620716 | F16: =E16/H8 -> 17.40775895 | G16: kWh | H16: =E16/E$16 -> 1 | I16: =E16/E$17 -> 0.929566855 | J16: =E16/E$18 -> 0.4108885465 | K16: =E16/E$19 -> 0.6920276208
B17: =LEFT(C17,3)&" "&RIGHT(C17,3)&"-"&FIXED(H9,2,TRUE)&" "&I9 -> Nat Gas-6.00 $/mcf | C17: Natural Gas | E17: =M$22*H9*E$8*(E$10+M$23*E$11)*E$9/(M10*J9) -> 1.498139384 | F17: =E17/H9 -> 0.2496898974 | G17: mcf | H17: =E17/E$16 -> 1.075769854 | I17: =E17/E$17 -> 1 | J17: =E17/E$18 -> 0.4420215117 | K17: =E17/E$19 -> 0.7444624527
B18: =LEFT(C18,6)&"-"&FIXED(H10,2,TRUE)&" "&I10 -> Diesel-2.75 $/gal | C18: Diesel | E18: =M$22*H10*E$8*(E$10+M$23*E$11)*E$9/(M11*J10) -> 3.389290667 | F18: =E18/H10 -> 1.232469333 | G18: gal | H18: =E18/E$16 -> 2.43375 | I18: =E18/E$17 -> 2.262333333 | J18: =E18/E$18 -> 1 | K18: =E18/E$19 -> 1.684222222
B19: =LEFT(C19,4)&"-"&FIXED(H11,2,TRUE)&" "&I11 -> Prop-0.90 $/gal | C19: Propane | E19: =M$22*H11*E$8*(E$10+M$23*E$11)*E$9/(M12*J11) -> 2.012377358 | F19: =E19/H11 -> 2.235974843 | G19: gal | H19: =E19/E$16 -> 1.445029028 | I19: =E19/E$17 -> 1.343251089 | J19: =E19/E$18 -> 0.5937458768 | K19: =E19/E$19 -> 1
B22: ENERGY PUMPING COST/ACRE WITH ELECTRICITY | M22: =(M24*M25*M26)/(M27*M28*M29) -> 11.44 | N22: conversion factor
D23: Pressure (PSI) | M23: 2.31 | N23: TDH/lb of psi
D24: 5 | E24: =D24+10 -> 15 | F24: 25 | G24: 35 | H24: 45 | I24: 55 | J24: 65 | M24: 43560 | N24: square feet per acre
C25: $/kWh | D25: -------- Energy Cost ($/Acre) -------- | M25: 62.4 | N25: pounds/cubic foot water
C26: =C28-0.02 -> 0.05 | D26: =$M$22*$C26*($E$10+$M$23*D$24)*$E$9/($M$9*$J$8) -> 0.6215517891 | E26: 0.7874425612 | F26: 0.9533333333 | G26: 1.119224105 | H26: 1.285114878 | I26: 1.45100565 | J26: 1.616896422 | M26: 100 | N26: percent
C27: =C28-0.01 -> 0.06 | D27: 0.7458621469 | E27: 0.9449310734 | F27: 1.144 | G27: 1.343068927 | H27: 1.542137853 | I27: 1.74120678 | J27: 1.940275706 | M27: 12 | N27: inch/foot
C28: =C29-0.01 -> 0.07 | D28: 0.8701725047 | E28: 1.102419586 | F28: 1.334666667 | G28: 1.566913748 | H28: 1.799160829 | I28: 2.03140791 | J28: 2.263654991 | M28: 33000 | N28: foot pound/minute-hp
C29: =H8 -> 0.08 | D29: 0.9944828625 | E29: 1.259908098 | F29: 1.525333333 | G29: 1.790758569 | H29: 2.056183804 | I29: 2.32160904 | J29: 2.587034275 | M29: 60 | N29: minutes/hour
C30: =C28+0.02 -> 0.09 | D30: 1.11879322 | E30: 1.41739661 | F30: 1.716 | G30: 2.01460339 | H30: 2.31320678 | I30: 2.611810169 | J30: 2.910413559
C31: =C28+0.03 -> 0.1 | D31: 1.243103578 | E31: 1.574885122 | F31: 1.906666667 | G31: 2.238448211 | H31: 2.570229755 | I31: 2.902011299 | J31: 3.233792844
C32: =C28+0.04 -> 0.11 | D32: 1.367413936 | E32: 1.732373635 | F32: 2.097333333 | G32: 2.462293032 | H32: 2.827252731 | I32: 3.192212429 | J32: 3.557172128
B35: ENERGY PUMPING COST/ACRE WITH NATURAL GAS
D36: Pressure (PSI)
D37: =D$24 -> 5 | E37: =D37+10 -> 15 | F37: 25 | G37: 35 | H37: 45 | I37: 55 | J37: 65
C38: $/mcf | D38: -------- Energy Cost ($/Acre) --------
C39: =C41-0.5 -> 5.25 | D39: =$M$22*$C39*($E$10+$M$23*D$37)*$E$9/($M$10*$J$9) -> 0.9361053485 | E39: 1.185949757 | F39: 1.435794165 | G39: 1.685638574 | H39: 1.935482982 | I39: 2.185327391 | J39: 2.435171799
C40: =C41-0.25 -> 5.5 | D40: 0.9806817936 | E40: 1.242423555 | F40: 1.504165316 | G40: 1.765907077 | H40: 2.027648838 | I40: 2.2893906 | J40: 2.551132361
C41: =C42-0.25 -> 5.75 | D41: 1.025258239 | E41: 1.298897353 | F41: 1.572536467 | G41: 1.846175581 | H41: 2.119814695 | I41: 2.393453809 | J41: 2.667092923
C42: =H9 -> 6 | D42: 1.069834684 | E42: 1.355371151 | F42: 1.640907618 | G42: 1.926444084 | H42: 2.211980551 | I42: 2.497517018 | J42: 2.783053485
C43: =C41+0.5 -> 6.25 | D43: 1.114411129 | E43: 1.411844949 | F43: 1.709278768 | G43: 2.006712588 | H43: 2.304146407 | I43: 2.601580227 | J43: 2.899014046
C44: =C41+0.75 -> 6.5 | D44: 1.158987574 | E44: 1.468318747 | F44: 1.777649919 | G44: 2.086981091 | H44: 2.396312264 | I44: 2.705643436 | J44: 3.014974608
C45: =C41+1 -> 6.75 | D45: 1.203564019 | E45: 1.524792545 | F45: 1.84602107 | G45: 2.167249595 | H45: 2.48847812 | I45: 2.809706645 | J45: 3.13093517
B48: ENERGY PUMPING COST/ACRE WITH DIESEL
D49: Pressure (PSI)
D50: =D$24 -> 5 | E50: =D50+10 -> 15 | F50: 25 | G50: 35 | H50: 45 | I50: 55 | J50: 65
C51: $/gal | D51: -------- Energy Cost ($/Acre) --------
C52: =C54-0.3 -> 2.3 | D52: =$M$22*$C52*($E$10+$M$23*D$50)*$E$9/($M$11*$J$10) -> 2.024269867 | E52: 2.564542933 | F52: 3.104816 | G52: 3.645089067 | H52: 4.185362133 | I52: 4.7256352 | J52: 5.265908267
C53: =C54-0.15 -> 2.45 | D53: 2.156287467 | E53: 2.731795733 | F53: 3.307304 | G53: 3.882812267 | H53: 4.458320533 | I53: 5.0338288 | J53: 5.609337067
C54: =C55-0.15 -> 2.6 | D54: 2.288305067 | E54: 2.899048533 | F54: 3.509792 | G54: 4.120535467 | H54: 4.731278933 | I54: 5.3420224 | J54: 5.952765867
C55: =H10 -> 2.75 | D55: 2.420322667 | E55: 3.066301333 | F55: 3.71228 | G55: 4.358258667 | H55: 5.004237333 | I55: 5.650216 | J55: 6.296194667
C56: =C54+0.3 -> 2.9 | D56: 2.552340267 | E56: 3.233554133 | F56: 3.914768 | G56: 4.595981867 | H56: 5.277195733 | I56: 5.9584096 | J56: 6.639623467
C57: =C54+0.45 -> 3.05 | D57: 2.684357867 | E57: 3.400806933 | F57: 4.117256 | G57: 4.833705067 | H57: 5.550154133 | I57: 6.2666032 | J57: 6.983052267
C58: =C54+0.6 -> 3.2 | D58: 2.816375467 | E58: 3.568059733 | F58: 4.319744 | G58: 5.071428267 | H58: 5.823112533 | I58: 6.5747968 | J58: 7.326481067
B61: ENERGY PUMPING COST/ACRE WITH PROPANE
D62: Pressure (PSI)
D63: =D$24 -> 5 | E63: =D63+10 -> 15 | F63: 25 | G63: 35 | H63: 45 | I63: 55 | J63: 65
C64: $/gal | D64: -------- Energy Cost ($/Acre) --------
C65: =C67-0.2 -> 0.6 | D65: =$M$22*$C65*($E$10+$M$23*D$63)*$E$9/($M$12*$J$11) -> 0.9580377358 | E65: 1.213735849 | F65: 1.469433962 | G65: 1.725132075 | H65: 1.980830189 | I65: 2.236528302 | J65: 2.492226415
C66: =C67-0.1 -> 0.7 | D66: 1.117710692 | E66: 1.416025157 | F66: 1.714339623 | G66: 2.012654088 | H66: 2.310968553 | I66: 2.609283019 | J66: 2.907597484
C67: =C68-0.1 -> 0.8 | D67: 1.277383648 | E67: 1.618314465 | F67: 1.959245283 | G67: 2.300176101 | H67: 2.641106918 | I67: 2.982037736 | J67: 3.322968553
C68: =H11 -> 0.9 | D68: 1.437056604 | E68: 1.820603774 | F68: 2.204150943 | G68: 2.587698113 | H68: 2.971245283 | I68: 3.354792453 | J68: 3.738339623
C69: =C67+0.2 -> 1 | D69: 1.59672956 | E69: 2.022893082 | F69: 2.449056604 | G69: 2.875220126 | H69: 3.301383648 | I69: 3.72754717 | J69: 4.153710692
C70: =C67+0.3 -> 1.1 | D70: 1.756402516 | E70: 2.22518239 | F70: 2.693962264 | G70: 3.162742138 | H70: 3.631522013 | I70: 4.100301887 | J70: 4.569081761
C71: =C67+0.4 -> 1.2 | D71: 1.916075472 | E71: 2.427471698 | F71: 2.938867925 | G71: 3.450264151 | H71: 3.961660377 | I71: 4.473056604 | J71: 4.98445283

Sheet Notes
B2: This page can be used for supporting notes, data, etc.
